Workbook

Sheet Cover
D2: ARP model
D4: Release for 2021/22 charge setting
B6: ='Version control'!F7 -> Model date: | D6: ='Version control'!H7 -> 2019-11-08
B8: ='Version control'!F9 -> Development stage: | D8: ='Version control'!H9 -> Release for charge setting
B10: ='Version control'!F11 -> Model number: | D10: ='Version control'!H11 -> 5
B12: ='Version control'!F13 -> DCUSA text version: | D12: ='Version control'!H13 -> Attachment A_01 April 2021 Charging Methodologies Pre-Release_Issued October 2019 (shared 10/10/2019)
B14: ='Version control'!F15 -> DCUSA text schedule: | D14: ='Version control'!H15 -> Schedules 16 & 20
B16: DISCLAIMER | D16: Unless stated otherwise, this workbook is only a prototype for testing purposes and all the data in this model are for illustration only. Neither the authors nor Cambridge Economic Policy Associates/TNEI accept or assume any responsibility or duty of care to any third party.
D17: © All rights reserved by Cambridge Economic Policy Associates Ltd (CEPA) and TNEI Services Ltd
B19: Charging year: | D19: 2021/22
B21: DNO name: | D21: SP Distribution
B23: Data version: | D23: One
B25: Notes:
B27: Key:
B28: Format | D28: Description
D29: Cell intentionally blank
B30: Value | D30: Hardcoded input
B31: Value | D31: User input
B32: Value | D32: Model output
B33: Value | D33: Calculation
B34: Value | D34: Value from another worksheet
B35: Value | D35: Value used on another worksheet
B36: Value | D36: Issue identified in a check
B37: Text | D37: Label
B38: Text | D38: Annotation
B39: Text | D39: Column heading
B40: Text | D40: Level 1 heading
B41: Text | D41: Level 2 heading
B42: Text | D42: Level 3 and 4 heading
B43: Sheet tab colour | D43: Information sheet
B44: Sheet tab colour | D44: User control sheet
B45: Sheet tab colour | D45: Input sheet
B46: Sheet tab colour | D46: Calculation sheet
B47: Sheet tab colour | D47: Output sheet

Sheet Version control
A1: =MID(CELL("filename",A1),FIND("]",CELL("filename",A1))+1,255) -> Version control
A2: =Cover!D21&" - "&Cover!D23 -> SP Distribution - One
A3: =Cover!D2&" - "&Cover!D8&" v"&Cover!D10&" - "&Cover!D19 -> ARP model - Release for charge setting v5 - 2021/22
A4: =J61 & IF(J61 = 1, " issue", " issues") &" identified in checks on this sheet" -> 0 issues identified in checks on this sheet
B5: Model version
F7: Model date: | H7: =LOOKUP(2,1/(F20:F30<>""),F20:F30) -> 2019-11-08
F9: Development stage: | H9: =LOOKUP(2,1/(G20:G30<>""),G20:G30) -> Release for charge setting
F11: Model number: | H11: =LOOKUP(2,1/(H20:H30<>""),H20:H30) -> 5
F13: DCUSA text version: | H13: =LOOKUP(2,1/(I20:I30<>""),I20:I30) -> Attachment A_01 April 2021 Charging Methodologies Pre-Release_Issued October 2019 (shared 10/10/2019)
F15: DCUSA text schedule: | H15: =LOOKUP(2,1/(J20:J30<>""),J20:J30) -> Schedules 16 & 20
B17: Version log
F19: Model date | G19: Development stage | H19: Model number | I19: DCUSA text version | J19: DCUSA text schedule | K19: Author | L19: Description of changes
F20: 2018-05-30 | G20: Pre-release | H20: 1 | I20: 2019-20 pre-release plus Expert Panel clarifications | J20: Schedules 16 & 20 | K20: CEPA-TNEI | L20: -
F21: 2018-07-20 | G21: Pre-release | H21: 2 | I21: DCUSA v10.3 (released 28/06/2018) | J21: Schedules 16 & 20 | K21: CEPA-TNEI | L21: References to DCUSA text updated to comply with version 10.3 (released 28/06/2018).
F22: 2018-10-16 | G22: Release for charge setting | H22: 3 | I22: 01 April 2020 DCUSA Charging Methodologies Pre-Release (released 09/10/2018) | J22: Schedules 16 & 20 | K22: CEPA-TNEI | L22: Updated references to legal text version.
F23: 2019-07-17 | G23: Pre-release | H23: 4 | I23: DCP 268 Draft Legal Text v2.0 (shared 10/06/2019) | J23: Schedules 16 & 20 | K23: CEPA-TNEI | L23: Implemented DCP268 as per service 1 request (received 10/06/2019): replaced 33 existing tariffs with 16 enduring tariffs, modified structure of fixed inputs and inputs by customer type, modified pseudo-load coefficient calculation, modified revenue matching calculation, modified ARP_Load characteristics.
F24: 2019-11-08 | G24: Release for charge setting | H24: 5 | I24: Attachment A_01 April 2021 Charging Methodologies Pre-Release_Issued October 2019 (shared 10/10/2019) | J24: Schedules 16 & 20 | K24: CEPA-TNEI | L24: Updated references to legal text version, and implemented DCP332 and DCP333, assuming implementation of DCP 356 (as described in the user guide).
B31: Model checks
E33: Issues identified by in-built model checks, by sheet
F34: ="ARP_"&F38 -> ARP_Inputs by customer type | H34: Input 501 | I34: number of issues | J34: ='ARP_Inputs by customer type'!$H$530 -> 0
F35: ="ARP_"&F39 -> ARP_Inputs by network level | H35: Input 502 | I35: number of issues | J35: ='ARP_Inputs by network level'!$H$218 -> 0
F36: ="ARP_"&F40 -> ARP_General inputs | H36: Input 503 | I36: number of issues | J36: ='ARP_General inputs'!$H$124 -> 0
F37: Fixed inputs | H37: Input 504 | I37: number of issues | J37: ='Fixed inputs'!H172 -> 0
F38: Inputs by customer type | H38: Section 501 | I38: number of issues | J38: ='Inputs by customer type'!H65 -> 0
F39: Inputs by network level | H39: Section 502 | I39: number of issues | J39: ='Inputs by network level'!H59 -> 0
F40: General inputs | H40: Section 503 | I40: number of issues | J40: ='General inputs'!H117 -> 0
F41: Standing Charge Factors | H41: Section 504 | I41: number of issues | J41: ='Standing charge factors'!H58 -> 0
F42: Load & loss characteristics | H42: Section 505 | I42: number of issues | J42: ='Load & loss characteristics'!H183 -> 0
F43: Customer contributions | H43: Section 506 | I43: number of issues | J43: ='Customer contributions'!H70 -> 0
F44: Volume adjustments | H44: Section 507 | I44: number of issues | J44: ='Volume adjustments'!H140 -> 0
F45: Pseudo-load coefficients | H45: Section 508 | I45: number of issues | J45: ='Pseudo-load coefficients'!H306 -> 0
F46: System peak demand | H46: Section 509 | I46: number of issues | J46: ='System peak demand'!H281 -> 0
F47: Service model assets | H47: Section 510 | I47: number of issues | J47: ='Service model assets'!H38 -> 0
F48: Unit costs | H48: Section 511 | I48: number of issues | J48: ='Unit costs'!H131 -> 0
F49: Initial unit rates | H49: Section 512 | I49: number of issues | J49: ='Initial unit rates'!H241 -> 0
F50: Service model charges | H50: Section 513 | I50: number of issues | J50: ='Service model charges'!H48 -> 0
F51: Unit rate charges | H51: Section 514 | I51: number of issues | J51: ='Unit rate charges'!H223 -> 0
F52: Reactive power charges | H52: Section 515 | I52: number of issues | J52: ='Reactive power charges'!H254 -> 0
F53: Capacity charges | H53: Section 516 | I53: number of issues | J53: ='Capacity charges'!H295 -> 0
F54: Fixed charges | H54: Section 517 | I54: number of issues | J54: ='Fixed charges'!H165 -> 0
F55: Revenue matching | H55: Section 518 | I55: number of issues | J55: ='Revenue matching'!H162 -> 0
F56: Fixed charge adder | H56: Section 519 | I56: number of issues | J56: ='Fixed charge adder'!H66 -> 0
F57: Rounding | H57: Section 520 | I57: number of issues | J57: =Rounding!H158 -> 0
F58: Net revenue summary | H58: Input 505 | I58: number of issues | J58: ='Net revenue summary'!H134 -> 0
F59: Tariff summary | H59: Input 506 | I59: number of issues | J59: ='Tariff summary'!H353 -> 0
F60: Typical bills | H60: Input 507 | I60: number of issues | J60: ='Typical bills'!H73 -> 0
F61: Total | I61: number of issues | J61: =IFERROR(SUM(J34:J60), 1) -> 0
B63: Version log lists
F65: Development stages
F66: Working draft
F67: Interim release
F68: Pre-release
F69: Release for charge setting
F76: …
B78: End of sheet

Sheet Model map
A1: =MID(CELL("filename",A1),FIND("]",CELL("filename",A1))+1,255) -> Model map
A2: =Cover!D21&" - "&Cover!D23 -> SP Distribution - One
A3: =Cover!D2&" - "&Cover!D8&" v"&Cover!D10&" - "&Cover!D19 -> ARP model - Release for charge setting v5 - 2021/22
B5: Model map
B65: End of sheet

Sheet Index
A1: =MID(CELL("filename",A1),FIND("]",CELL("filename",A1))+1,255) -> Index
A2: =Cover!D21&" - "&Cover!D23 -> SP Distribution - One
A3: =Cover!D2&" - "&Cover!D8&" v"&Cover!D10&" - "&Cover!D19 -> ARP model - Release for charge setting v5 - 2021/22
B5: Description
C7: This sheet contains links to each sheet of the model and the main sections within them.
C8: It also contains links to more granular sections within the sheets for inputs, calculations and outputs.
B10: Index of sheets and main sections
C12: The following table provides links to all the sheets within this model and the main sections within them.
F14: Sheet | G14: Section
F15: Cover
F16: Version control | G16: ='Version control'!$B$5 -> Model version
G17: ='Version control'!$B$17 -> Version log
G18: ='Version control'!$B$31 -> Model checks
G19: ='Version control'!$B$63 -> Version log lists
F20: Model map | G20: ='Model map'!$B$5 -> Model map
F21: Named ranges | G21: ='Named ranges'!$B$5 -> List of named ranges
F22: ARP_DNO commentary | G22: ='ARP_DNO commentary'!$B$9 -> Commentary
F23: ARP_CDCM timebands | G23: ='ARP_CDCM timebands'!$B$12 -> CDCM timebands
F24: ARP_Load characteristics | G24: ='ARP_Load characteristics'!$B$13 -> Years
G25: ='ARP_Load characteristics'!$B$20 -> Load characteristics
F26: ARP_Peaking probabilities | G26: ='ARP_Peaking probabilities'!$B$14 -> Years
G27: ='ARP_Peaking probabilities'!$B$21 -> Peaking probabilities, by distribution timeband
F28: ARP_User control | G28: ='ARP_User control'!$B$10 -> User interface
G29: ='ARP_User control'!$B$25 -> Lists
F30: ARP_Inputs by customer type | G30: ='ARP_Inputs by customer type'!$B$14 -> Load characteristics
G31: ='ARP_Inputs by customer type'!$B$56 -> Volumes
G32: ='ARP_Inputs by customer type'!$B$462 -> Service model asset values
F33: ARP_Inputs by network level | G33: ='ARP_Inputs by network level'!$B$14 -> Inputs by network level
F34: ARP_General inputs | G34: ='ARP_General inputs'!$B$14 -> General inputs
F35: Fixed inputs | G35: ='Fixed inputs'!$B$11 -> Fixed inputs
F36: Inputs by customer type | G36: ='Inputs by customer type'!$B$14 -> Inputs by customer type
F37: Inputs by network level | G37: ='Inputs by network level'!$B$14 -> Inputs by network level
F38: General inputs | G38: ='General inputs'!$B$14 -> General inputs
F39: Standing charge factors | G39: ='Standing charge factors'!$B$17 -> Adjustments to standing charges
F40: Load & loss characteristics | G40: ='Load & loss characteristics'!$B$13 -> Load and loss characteristics
G41: ='Load & loss characteristics'!$B$31 -> User loss factor adjustments
F42: Customer contributions | G42: ='Customer contributions'!$B$12 -> Customer contributions
F43: Volume adjustments | G43: ='Volume adjustments'!$B$13 -> LDNO discounts
G44: ='Volume adjustments'!$B$51 -> Volume discounting
F45: Pseudo-load coefficients | G45: ='Pseudo-load coefficients'!$B$13 -> Step 1: Ratio of coincidence to load factor assuming units evenly spread within time bands, and peak falls in Red period
G46: ='Pseudo-load coefficients'!$B$56 -> Step 2: Calculate correction factor
G47: ='Pseudo-load coefficients'!$B$95 -> Step 3: Ratio of coincidence factor (to network asset peak) to load factor, given peaking probabilities, multiplied by correction factor
G48: ='Pseudo-load coefficients'!$B$261 -> Step 4: Results of Step 3
F49: System peak demand | G49: ='System peak demand'!$B$16 -> Common inputs for chargeable load calculations
G50: ='System peak demand'!$B$63 -> Load at system peak charged to unit rates
G51: ='System peak demand'!$B$179 -> Load at system peak charged to standing charges
G52: ='System peak demand'!$B$262 -> System peak based on chargeable load
F53: Service model assets | G53: ='Service model assets'!$B$12 -> Service model notional asset values
F54: Unit costs | G54: ='Unit costs'!$B$15 -> 500MW model costs
G55: ='Unit costs'!$B$58 -> Allocation of other costs
G56: ='Unit costs'!$B$102 -> Outputs
F57: Initial unit rates | G57: ='Initial unit rates'!$B$11 -> Inputs for yardstick and unit rate calculations
G58: ='Initial unit rates'!$B$116 -> Calculation of yardstick & unit rate charges
F59: Service model charges | G59: ='Service model charges'!$B$13 -> Inputs to service model charge calculation
G60: ='Service model charges'!$B$29 -> Allocation of service model costs
F61: Unit rate charges | G61: ='Unit rate charges'!$B$15 -> Inputs to unit rate charge calculations
G62: ='Unit rate charges'!$B$122 -> Application of standing charges to unit rates
F63: Reactive power charges | G63: ='Reactive power charges'!$B$13 -> Inputs to reactive power charge calculations
G64: ='Reactive power charges'!$B$150 -> Calculation of yardstick charges for generation
G65: ='Reactive power charges'!$B$185 -> Calculation of reactive power charges
F66: Capacity charges | G66: ='Capacity charges'!$B$17 -> Inputs to capacity charge calculations
G67: ='Capacity charges'!$B$125 -> Calculation of capacity charges
G68: ='Capacity charges'!$B$249 -> Capacity charges (and elements allocated to fixed charges)
F69: Fixed charges | G69: ='Fixed charges'!$B$14 -> Inputs to fixed charge calculations
G70: ='Fixed charges'!$B$65 -> Calculation of fixed charges
F71: Revenue matching | G71: ='Revenue matching'!$B$13 -> Pre-matching net revenue calculations
G72: ='Revenue matching'!$B$62 -> Adder calculation
F73: Fixed charge adder | G73: ='Fixed charge adder'!$B$12 -> Fixed tariff adjustments
F74: Rounding | G74: =Rounding!$B$12 -> Inputs
G75: =Rounding!$B$83 -> Rounding of tariff forecast
F76: Net revenue summary | G76: ='Net revenue summary'!$B$11 -> Inputs to net revenue summary calculation
G77: ='Net revenue summary'!$B$79 -> Typical bills
F78: Tariff summary | G78: ='Tariff summary'!$B$13 -> Tariff summary
F79: Typical bills | G79: ='Typical bills'!$B$13 -> Typical bills
B81: Index of inputs, calculation sections and outputs
C83: The following table provides links to each input, calculation and output section. Each has a unique identifier for ease of reference.
F85: Sheet | G85: Section
F86: ARP_CDCM timebands | G86: ='ARP_CDCM timebands'!$C$14 -> Distribution time bands
G87: ='ARP_CDCM timebands'!$C$26 -> Special distribution time bands
F88: ARP_User control | G88: ='ARP_User control'!$C$15 -> Inputs for manually running selected year
G89: ='ARP_User control'!$C$19 -> Macro to run all years
F90: ARP_Inputs by customer type | G90: ='ARP_Inputs by customer type'!$C$16 -> Input 501-A: Load factor
G91: ='ARP_Inputs by customer type'!$C$36 -> Input 501-B: Coincidence factor
G92: ='ARP_Inputs by customer type'!$C$58 -> Input 501-C: All-the-way volumes
G93: ='ARP_Inputs by customer type'!$C$186 -> Input 501-D: LDNO LV volumes
G94: ='ARP_Inputs by customer type'!$C$314 -> Input 501-E: LDNO HV volumes
G95: ='ARP_Inputs by customer type'!$C$442 -> Input 501-F: 'Designated Property' MPANs with EDCM-level LDNO boundaries
G96: ='ARP_Inputs by customer type'!$C$466 -> Input 501-G: LV customer service model asset values
G97: ='ARP_Inputs by customer type'!$C$486 -> Input 501-H: HV customer service model asset values
G98: ='ARP_Inputs by customer type'!$C$506 -> Input 501-I: LV UMS customer service model asset values
F99: ARP_Inputs by network level | G99: ='ARP_Inputs by network level'!$C$16 -> Input 502-A: Diversity allowance between top and bottom of network level
G100: ='ARP_Inputs by network level'!$C$30 -> Input 502-B: Proportion of EHV/HV load going through 132kV/HV direct transformation
G101: ='ARP_Inputs by network level'!$C$44 -> Input 502-C: Loss adjustment factors to transmission
G102: ='ARP_Inputs by network level'!$C$58 -> Input 502-D: Average kVAr by kVA, by network level
G103: ='ARP_Inputs by network level'!$C$72 -> Input 502-E: Customer contributions under current connection charging policy
G104: ='ARP_Inputs by network level'!$C$120 -> Input 502-F: Gross asset cost by network level
G105: ='ARP_Inputs by network level'!$C$134 -> Input 502-G: Peaking probabilities, by timeband & network level
F106: ARP_General inputs | G106: ='ARP_General inputs'!$C$16 -> Input 503-A: Split of hours by distribution timeband
G107: ='ARP_General inputs'!$C$28 -> Input 503-B: Embedded network (LDNO) discount percentages
G108: ='ARP_General inputs'!$C$38 -> Input 503-C: CDCM target revenue
G109: ='ARP_General inputs'!$C$98 -> Input 503-D: Financial and general assumptions
G110: ='ARP_General inputs'!$C$103 -> Input 503-E: Transmission exit charges
G111: ='ARP_General inputs'!$C$107 -> 0
F112: Fixed inputs | G112: ='Fixed inputs'!$C$13 -> Input 504-A: Conversions and time
G113: ='Fixed inputs'!$C$20 -> Input 504-B: Input 101-B: Rounding
G114: ='Fixed inputs'!$C$33 -> Input 504-C: Financial and general assumptions
G115: ='Fixed inputs'!$C$43 -> Input 504-D: Mappings
G116: ='Fixed inputs'!$C$84 -> Input 504-E: Standing charge factors
G117: ='Fixed inputs'!$C$99 -> Input 504-F: Flags
G118: ='Fixed inputs'!$C$141 -> Input 504-G: Identifiers for customer groupings
G119: ='Fixed inputs'!$C$151 -> Input 504-H: Decimal places for error checks
G120: ='Fixed inputs'!$C$155 -> Input 504-I: Map of applicable MPANs
F121: Inputs by customer type | G121: ='Inputs by customer type'!$C$16 -> Section 501-A: Load characteristics
G122: ='Inputs by customer type'!$C$21 -> Section 501-B: Volume forecasts for the charging year
G123: ='Inputs by customer type'!$C$52 -> Section 501-C: Service model asset values
F124: Inputs by network level | G124: ='Inputs by network level'!$C$16 -> Section 502-A: Network and load inputs
G125: ='Inputs by network level'!$C$26 -> Section 502-B: Customer contributions under current connection charging policy
G126: ='Inputs by network level'!$C$34 -> Section 502-C: DRM asset costs
G127: ='Inputs by network level'!$C$38 -> Section 502-D: Peaking probabilities by network level
F128: General inputs | G128: ='General inputs'!$C$16 -> Section 503-A: Inputs by distribution timeband
G129: ='General inputs'!$C$28 -> Section 503-B: LDNO discount inputs
G130: ='General inputs'!$C$38 -> Section 503-C: CDCM target revenue
G131: ='General inputs'!$C$92 -> Section 503-D: Financial and general assumptions
G132: ='General inputs'!$C$98 -> Section 503-E: Transmission exit charges
G133: ='General inputs'!$C$102 -> Section 503-F: Other expenditure
F134: Standing charge factors | G134: ='Standing charge factors'!$C$19 -> Section 504-A: Adjustments to standing charges
F135: Load & loss characteristics | G135: ='Load & loss characteristics'!$C$17 -> Section 505-A: Load characteristics
G136: ='Load & loss characteristics'!$C$25 -> Section 505-B: Loss adjustment factors
G137: ='Load & loss characteristics'!$C$35 -> Section 505-C: Proportion of relevant load going through 132kV/HV direct transformation
G138: ='Load & loss characteristics'!$C$40 -> Section 505-D: Network use factors
G139: ='Load & loss characteristics'!$C$121 -> Section 505-E: User loss factors
F140: Customer contributions | G140: ='Customer contributions'!$C$16 -> Section 506-A: Network use factors
G141: ='Customer contributions'!$C$38 -> Section 506-B: Customer contributions
F142: Volume adjustments | G142: ='Volume adjustments'!$C$15 -> Section 507-A: LDNO discounts
G143: ='Volume adjustments'!$C$55 -> Section 507-B: Volume discounting
F144: Pseudo-load coefficients | G144: ='Pseudo-load coefficients'!$C$18 -> Section 508-A: Flags and hours in timebands
G145: ='Pseudo-load coefficients'!$C$28 -> Section 508-B: Average load by timeband
G146: ='Pseudo-load coefficients'!$C$36 -> Section 508-C: Aggregated groups for pseudo-load coefficients
G147: ='Pseudo-load coefficients'!$C$52 -> Section 508-D: Ratio of coincidence to load factor assuming units evenly spread within time bands, and peak falls in Red period
G148: ='Pseudo-load coefficients'!$C$60 -> Section 508-E: Load characteristics for all customers
G149: ='Pseudo-load coefficients'!$C$65 -> Section 508-F: Aggregated load characteristics for grouped customers
G150: ='Pseudo-load coefficients'!$C$87 -> Section 508-G: Calculation of correction factor
G151: ='Pseudo-load coefficients'!$C$100 -> Section 508-H: Peaking probabilities, by network level
G152: ='Pseudo-load coefficients'!$C$174 -> Section 508-I: Peaking probabilities, by network level and customer type
G153: ='Pseudo-load coefficients'!$C$221 -> Section 508-J: Ratio of coincidence factor to load factor, based on uniform distribution in timebands and peaking probabilities
G154: ='Pseudo-load coefficients'!$C$265 -> Section 508-K: Load coefficient
G155: ='Pseudo-load coefficients'!$C$269 -> Section 508-L: Pseudo load coefficients, by unit rate
F156: System peak demand | G156: ='System peak demand'!$C$18 -> Section 509-A: Common inputs for chargeable load calculations
G157: ='System peak demand'!$C$67 -> Section 509-B: System peak load, by unit rate
G158: ='System peak demand'!$C$138 -> Section 509-C: System peak load, all unit rates
G159: ='System peak demand'!$C$164 -> Section 509-D: Unit rate contributions to chargeable peak load
G160: ='System peak demand'!$C$184 -> Section 509-E: Adjustment of import and exceeded capacity
G161: ='System peak demand'!$C$194 -> Section 509-F: Calculation of LV circuit diversity factor
G162: ='System peak demand'!$C$236 -> Section 509-G: Import/exceeded capacity contribution to system peak
G163: ='System peak demand'!$C$249 -> Section 509-H: Estimated capacity contribution to system peak
G164: ='System peak demand'!$C$266 -> Section 509-I: System peak based on chargeable load
F165: Service model assets | G165: ='Service model assets'!$C$14 -> Section 510-A: Service model notional asset values
F166: Unit costs | G166: ='Unit costs'!$C$19 -> Section 511-A: Financial data
G167: ='Unit costs'!$C$27 -> Section 511-B: Diversity and loss adjustment factors
G168: ='Unit costs'!$C$35 -> Section 511-C: Maximum demand
G169: ='Unit costs'!$C$42 -> Section 511-D: Rerouting matrix
G170: ='Unit costs'!$C$50 -> Section 511-E: Annuitised cost of assets
G171: ='Unit costs'!$C$62 -> Section 511-F: System simultaneous peak load based on charegable units
G172: ='Unit costs'!$C$69 -> Section 511-G: Notional asset values, by network level
G173: ='Unit costs'!$C$80 -> Section 511-H: Other operating costs
G174: ='Unit costs'!$C$92 -> Section 511-I: Other operating costs by network level
G175: ='Unit costs'!$C$104 -> Section 511-J: Notional asset values by network level
G176: ='Unit costs'!$C$110 -> Section 511-K: Unit costs
G177: ='Unit costs'!$C$117 -> Section 511-L: Values used for allocating costs to service models
F178: Initial unit rates | G178: ='Initial unit rates'!$C$13 -> Section 512-A: Inputs for yardstick and unit rate calculations
G179: ='Initial unit rates'!$C$118 -> Section 512-B: Yardstick charges
G180: ='Initial unit rates'!$C$146 -> Section 512-C: Unit rate 1
G181: ='Initial unit rates'!$C$175 -> Section 512-D: Unit rate 2
G182: ='Initial unit rates'!$C$204 -> Section 512-E: Unit rate 3
F183: Service model charges | G183: ='Service model charges'!$C$17 -> Section 513-A: Inputs to service model charge calculation
G184: ='Service model charges'!$C$33 -> Section 513-B: Calculation of other operating expenditure per £ of notional asset value
G185: ='Service model charges'!$C$37 -> Section 513-C: Calculation of service model charges
F186: Unit rate charges | G186: ='Unit rate charges'!$C$19 -> Section 514-A: Initial unit rate 1
G187: ='Unit rate charges'!$C$49 -> Section 514-B: Initial unit rate 2
G188: ='Unit rate charges'!$C$79 -> Section 514-C: Initial unit rate 3
G189: ='Unit rate charges'!$C$109 -> Section 514-D: Standing charge factors
G190: ='Unit rate charges'!$C$124 -> Section 514-E: Contributions to unit rate 1 p/kWh by network level (taking account of standing charges)
G191: ='Unit rate charges'!$C$154 -> Section 514-F: Contributions to unit rate 2 p/kWh by network level (taking account of standing charges)
G192: ='Unit rate charges'!$C$184 -> Section 514-G: Contributions to unit rate 3 p/kWh by network level (taking account of standing charges)
G193: ='Unit rate charges'!$C$214 -> Section 514-H: Unit rates, post application of standing charges
F194: Reactive power charges | G194: ='Reactive power charges'!$C$17 -> Section 515-A: Inputs to reactive power charge calculations
G195: ='Reactive power charges'!$C$120 -> Section 515-B: Yardstick charge (demand)
G196: ='Reactive power charges'!$C$155 -> Section 515-C: Yardstick charge used for generation
G197: ='Reactive power charges'!$C$190 -> Section 515-D: Reactive power charges, all customer categories
G198: ='Reactive power charges'!$C$220 -> Section 515-E: Reactive power charges for applicable customers
F199: Capacity charges | G199: ='Capacity charges'!$C$19 -> Section 516-A: Inputs to capacity charge calculations
G200: ='Capacity charges'!$C$129 -> Section 516-B: Capacity-based charge elements (to be split between capacity & fixed charges)
G201: ='Capacity charges'!$C$159 -> Section 516-C: Exceeded capacity-based charge elements
G202: ='Capacity charges'!$C$189 -> Section 516-D: Capacity charges for eligible customers, by network level
G203: ='Capacity charges'!$C$219 -> Section 516-E: Exceeded capacity charges for eligible customers, by network level
G204: ='Capacity charges'!$C$254 -> Section 516-F: Capacity and exceeded capacity charges
G205: ='Capacity charges'!$C$259 -> Section 516-G: Capacity elements allocated to fixed charges
F206: Fixed charges | G206: ='Fixed charges'!$C$16 -> Section 517-A: Volumes (discounted MPANs & maximum load)
G207: ='Fixed charges'!$C$22 -> Section 517-B: Capacity elements allocated to fixed charges
G208: ='Fixed charges'!$C$52 -> Section 517-C: Service model costs allocated to fixed charges
... 35 more rows

Sheet Named ranges
A1: =MID(CELL("filename",A1),FIND("]",CELL("filename",A1))+1,255) -> Named ranges
A2: =Cover!D21&" - "&Cover!D23 -> SP Distribution - One
A3: =Cover!D2&" - "&Cover!D8&" v"&Cover!D10&" - "&Cover!D19 -> ARP model - Release for charge setting v5 - 2021/22
B5: List of named ranges
F7: charging_year | G7: Year for which charges are being calculated | H7: Cover
F8: charging_year_selected | G8: Charging year currently selected for ARP | H8: ARP_User control
F9: check_decimals | G9: Number of decimal places of precision for in-built model checks | H9: Fixed inputs
F10: days_in_year | G10: Days in the charging year | H10: General inputs
F11: DNO_name | G11: Name of DNO | H11: Cover
F12: hours_in_day | G12: Hours per day | H12: Fixed inputs
F13: hours_in_year | G13: Hours in the charging year | H13: General inputs
F14: hundred | G14: Equal to 100 | H14: Fixed inputs
F15: live_results_bills | G15: Typical bills for selected charging year | H15: Typical bills
F16: live_results_tariffs | G16: Tariffs for selected charging year | H16: Tariff summary
F17: PowerFactor | G17: Power factor, equal to 0.95 | H17: Fixed inputs
F18: results_4_bills | G18: Typical bills for current charging year | H18: Typical bills
F19: results_4_tariffs | G19: Tariffs for current charging year | H19: Tariff summary
F20: results_5_bills | G20: Typical bills for current charging year + 1 | H20: Typical bills
F21: results_5_tariffs | G21: Tariffs for current charging year + 1 | H21: Tariff summary
F22: results_6_bills | G22: Typical bills for current charging year + 2 | H22: Typical bills
F23: results_6_tariffs | G23: Tariffs for current charging year + 2 | H23: Tariff summary
F24: results_7_bills | G24: Typical bills for current charging year + 3 | H24: Typical bills
F25: results_7_tariffs | G25: Tariffs for current charging year + 3 | H25: Tariff summary
F26: results_8_bills | G26: Typical bills for current charging year + 4 | H26: Typical bills
F27: results_8_tariffs | G27: Tariffs for current charging year + 4 | H27: Tariff summary
F28: ten | G28: Equal to 10 | H28: Fixed inputs
F29: thousand | G29: Equal to 1000 | H29: Fixed inputs
F30: year_selection | G30: Index for selected charging year | H30: ARP_User control
B32: End of sheet

Sheet ARP_DNO commentary
A1: =MID(CELL("filename",A1),FIND("]",CELL("filename",A1))+1,255) -> ARP_DNO commentary
A2: =Cover!D21&" - "&Cover!D23 -> SP Distribution - One
A3: =Cover!D2&" - "&Cover!D8&" v"&Cover!D10&" - "&Cover!D19 -> ARP model - Release for charge setting v5 - 2021/22
B5: Description
C7: This sheet contains the DNO's commentary on its forecast of CDCM input data for the four years following the charging year, as required by DCUSA Schedule 20, Paragraph 2.1 (e).
B9: Commentary
F11: There are no published 'ARP_Inputs by customer type' prior to 2021/22 inline with the new DCP268 tariffs hence these entries have been left blank
B20: End of sheet

Sheet ARP_CDCM timebands
A1: =MID(CELL("filename",A1),FIND("]",CELL("filename",A1))+1,255) -> ARP_CDCM timebands
A2: =Cover!D21&" - "&Cover!D23 -> SP Distribution - One
A3: =Cover!D2&" - "&Cover!D8&" v"&Cover!D10&" - "&Cover!D19 -> ARP model - Release for charge setting v5 - 2021/22
B5: Click here to return to model map | G5: Units | H5: Constants | J5: =TRANSPOSE('ARP_User control'!G31:G35) -> 2021/22 | K5: 2022/23 | L5: 2023/24 | M5: 2024/25 | N5: 2025/26
B7: Description
C9: This sheet sets out the expected timebands that the DNO plans to use for each of the five years covered by the
C10: Annual Review Pack, as required by DCUSA Schedule 20, Paragraph 2.1 (f).
B12: CDCM timebands
C14: Distribution time bands
E16: Weekdays (including bank holidays)
F17: Red | G17: time of day | J17: 16:30 - 19:30 | K17: 16:30 - 19:30 | L17: 16:30 - 19:30 | M17: 16:30 - 19:30 | N17: 16:30 - 19:30
F18: Amber | G18: time of day | J18: 08:00 - 16:30 19:30 - 22:30 | K18: 08:00 - 16:30 19:30 - 22:30 | L18: 08:00 - 16:30 19:30 - 22:30 | M18: 08:00 - 16:30 19:30 - 22:30 | N18: 08:00 - 16:30 19:30 - 22:30
F19: Green | G19: time of day | J19: 00:00 - 08:00 22:30 - 00:00 | K19: 00:00 - 08:00 22:30 - 00:00 | L19: 00:00 - 08:00 22:30 - 00:00 | M19: 00:00 - 08:00 22:30 - 00:00 | N19: 00:00 - 08:00 22:30 - 00:00
E21: Weekends
F22: Red | G22: time of day
F23: Amber | G23: time of day | J23: 16:00 - 20:00 | K23: 16:00 - 20:00 | L23: 16:00 - 20:00 | M23: 16:00 - 20:00 | N23: 16:00 - 20:00
F24: Green | G24: time of day | J24: 00:00 - 16:00 20:00 - 00:00 | K24: 00:00 - 16:00 20:00 - 00:00 | L24: 00:00 - 16:00 20:00 - 00:00 | M24: 00:00 - 16:00 20:00 - 00:00 | N24: 00:00 - 16:00 20:00 - 00:00
C26: Special distribution time bands
E28: Weekdays (including bank holidays) Nov to Feb
F29: Black | G29: time of day | J29: 16:30 - 19:30 | K29: 16:30 - 19:30 | L29: 16:30 - 19:30 | M29: 16:30 - 19:30 | N29: 16:30 - 19:30
F30: Yellow | G30: time of day | J30: 08:00 - 16:30 19:30 - 22:30 | K30: 08:00 - 16:30 19:30 - 22:30 | L30: 08:00 - 16:30 19:30 - 22:30 | M30: 08:00 - 16:30 19:30 - 22:30 | N30: 08:00 - 16:30 19:30 - 22:30
F31: Green | G31: time of day | J31: 00:00 - 08:00 22:30 - 00:00 | K31: 00:00 - 08:00 22:30 - 00:00 | L31: 00:00 - 08:00 22:30 - 00:00 | M31: 00:00 - 08:00 22:30 - 00:00 | N31: 00:00 - 08:00 22:30 - 00:00
E33: Weekdays (including bank holidays) Mar to Oct
F34: Black | G34: time of day
F35: Yellow | G35: time of day | J35: 08:00 - 22:30 | K35: 08:00 - 22:30 | L35: 08:00 - 22:30 | M35: 08:00 - 22:30 | N35: 08:00 - 22:30
F36: Green | G36: time of day | J36: 00:00 - 08:00 22:30 - 00:00 | K36: 00:00 - 08:00 22:30 - 00:00 | L36: 00:00 - 08:00 22:30 - 00:00 | M36: 00:00 - 08:00 22:30 - 00:00 | N36: 00:00 - 08:00 22:30 - 00:00
E38: Weekends
F39: Black | G39: time of day
F40: Yellow | G40: time of day | J40: 16:00 - 20:00 | K40: 16:00 - 20:00 | L40: 16:00 - 20:00 | M40: 16:00 - 20:00 | N40: 16:00 - 20:00
F41: Green | G41: time of day | J41: 00:00 - 16:00 20:00 - 00:00 | K41: 00:00 - 16:00 20:00 - 00:00 | L41: 00:00 - 16:00 20:00 - 00:00 | M41: 00:00 - 16:00 20:00 - 00:00 | N41: 00:00 - 16:00 20:00 - 00:00
B43: End of sheet

Sheet ARP_Load characteristics
A1: =MID(CELL("filename",A1),FIND("]",CELL("filename",A1))+1,255) -> ARP_Load characteristics
A2: =Cover!D21&" - "&Cover!D23 -> SP Distribution - One
A3: =Cover!D2&" - "&Cover!D8&" v"&Cover!D10&" - "&Cover!D19 -> ARP model - Release for charge setting v5 - 2021/22
B5: Click here to return to model map | G5: Units | H5: Constants | J5: Domestic Aggregated | K5: Domestic Aggregated (Related MPAN) | L5: Non-Domestic Aggregated | M5: Non-Domestic Aggregated (Related MPAN) | N5: LV Site Specific | O5: LV Sub Site Specific | P5: HV Site Specific | Q5: Unmetered Supplies | R5: LV Generation Aggregated | S5: LV Sub Generation Aggregated | T5: LV Generation Site Specific | U5: LV Generation Site Specific no RP Charge | V5: LV Sub Generation Site Specific | W5: LV Sub Generation Site Specific no RP Charge | X5: HV Generation Site Specific | Y5: HV Generation Site Specific no RP Charge
B7: Description
C9: This sheet presents historic data used to calculate average values for load characteristics, as required by DCUSA Schedule 20, Paragraph 2.1 (g).
C10: Charges for year Y are set in year Y-2 using average load characteristics from the three previous years (i.e. Y-3 to Y-5).
C11: This sheet is for information only, and is not linked to following worksheets.
B13: Years
E15: Years to which input data relate
F16: Year 1 | G16: year | H16: =LEFT(H17,4) - 1 & "/" & RIGHT(H17,2) - 1 -> 2016/17
F17: Year 2 | G17: year | H17: =LEFT(H18,4) - 1 & "/" & RIGHT(H18,2) - 1 -> 2017/18
F18: Year 3 | G18: year | H18: ='ARP_User control'!$G$28 -> 2018/19
B20: Load characteristics
E22: Load factor
F23: =$H$16 -> 2016/17 | G23: % | J23: 0.474 | K23: 0.102 | L23: 0.438 | M23: 0.318 | N23: 0.547 | O23: 0.682 | P23: 0.73 | Q23: 0.46
F24: =$H$17 -> 2017/18 | G24: % | J24: 0.463 | K24: 0.106 | L24: 0.396 | M24: 0.312 | N24: 0.554 | O24: 0.658 | P24: 0.74 | Q24: 0.456
F25: =$H$18 -> 2018/19 | G25: % | J25: 0.409 | K25: 0.091 | L25: 0.416 | M25: 0.33 | N25: 0.567 | O25: 0.678 | P25: 0.736 | Q25: 0.459
F26: Average | G26: % | J26: =AVERAGE(J23:J25) -> 0.4486666667 | K26: =AVERAGE(K23:K25) -> 0.09966666667 | L26: 0.4166666667 | M26: 0.32 | N26: 0.556 | O26: 0.6726666667 | P26: 0.7353333333 | Q26: 0.4583333333
E28: Coincidence factor
F29: =$H$16 -> 2016/17 | G29: % | J29: 0.919 | L29: 0.687 | N29: 0.775 | O29: 0.824 | P29: 0.854 | Q29: 0.933
F30: =$H$17 -> 2017/18 | G30: % | J30: 0.955 | L30: 0.666 | N30: 0.798 | O30: 0.774 | P30: 0.853 | Q30: 0.919
F31: =$H$18 -> 2018/19 | G31: % | J31: 0.822 | L31: 0.64 | N31: 0.778 | O31: 0.758 | P31: 0.829 | Q31: 0.926
F32: Average | G32: % | J32: =AVERAGE(J29:J31) -> 0.8986666667 | L32: =AVERAGE(L29:L31) -> 0.6643333333 | N32: 0.7836666667 | O32: 0.7853333333 | P32: =AVERAGE(P29:P31) -> 0.8453333333 | Q32: 0.926
B34: End of sheet

Sheet ARP_Peaking probabilities
A1: =MID(CELL("filename",A1),FIND("]",CELL("filename",A1))+1,255) -> ARP_Peaking probabilities
A2: =Cover!D21&" - "&Cover!D23 -> SP Distribution - One
A3: =Cover!D2&" - "&Cover!D8&" v"&Cover!D10&" - "&Cover!D19 -> ARP model - Release for charge setting v5 - 2021/22
B5: Click here to return to model map | G5: Units | H5: Constants | J5: Transmission exit | K5: GSPs | N5: EHV | O5: EHV/HV | Q5: HV | R5: HV/LV | S5: LV circuits
B7: Description
C9: This sheet presents historic data used to calculate average values for peaking probabilities, as required by
C10: DCUSA Schedule 20, Paragraph 2.1 (e).
C11: Charges for year Y are set in year Y-2 using average peaking probabilities from the three previous years (i.e. Y-3 to Y-5).
C12: This sheet is for information only, and is not linked to following worksheets.
B14: Years
E16: Years to which input data relate
F17: Year 1 | G17: year | H17: =LEFT(H18,4) - 1 & "/" & RIGHT(H18,2) - 1 -> 2016/17
F18: Year 2 | G18: year | H18: =LEFT(H19,4) - 1 & "/" & RIGHT(H19,2) - 1 -> 2017/18
F19: Year 3 | G19: year | H19: ='ARP_User control'!$G$28 -> 2018/19
B21: Peaking probabilities, by distribution timeband
E23: Red period
F24: =$H$17 -> 2016/17 | G24: % | K24: 0.7607579939 | N24: 0.7607579939 | O24: 0.6971162156 | Q24: 0.6971162156 | R24: 0.6971162156 | S24: 0.6971162156
F25: =$H$18 -> 2017/18 | G25: % | K25: 0.715468337 | N25: 0.715468337 | O25: 0.6162266981 | Q25: 0.6162266981 | R25: 0.6162266981 | S25: 0.6162266981
F26: =$H$19 -> 2018/19 | G26: % | K26: 0.7343323944 | N26: 0.7343323944 | O26: 0.6231442104 | Q26: 0.6231442104 | R26: 0.6231442104 | S26: 0.6231442104
F27: Average | G27: % | K27: =AVERAGE(K24:K26) -> 0.7368529084 | N27: 0.7368529084 | O27: 0.645495708 | Q27: 0.645495708 | R27: 0.645495708 | S27: 0.645495708
E29: Amber period
F30: =$H$17 -> 2016/17 | G30: % | K30: 0.2277765132 | N30: 0.2277765132 | O30: 0.2893723121 | Q30: 0.2893723121 | R30: 0.2893723121 | S30: 0.2893723121
F31: =$H$18 -> 2017/18 | G31: % | K31: 0.283979313 | N31: 0.283979313 | O31: 0.3656328974 | Q31: 0.3656328974 | R31: 0.3656328974 | S31: 0.3656328974
F32: =$H$19 -> 2018/19 | G32: % | K32: 0.2611536508 | N32: 0.2611536508 | O32: 0.3623662274 | Q32: 0.3623662274 | R32: 0.3623662274 | S32: 0.3623662274
F33: Average | G33: % | K33: =AVERAGE(K30:K32) -> 0.2576364923 | N33: 0.2576364923 | O33: 0.3391238123 | Q33: 0.3391238123 | R33: 0.3391238123 | S33: 0.3391238123
E35: Green period
F36: =$H$17 -> 2016/17 | G36: % | K36: 0.0114654929 | N36: 0.0114654929 | O36: 0.01351147227 | Q36: 0.01351147227 | R36: 0.01351147227 | S36: 0.01351147227
F37: =$H$18 -> 2017/18 | G37: % | K37: 0.0005523500547 | N37: 0.0005523500547 | O37: 0.01814040445 | Q37: 0.01814040445 | R37: 0.01814040445 | S37: 0.01814040445
F38: =$H$19 -> 2018/19 | G38: % | K38: 0.004513954795 | N38: 0.004513954795 | O38: 0.01448956213 | Q38: 0.01448956213 | R38: 0.01448956213 | S38: 0.01448956213
F39: Average | G39: % | K39: =AVERAGE(K36:K38) -> 0.00551059925 | N39: 0.00551059925 | O39: 0.01538047962 | Q39: 0.01538047962 | R39: 0.01538047962 | S39: 0.01538047962
E41: Black period
F42: =$H$17 -> 2016/17 | G42: % | K42: 0.7286570096 | N42: 0.7286570096 | O42: 0.6662601725 | Q42: 0.6662601725 | R42: 0.6662601725 | S42: 0.6662601725
F43: =$H$18 -> 2017/18 | G43: % | K43: 0.6331261279 | N43: 0.6331261279 | O43: 0.5750052076 | Q43: 0.5750052076 | R43: 0.5750052076 | S43: 0.5750052076
F44: =$H$19 -> 2018/19 | G44: % | K44: 0.6498702824 | N44: 0.6498702824 | O44: 0.5740780952 | Q44: 0.5740780952 | R44: 0.5740780952 | S44: 0.5740780952
F45: Average | G45: % | K45: =AVERAGE(K42:K44) -> 0.6705511399 | N45: 0.6705511399 | O45: 0.6051144918 | Q45: 0.6051144918 | R45: 0.6051144918 | S45: 0.6051144918
B47: End of sheet

Sheet ARP_User control
A1: =MID(CELL("filename",A1),FIND("]",CELL("filename",A1))+1,255) -> ARP_User control
A2: =Cover!D21&" - "&Cover!D23 -> SP Distribution - One
A3: =Cover!D2&" - "&Cover!D8&" v"&Cover!D10&" - "&Cover!D19 -> ARP model - Release for charge setting v5 - 2021/22
B5: Description
C7: This sheet contains the user interface for the ARP, which is used to select the "live" year used for input data.
C8: It houses the Macro Button which should be pressed to update results for all years of the forecast period.
B10: User interface
C12: Users can select which year of input data is pulled into the model using the yellow cell.
C13: Users should press the "Run all years" macro button to update multi-year results on the 'Tariff summary' and 'Typical bills' sheets.
C15: Inputs for manually running selected year
E17: Year selection | G17: 2021/22
C19: Macro to run all years
B25: Lists
D27: List of years
E28: Year -3 | G28: =LEFT(G29,4) - 1 & "/" & RIGHT(G29,2) - 1 -> 2018/19 | H28: Historic
E29: Year -2 | G29: =LEFT(G30,4) - 1 & "/" & RIGHT(G30,2) - 1 -> 2019/20 | H29: Historic
E30: Year -1 | G30: =LEFT(G31,4) - 1 & "/" & RIGHT(G31,2) - 1 -> 2020/21 | H30: Historic
E31: ="Charging year (" & charging_year &")" -> Charging year (2021/22) | G31: =charging_year -> 2021/22 | H31: Current
E32: Year +1 | G32: =LEFT(G31,4) + 1 & "/" & RIGHT(G31,2) + 1 -> 2022/23 | H32: Forecast
E33: Year +2 | G33: =LEFT(G32,4) + 1 & "/" & RIGHT(G32,2) + 1 -> 2023/24 | H33: Forecast
E34: Year +3 | G34: 2024/25 | H34: Forecast
E35: Year +4 | G35: 2025/26 | H35: Forecast
E36: Year selection (index) | G36: =MATCH(G17,G28:G35) -> 4 | H36: =INDEX(H28:H35,MATCH($G$17,$G$28:$G$35,0)) -> Current
B38: End of sheet

Sheet ARP_Inputs by customer type
A1: =MID(CELL("filename",A1),FIND("]",CELL("filename",A1))+1,255) -> ARP_Inputs by customer type
A2: =Cover!D21&" - "&Cover!D23 -> SP Distribution - One
A3: =Cover!D2&" - "&Cover!D8&" v"&Cover!D10&" - "&Cover!D19 -> ARP model - Release for charge setting v5 - 2021/22
A4: =H530 & IF(H530 = 1, " issue", " issues") &" identified in checks on this sheet" -> 0 issues identified in checks on this sheet
J5: ="Year selected ("& charging_year_selected &")" -> Year selected (2021/22) | L5: =TRANSPOSE('ARP_User control'!G28:H35) -> 2018/19 | M5: 2019/20 | N5: 2020/21 | O5: 2021/22 | P5: 2022/23 | Q5: 2023/24 | R5: 2024/25 | S5: 2025/26
B6: Click here to return to model map | G6: Units | H6: Constants | J6: ='ARP_User control'!$H$36 -> Current | L6: Historic | M6: Historic | N6: Historic | O6: Current | P6: Forecast | Q6: Forecast | R6: Forecast | S6: Forecast | U6: Legal text reference
B8: Description
C10: This sheet sets out inputs by customer type and by year.
C11: DNOs should populate the inputs for the charging year and the four following years.
C12: DNOs can also populate the three years preceding the charging year, but are not obliged to do so.
B14: Load characteristics
C16: =INDEX('Version control'!$H$34:$H$60,MATCH($A$1,'Version control'!$F$34:$F$60,0),1)&"-A: Load factor" -> Input 501-A: Load factor
E18: Load factor | I18: > | U18: Paragraphs 42 (a) and 52
F19: Domestic Aggregated | G19: % | J19: =CHOOSE(year_selection, L19,M19,N19,O19,P19,Q19,R19,S19) -> 0.4486666667 | O19: 0.4486666667 | P19: 0.4486666667 | Q19: 0.4486666667 | R19: 0.4486666667 | S19: 0.4486666667
F20: Domestic Aggregated (Related MPAN) | G20: % | J20: =CHOOSE(year_selection, L20,M20,N20,O20,P20,Q20,R20,S20) -> 0.09966666667 | O20: 0.09966666667 | P20: 0.09966666667 | Q20: 0.09966666667 | R20: 0.09966666667 | S20: 0.09966666667
F21: Non-Domestic Aggregated | G21: % | J21: 0.4166666667 | O21: 0.4166666667 | P21: 0.4166666667 | Q21: 0.4166666667 | R21: 0.4166666667 | S21: 0.4166666667
F22: Non-Domestic Aggregated (Related MPAN) | G22: % | J22: 0.32 | O22: 0.32 | P22: 0.32 | Q22: 0.32 | R22: 0.32 | S22: 0.32
F23: LV Site Specific | G23: % | J23: 0.556 | O23: 0.556 | P23: 0.556 | Q23: 0.556 | R23: 0.556 | S23: 0.556
F24: LV Sub Site Specific | G24: % | J24: 0.6726666667 | O24: 0.6726666667 | P24: 0.6726666667 | Q24: 0.6726666667 | R24: 0.6726666667 | S24: 0.6726666667
F25: HV Site Specific | G25: % | J25: 0.7353333333 | O25: 0.7353333333 | P25: 0.7353333333 | Q25: 0.7353333333 | R25: 0.7353333333 | S25: 0.7353333333
F26: Unmetered Supplies | G26: % | J26: 0.4583333333 | O26: 0.4583333333 | P26: 0.4583333333 | Q26: 0.4583333333 | R26: 0.4583333333 | S26: 0.4583333333
F27: LV Generation Aggregated | G27: %
F28: LV Sub Generation Aggregated | G28: %
F29: LV Generation Site Specific | G29: %
F30: LV Generation Site Specific no RP Charge | G30: %
F31: LV Sub Generation Site Specific | G31: %
F32: LV Sub Generation Site Specific no RP Charge | G32: %
F33: HV Generation Site Specific | G33: %
F34: HV Generation Site Specific no RP Charge | G34: %
C36: =INDEX('Version control'!$H$34:$H$60,MATCH($A$1,'Version control'!$F$34:$F$60,0),1)&"-B: Coincidence factor" -> Input 501-B: Coincidence factor
E38: Coincidence factor | I38: > | U38: Paragraphs 42 (b) and 52
F39: Domestic Aggregated | G39: % | J39: =CHOOSE(year_selection, L39,M39,N39,O39,P39,Q39,R39,S39) -> 0.8986666667 | O39: 0.8986666667 | P39: 0.8986666667 | Q39: 0.8986666667 | R39: 0.8986666667 | S39: 0.8986666667
F40: Domestic Aggregated (Related MPAN) | G40: %
F41: Non-Domestic Aggregated | G41: % | J41: 0.6643333333 | O41: 0.6643333333 | P41: 0.6643333333 | Q41: 0.6643333333 | R41: 0.6643333333 | S41: 0.6643333333
F42: Non-Domestic Aggregated (Related MPAN) | G42: %
F43: LV Site Specific | G43: % | J43: 0.7836666667 | O43: 0.7836666667 | P43: 0.7836666667 | Q43: 0.7836666667 | R43: 0.7836666667 | S43: 0.7836666667
F44: LV Sub Site Specific | G44: % | J44: 0.7853333333 | O44: 0.7853333333 | P44: 0.7853333333 | Q44: 0.7853333333 | R44: 0.7853333333 | S44: 0.7853333333
F45: HV Site Specific | G45: % | J45: 0.8453333333 | O45: 0.8453333333 | P45: 0.8453333333 | Q45: 0.8453333333 | R45: 0.8453333333 | S45: 0.8453333333
F46: Unmetered Supplies | G46: % | J46: 0.926 | O46: 0.926 | P46: 0.926 | Q46: 0.926 | R46: 0.926 | S46: 0.926
F47: LV Generation Aggregated | G47: %
F48: LV Sub Generation Aggregated | G48: %
F49: LV Generation Site Specific | G49: %
F50: LV Generation Site Specific no RP Charge | G50: %
F51: LV Sub Generation Site Specific | G51: %
F52: LV Sub Generation Site Specific no RP Charge | G52: %
F53: HV Generation Site Specific | G53: %
F54: HV Generation Site Specific no RP Charge | G54: %
B56: Volumes
C58: =INDEX('Version control'!$H$34:$H$60,MATCH($A$1,'Version control'!$F$34:$F$60,0),1)&"-C: All-the-way volumes" -> Input 501-C: All-the-way volumes
E60: Rate 1 units | I60: > | U60: Paragraph 52
F61: Domestic Aggregated | G61: MWh | H61: All the way customers | J61: =CHOOSE(year_selection, L61,M61,N61,O61,P61,Q61,R61,S61) -> 728182.6648 | O61: 728182.6648 | P61: 728182.6648 | Q61: 728182.6648 | R61: 728182.6648 | S61: 728182.6648
F62: Domestic Aggregated (Related MPAN) | G62: MWh | H62: All the way customers | J62: 1325.902556 | O62: 1325.902556 | P62: 1325.902556 | Q62: 1325.902556 | R62: 1325.902556 | S62: 1325.902556
F63: Non-Domestic Aggregated | G63: MWh | H63: All the way customers | J63: 187782.1274 | O63: 187782.1274 | P63: 187782.1274 | Q63: 187782.1274 | R63: 187782.1274 | S63: 187782.1274
F64: Non-Domestic Aggregated (Related MPAN) | G64: MWh | H64: All the way customers | J64: 4172.24106 | O64: 4172.24106 | P64: 4172.24106 | Q64: 4172.24106 | R64: 4172.24106 | S64: 4172.24106
F65: LV Site Specific | G65: MWh | H65: All the way customers | J65: 275821.7689 | O65: 275821.7689 | P65: 275821.7689 | Q65: 275821.7689 | R65: 275821.7689 | S65: 275821.7689
F66: LV Sub Site Specific | G66: MWh | H66: All the way customers | J66: 21569.59891 | O66: 21569.59891 | P66: 21569.59891 | Q66: 21569.59891 | R66: 21569.59891 | S66: 21569.59891
F67: HV Site Specific | G67: MWh | H67: All the way customers | J67: 322473.7741 | O67: 322473.7741 | P67: 322473.7741 | Q67: 322473.7741 | R67: 322473.7741 | S67: 322473.7741
F68: Unmetered Supplies | G68: MWh | H68: All the way customers | J68: 13844.28609 | O68: 13844.28609 | P68: 13844.28609 | Q68: 13844.28609 | R68: 13844.28609 | S68: 13844.28609
F69: LV Generation Aggregated | G69: MWh | H69: All the way customers | J69: 139.2145634 | O69: 139.2145634 | P69: 139.2145634 | Q69: 139.2145634 | R69: 139.2145634 | S69: 139.2145634
F70: LV Sub Generation Aggregated | G70: MWh | H70: All the way customers | J70: 2.877628454 | O70: 2.877628454 | P70: 2.877628454 | Q70: 2.877628454 | R70: 2.877628454 | S70: 2.877628454
F71: LV Generation Site Specific | G71: MWh | H71: All the way customers | J71: 6131.38141 | O71: 6131.38141 | P71: 6131.38141 | Q71: 6131.38141 | R71: 6131.38141 | S71: 6131.38141
F72: LV Generation Site Specific no RP Charge | G72: MWh | H72: All the way customers | J72: 0 | O72: 0 | P72: 0 | Q72: 0 | R72: 0 | S72: 0
F73: LV Sub Generation Site Specific | G73: MWh | H73: All the way customers | J73: 144.6141526 | O73: 144.6141526 | P73: 144.6141526 | Q73: 144.6141526 | R73: 144.6141526 | S73: 144.6141526
F74: LV Sub Generation Site Specific no RP Charge | G74: MWh | H74: All the way customers | J74: 0 | O74: 0 | P74: 0 | Q74: 0 | R74: 0 | S74: 0
F75: HV Generation Site Specific | G75: MWh | H75: All the way customers | J75: 116075.8182 | O75: 116075.8182 | P75: 116075.8182 | Q75: 116075.8182 | R75: 116075.8182 | S75: 116075.8182
F76: HV Generation Site Specific no RP Charge | G76: MWh | H76: All the way customers | J76: 0 | O76: 0 | P76: 0 | Q76: 0 | R76: 0 | S76: 0
E78: Rate 2 units
F79: Domestic Aggregated | G79: MWh | H79: All the way customers | J79: =CHOOSE(year_selection, L79,M79,N79,O79,P79,Q79,R79,S79) -> 2586978.352 | O79: 2586978.352 | P79: 2586978.352 | Q79: 2586978.352 | R79: 2586978.352 | S79: 2586978.352
F80: Domestic Aggregated (Related MPAN) | G80: MWh | H80: All the way customers | J80: 24004.86702 | O80: 24004.86702 | P80: 24004.86702 | Q80: 24004.86702 | R80: 24004.86702 | S80: 24004.86702
F81: Non-Domestic Aggregated | G81: MWh | H81: All the way customers | J81: 1017175.554 | O81: 1017175.554 | P81: 1017175.554 | Q81: 1017175.554 | R81: 1017175.554 | S81: 1017175.554
F82: Non-Domestic Aggregated (Related MPAN) | G82: MWh | H82: All the way customers | J82: 25319.41548 | O82: 25319.41548 | P82: 25319.41548 | Q82: 25319.41548 | R82: 25319.41548 | S82: 25319.41548
F83: LV Site Specific | G83: MWh | H83: All the way customers | J83: 1322296.433 | O83: 1322296.433 | P83: 1322296.433 | Q83: 1322296.433 | R83: 1322296.433 | S83: 1322296.433
F84: LV Sub Site Specific | G84: MWh | H84: All the way customers | J84: 101185.049 | O84: 101185.049 | P84: 101185.049 | Q84: 101185.049 | R84: 101185.049 | S84: 101185.049
F85: HV Site Specific | G85: MWh | H85: All the way customers | J85: 1497042.89 | O85: 1497042.89 | P85: 1497042.89 | Q85: 1497042.89 | R85: 1497042.89 | S85: 1497042.89
F86: Unmetered Supplies | G86: MWh | H86: All the way customers | J86: 52546.80809 | O86: 52546.80809 | P86: 52546.80809 | Q86: 52546.80809 | R86: 52546.80809 | S86: 52546.80809
F87: LV Generation Aggregated | G87: MWh | H87: All the way customers | J87: 625.5891527 | O87: 625.5891527 | P87: 625.5891527 | Q87: 625.5891527 | R87: 625.5891527 | S87: 625.5891527
F88: LV Sub Generation Aggregated | G88: MWh | H88: All the way customers | J88: 11.85801479 | O88: 11.85801479 | P88: 11.85801479 | Q88: 11.85801479 | R88: 11.85801479 | S88: 11.85801479
F89: LV Generation Site Specific | G89: MWh | H89: All the way customers | J89: 27525.45625 | O89: 27525.45625 | P89: 27525.45625 | Q89: 27525.45625 | R89: 27525.45625 | S89: 27525.45625
F90: LV Generation Site Specific no RP Charge | G90: MWh | H90: All the way customers | J90: 0 | O90: 0 | P90: 0 | Q90: 0 | R90: 0 | S90: 0
F91: LV Sub Generation Site Specific | G91: MWh | H91: All the way customers | J91: 597.3478309 | O91: 597.3478309 | P91: 597.3478309 | Q91: 597.3478309 | R91: 597.3478309 | S91: 597.3478309
F92: LV Sub Generation Site Specific no RP Charge | G92: MWh | H92: All the way customers | J92: 0 | O92: 0 | P92: 0 | Q92: 0 | R92: 0 | S92: 0
F93: HV Generation Site Specific | G93: MWh | H93: All the way customers | J93: 445212.4393 | O93: 445212.4393 | P93: 445212.4393 | Q93: 445212.4393 | R93: 445212.4393 | S93: 445212.4393
F94: HV Generation Site Specific no RP Charge | G94: MWh | H94: All the way customers | J94: 0 | O94: 0 | P94: 0 | Q94: 0 | R94: 0 | S94: 0
E96: Rate 3 units
F97: Domestic Aggregated | G97: MWh | H97: All the way customers | J97: =CHOOSE(year_selection, L97,M97,N97,O97,P97,Q97,R97,S97) -> 2382458.577 | O97: 2382458.577 | P97: 2382458.577 | Q97: 2382458.577 | R97: 2382458.577 | S97: 2382458.577
F98: Domestic Aggregated (Related MPAN) | G98: MWh | H98: All the way customers | J98: 245208.3312 | O98: 245208.3312 | P98: 245208.3312 | Q98: 245208.3312 | R98: 245208.3312 | S98: 245208.3312
F99: Non-Domestic Aggregated | G99: MWh | H99: All the way customers | J99: 982488.0516 | O99: 982488.0516 | P99: 982488.0516 | Q99: 982488.0516 | R99: 982488.0516 | S99: 982488.0516
F100: Non-Domestic Aggregated (Related MPAN) | G100: MWh | H100: All the way customers | J100: 52561.15803 | O100: 52561.15803 | P100: 52561.15803 | Q100: 52561.15803 | R100: 52561.15803 | S100: 52561.15803
F101: LV Site Specific | G101: MWh | H101: All the way customers | J101: 1154944.241 | O101: 1154944.241 | P101: 1154944.241 | Q101: 1154944.241 | R101: 1154944.241 | S101: 1154944.241
F102: LV Sub Site Specific | G102: MWh | H102: All the way customers | J102: 100898.0161 | O102: 100898.0161 | P102: 100898.0161 | Q102: 100898.0161 | R102: 100898.0161 | S102: 100898.0161
F103: HV Site Specific | G103: MWh | H103: All the way customers | J103: 1602377.032 | O103: 1602377.032 | P103: 1602377.032 | Q103: 1602377.032 | R103: 1602377.032 | S103: 1602377.032
F104: Unmetered Supplies | G104: MWh | H104: All the way customers | J104: 189052.6852 | O104: 189052.6852 | P104: 189052.6852 | Q104: 189052.6852 | R104: 189052.6852 | S104: 189052.6852
F105: LV Generation Aggregated | G105: MWh | H105: All the way customers | J105: 698.1711401 | O105: 698.1711401 | P105: 698.1711401 | Q105: 698.1711401 | R105: 698.1711401 | S105: 698.1711401
F106: LV Sub Generation Aggregated | G106: MWh | H106: All the way customers | J106: 16.00635676 | O106: 16.00635676 | P106: 16.00635676 | Q106: 16.00635676 | R106: 16.00635676 | S106: 16.00635676
F107: LV Generation Site Specific | G107: MWh | H107: All the way customers | J107: 30981.27634 | O107: 30981.27634 | P107: 30981.27634 | Q107: 30981.27634 | R107: 30981.27634 | S107: 30981.27634
F108: LV Generation Site Specific no RP Charge | G108: MWh | H108: All the way customers | J108: 0 | O108: 0 | P108: 0 | Q108: 0 | R108: 0 | S108: 0
F109: LV Sub Generation Site Specific | G109: MWh | H109: All the way customers | J109: 807.2790165 | O109: 807.2790165 | P109: 807.2790165 | Q109: 807.2790165 | R109: 807.2790165 | S109: 807.2790165
F110: LV Sub Generation Site Specific no RP Charge | G110: MWh | H110: All the way customers | J110: 0 | O110: 0 | P110: 0 | Q110: 0 | R110: 0 | S110: 0
F111: HV Generation Site Specific | G111: MWh | H111: All the way customers | J111: 507559.1675 | O111: 507559.1675 | P111: 507559.1675 | Q111: 507559.1675 | R111: 507559.1675 | S111: 507559.1675
F112: HV Generation Site Specific no RP Charge | G112: MWh | H112: All the way customers | J112: 0 | O112: 0 | P112: 0 | Q112: 0 | R112: 0 | S112: 0
E114: MPANs
F115: Domestic Aggregated | G115: MPANs | H115: All the way customers | J115: =CHOOSE(year_selection, L115,M115,N115,O115,P115,Q115,R115,S115) -> 1852569 | O115: 1852569 | P115: 1852569 | Q115: 1852569 | R115: 1852569 | S115: 1852569
F116: Domestic Aggregated (Related MPAN) | G116: MPANs | H116: All the way customers | J116: 100059 | O116: 100059 | P116: 100059 | Q116: 100059 | R116: 100059 | S116: 100059
F117: Non-Domestic Aggregated | G117: MPANs | H117: All the way customers | J117: 125030 | O117: 125030 | P117: 125030 | Q117: 125030 | R117: 125030 | S117: 125030
F118: Non-Domestic Aggregated (Related MPAN) | G118: MPANs | H118: All the way customers | J118: 7441 | O118: 7441 | P118: 7441 | Q118: 7441 | R118: 7441 | S118: 7441
F119: LV Site Specific | G119: MPANs | H119: All the way customers | J119: 10491 | O119: 10491 | P119: 10491 | Q119: 10491 | R119: 10491 | S119: 10491
F120: LV Sub Site Specific | G120: MPANs | H120: All the way customers | J120: 219 | O120: 219 | P120: 219 | Q120: 219 | R120: 219 | S120: 219
F121: HV Site Specific | G121: MPANs | H121: All the way customers | J121: 1257 | O121: 1257 | P121: 1257 | Q121: 1257 | R121: 1257 | S121: 1257
F122: Unmetered Supplies | G122: MPANs | H122: All the way customers | J122: 4868 | O122: 4868 | P122: 4868 | Q122: 4868 | R122: 4868 | S122: 4868
F123: LV Generation Aggregated | G123: MPANs | H123: All the way customers | J123: 167 | O123: 167 | P123: 167 | Q123: 167 | R123: 167 | S123: 167
F124: LV Sub Generation Aggregated | G124: MPANs | H124: All the way customers | J124: 4 | O124: 4 | P124: 4 | Q124: 4 | R124: 4 | S124: 4
F125: LV Generation Site Specific | G125: MPANs | H125: All the way customers | J125: 472 | O125: 472 | P125: 472 | Q125: 472 | R125: 472 | S125: 472
F126: LV Generation Site Specific no RP Charge | G126: MPANs | H126: All the way customers | J126: 0 | O126: 0 | P126: 0 | Q126: 0 | R126: 0 | S126: 0
F127: LV Sub Generation Site Specific | G127: MPANs | H127: All the way customers | J127: 8 | O127: 8 | P127: 8 | Q127: 8 | R127: 8 | S127: 8
F128: LV Sub Generation Site Specific no RP Charge | G128: MPANs | H128: All the way customers | J128: 0 | O128: 0 | P128: 0 | Q128: 0 | R128: 0 | S128: 0
F129: HV Generation Site Specific | G129: MPANs | H129: All the way customers | J129: 255 | O129: 255 | P129: 255 | Q129: 255 | R129: 255 | S129: 255
F130: HV Generation Site Specific no RP Charge | G130: MPANs | H130: All the way customers | J130: 0 | O130: 0 | P130: 0 | Q130: 0 | R130: 0 | S130: 0
E132: Import capacity
F133: Domestic Aggregated | G133: kVA | H133: All the way customers
F134: Domestic Aggregated (Related MPAN) | G134: kVA | H134: All the way customers
F135: Non-Domestic Aggregated | G135: kVA | H135: All the way customers
F136: Non-Domestic Aggregated (Related MPAN) | G136: kVA | H136: All the way customers
F137: LV Site Specific | G137: kVA | H137: All the way customers | J137: =CHOOSE(year_selection, L137,M137,N137,O137,P137,Q137,R137,S137) -> 1465414 | O137: 1465414 | P137: 1465414 | Q137: 1465414 | R137: 1465414 | S137: 1465414
F138: LV Sub Site Specific | G138: kVA | H138: All the way customers | J138: 92670 | O138: 92670 | P138: 92670 | Q138: 92670 | R138: 92670 | S138: 92670
F139: HV Site Specific | G139: kVA | H139: All the way customers | J139: 1282859 | O139: 1282859 | P139: 1282859 | Q139: 1282859 | R139: 1282859 | S139: 1282859
F140: Unmetered Supplies | G140: kVA | H140: All the way customers
F141: LV Generation Aggregated | G141: kVA | H141: All the way customers
F142: LV Sub Generation Aggregated | G142: kVA | H142: All the way customers
F143: LV Generation Site Specific | G143: kVA | H143: All the way customers
F144: LV Generation Site Specific no RP Charge | G144: kVA | H144: All the way customers
F145: LV Sub Generation Site Specific | G145: kVA | H145: All the way customers
F146: LV Sub Generation Site Specific no RP Charge | G146: kVA | H146: All the way customers
F147: HV Generation Site Specific | G147: kVA | H147: All the way customers
F148: HV Generation Site Specific no RP Charge | G148: kVA | H148: All the way customers
E150: Exceeded capacity
F151: Domestic Aggregated | G151: kVA | H151: All the way customers
F152: Domestic Aggregated (Related MPAN) | G152: kVA | H152: All the way customers
F153: Non-Domestic Aggregated | G153: kVA | H153: All the way customers
F154: Non-Domestic Aggregated (Related MPAN) | G154: kVA | H154: All the way customers
F155: LV Site Specific | G155: kVA | H155: All the way customers | J155: =CHOOSE(year_selection, L155,M155,N155,O155,P155,Q155,R155,S155) -> 29539.14 | O155: 29539.14 | P155: 29539.14 | Q155: 29539.14 | R155: 29539.14 | S155: 29539.14
F156: LV Sub Site Specific | G156: kVA | H156: All the way customers | J156: 1042.17 | O156: 1042.17 | P156: 1042.17 | Q156: 1042.17 | R156: 1042.17 | S156: 1042.17
F157: HV Site Specific | G157: kVA | H157: All the way customers | J157: 16267.89 | O157: 16267.89 | P157: 16267.89 | Q157: 16267.89 | R157: 16267.89 | S157: 16267.89
F158: Unmetered Supplies | G158: kVA | H158: All the way customers
F159: LV Generation Aggregated | G159: kVA | H159: All the way customers
F160: LV Sub Generation Aggregated | G160: kVA | H160: All the way customers
F161: LV Generation Site Specific | G161: kVA | H161: All the way customers
F162: LV Generation Site Specific no RP Charge | G162: kVA | H162: All the way customers
F163: LV Sub Generation Site Specific | G163: kVA | H163: All the way customers
F164: LV Sub Generation Site Specific no RP Charge | G164: kVA | H164: All the way customers
F165: HV Generation Site Specific | G165: kVA | H165: All the way customers
F166: HV Generation Site Specific no RP Charge | G166: kVA | H166: All the way customers
E168: Reactive power units
F169: Domestic Aggregated | G169: MVArh | H169: All the way customers
F170: Domestic Aggregated (Related MPAN) | G170: MVArh | H170: All the way customers
F171: Non-Domestic Aggregated | G171: MVArh | H171: All the way customers
F172: Non-Domestic Aggregated (Related MPAN) | G172: MVArh | H172: All the way customers
F173: LV Site Specific | G173: MVArh | H173: All the way customers | J173: =CHOOSE(year_selection, L173,M173,N173,O173,P173,Q173,R173,S173) -> 241920 | O173: 241920 | P173: 241920 | Q173: 241920 | R173: 241920 | S173: 241920
F174: LV Sub Site Specific | G174: MVArh | H174: All the way customers | J174: 19020 | O174: 19020 | P174: 19020 | Q174: 19020 | R174: 19020 | S174: 19020
F175: HV Site Specific | G175: MVArh | H175: All the way customers | J175: 250200 | O175: 250200 | P175: 250200 | Q175: 250200 | R175: 250200 | S175: 250200
F176: Unmetered Supplies | G176: MVArh | H176: All the way customers
F177: LV Generation Aggregated | G177: MVArh | H177: All the way customers
F178: LV Sub Generation Aggregated | G178: MVArh | H178: All the way customers
F179: LV Generation Site Specific | G179: MVArh | H179: All the way customers | J179: =CHOOSE(year_selection, L179,M179,N179,O179,P179,Q179,R179,S179) -> 4452 | O179: 4452 | P179: 4452 | Q179: 4452 | R179: 4452 | S179: 4452
F180: LV Generation Site Specific no RP Charge | G180: MVArh | H180: All the way customers
F181: LV Sub Generation Site Specific | G181: MVArh | H181: All the way customers | J181: =CHOOSE(year_selection, L181,M181,N181,O181,P181,Q181,R181,S181) -> 408 | O181: 408 | P181: 408 | Q181: 408 | R181: 408 | S181: 408
F182: LV Sub Generation Site Specific no RP Charge | G182: MVArh | H182: All the way customers
F183: HV Generation Site Specific | G183: MVArh | H183: All the way customers | J183: =CHOOSE(year_selection, L183,M183,N183,O183,P183,Q183,R183,S183) -> 16464 | O183: 16464 | P183: 16464 | Q183: 16464 | R183: 16464 | S183: 16464
F184: HV Generation Site Specific no RP Charge | G184: MVArh | H184: All the way customers
C186: =INDEX('Version control'!$H$34:$H$60,MATCH($A$1,'Version control'!$F$34:$F$60,0),1)&"-D: LDNO LV volumes" -> Input 501-D: LDNO LV volumes
E188: Rate 1 units | I188: > | U188: Paragraph 52
F189: Domestic Aggregated | G189: MWh | H189: LDNO LV customers | J189: =CHOOSE(year_selection, L189,M189,N189,O189,P189,Q189,R189,S189) -> 13713.32247 | O189: 13713.32247 | P189: 13713.32247 | Q189: 13713.32247 | R189: 13713.32247 | S189: 13713.32247
F190: Domestic Aggregated (Related MPAN) | G190: MWh | H190: LDNO LV customers | J190: 1.398102951 | O190: 1.398102951 | P190: 1.398102951 | Q190: 1.398102951 | R190: 1.398102951 | S190: 1.398102951
F191: Non-Domestic Aggregated | G191: MWh | H191: LDNO LV customers | J191: 601.0432152 | O191: 601.0432152 | P191: 601.0432152 | Q191: 601.0432152 | R191: 601.0432152 | S191: 601.0432152
F192: Non-Domestic Aggregated (Related MPAN) | G192: MWh | H192: LDNO LV customers | J192: 0 | O192: 0 | P192: 0 | Q192: 0 | R192: 0 | S192: 0
F193: LV Site Specific | G193: MWh | H193: LDNO LV customers | J193: 1596.465 | O193: 1596.465 | P193: 1596.465 | Q193: 1596.465 | R193: 1596.465 | S193: 1596.465
F194: LV Sub Site Specific | G194: MWh | H194: LDNO LV customers
F195: HV Site Specific | G195: MWh | H195: LDNO LV customers
F196: Unmetered Supplies | G196: MWh | H196: LDNO LV customers | J196: 20.43003215 | O196: 20.43003215 | P196: 20.43003215 | Q196: 20.43003215 | R196: 20.43003215 | S196: 20.43003215
F197: LV Generation Aggregated | G197: MWh | H197: LDNO LV customers | J197: 0.5702560532 | O197: 0.5702560532 | P197: 0.5702560532 | Q197: 0.5702560532 | R197: 0.5702560532 | S197: 0.5702560532
F198: LV Sub Generation Aggregated | G198: MWh | H198: LDNO LV customers
F199: LV Generation Site Specific | G199: MWh | H199: LDNO LV customers | J199: 0 | O199: 0 | P199: 0 | Q199: 0 | R199: 0 | S199: 0
F200: LV Generation Site Specific no RP Charge | G200: MWh | H200: LDNO LV customers
F201: LV Sub Generation Site Specific | G201: MWh | H201: LDNO LV customers
F202: LV Sub Generation Site Specific no RP Charge | G202: MWh | H202: LDNO LV customers
F203: HV Generation Site Specific | G203: MWh | H203: LDNO LV customers
F204: HV Generation Site Specific no RP Charge | G204: MWh | H204: LDNO LV customers
E206: Rate 2 units
F207: Domestic Aggregated | G207: MWh | H207: LDNO LV customers | J207: =CHOOSE(year_selection, L207,M207,N207,O207,P207,Q207,R207,S207) -> 48809.78109 | O207: 48809.78109 | P207: 48809.78109 | Q207: 48809.78109 | R207: 48809.78109 | S207: 48809.78109
F208: Domestic Aggregated (Related MPAN) | G208: MWh | H208: LDNO LV customers | J208: 25.32965948 | O208: 25.32965948 | P208: 25.32965948 | Q208: 25.32965948 | R208: 25.32965948 | S208: 25.32965948
F209: Non-Domestic Aggregated | G209: MWh | H209: LDNO LV customers | J209: 3253.025245 | O209: 3253.025245 | P209: 3253.025245 | Q209: 3253.025245 | R209: 3253.025245 | S209: 3253.025245
F210: Non-Domestic Aggregated (Related MPAN) | G210: MWh | H210: LDNO LV customers | J210: 0 | O210: 0 | P210: 0 | Q210: 0 | R210: 0 | S210: 0
F211: LV Site Specific | G211: MWh | H211: LDNO LV customers | J211: 7155.507 | O211: 7155.507 | P211: 7155.507 | Q211: 7155.507 | R211: 7155.507 | S211: 7155.507
F212: LV Sub Site Specific | G212: MWh | H212: LDNO LV customers
F213: HV Site Specific | G213: MWh | H213: LDNO LV customers
F214: Unmetered Supplies | G214: MWh | H214: LDNO LV customers | J214: =CHOOSE(year_selection, L214,M214,N214,O214,P214,Q214,R214,S214) -> 273.9606815 | O214: 273.9606815 | P214: 273.9606815 | Q214: 273.9606815 | R214: 273.9606815 | S214: 273.9606815
F215: LV Generation Aggregated | G215: MWh | H215: LDNO LV customers | J215: 2.083030798 | O215: 2.083030798 | P215: 2.083030798 | Q215: 2.083030798 | R215: 2.083030798 | S215: 2.083030798
F216: LV Sub Generation Aggregated | G216: MWh | H216: LDNO LV customers
F217: LV Generation Site Specific | G217: MWh | H217: LDNO LV customers | J217: =CHOOSE(year_selection, L217,M217,N217,O217,P217,Q217,R217,S217) -> 0 | O217: 0 | P217: 0 | Q217: 0 | R217: 0 | S217: 0
F218: LV Generation Site Specific no RP Charge | G218: MWh | H218: LDNO LV customers
F219: LV Sub Generation Site Specific | G219: MWh | H219: LDNO LV customers
... 286 more rows

Sheet ARP_Inputs by network level
A1: =MID(CELL("filename",A1),FIND("]",CELL("filename",A1))+1,255) -> ARP_Inputs by network level
A2: =Cover!D21&" - "&Cover!D23 -> SP Distribution - One
A3: =Cover!D2&" - "&Cover!D8&" v"&Cover!D10&" - "&Cover!D19 -> ARP model - Release for charge setting v5 - 2021/22
A4: =H218 & IF(H218 = 1, " issue", " issues") &" identified in checks on this sheet" -> 0 issues identified in checks on this sheet
J5: ="Year selected ("& charging_year_selected &")" -> Year selected (2021/22) | L5: =TRANSPOSE('ARP_User control'!G28:H35) -> 2018/19 | M5: 2019/20 | N5: 2020/21 | O5: 2021/22 | P5: 2022/23 | Q5: 2023/24 | R5: 2024/25 | S5: 2025/26
B6: Click here to return to model map | G6: Units | H6: Constants | J6: ='ARP_User control'!$H$36 -> Current | L6: Historic | M6: Historic | N6: Historic | O6: Current | P6: Forecast | Q6: Forecast | R6: Forecast | S6: Forecast | U6: Legal text reference
B8: Description
C10: This sheet sets out inputs by network level and by year.
C11: DNOs should populate the inputs for the charging year and the four following years.
C12: DNOs can also populate the three years preceding the charging year, but are not obliged to do so.
B14: Inputs by network level
C16: =INDEX('Version control'!$H$34:$H$60,MATCH($A$1,'Version control'!$F$34:$F$60,0),1)&"-A: Diversity allowance between top and bottom of network level" -> Input 502-A: Diversity allowance between top and bottom of network level
E18: Diversity allowance between top and bottom of network level | I18: > | U18: Paragraphs 26 to 28
F19: Transmission exit | G19: %
F20: GSPs | G20: % | J20: =CHOOSE(year_selection, L20,M20,N20,O20,P20,Q20,R20,S20) -> 0.116 | L20: 0.116 | M20: 0.116 | N20: 0.116 | O20: 0.116 | P20: 0.116 | Q20: 0.116 | R20: 0.116 | S20: 0.116
F21: 132kV | G21: % | J21: =CHOOSE(year_selection, L21,M21,N21,O21,P21,Q21,R21,S21) -> 0 | L21: 0 | N21: 0 | O21: 0 | P21: 0 | Q21: 0 | R21: 0 | S21: 0
F22: 132kV/EHV | G22: %
F23: EHV | G23: % | J23: =CHOOSE(year_selection, L23,M23,N23,O23,P23,Q23,R23,S23) -> 0.13 | L23: 0.13 | M23: 0.13 | N23: 0.13 | O23: 0.13 | P23: 0.13 | Q23: 0.13 | R23: 0.13 | S23: 0.13
F24: EHV/HV | G24: %
F25: 132kV/HV | G25: %
F26: HV | G26: % | J26: =CHOOSE(year_selection, L26,M26,N26,O26,P26,Q26,R26,S26) -> 0.25 | L26: 0.25 | M26: 0.25 | N26: 0.25 | O26: 0.25 | P26: 0.25 | Q26: 0.25 | R26: 0.25 | S26: 0.25
F27: HV/LV | G27: %
F28: LV circuits | G28: %
C30: =INDEX('Version control'!$H$34:$H$60,MATCH($A$1,'Version control'!$F$34:$F$60,0),1)&"-B: Proportion of EHV/HV load going through 132kV/HV direct transformation" -> Input 502-B: Proportion of EHV/HV load going through 132kV/HV direct transformation
E32: Proportion of EHV/HV load going through 132kV/HV direct transformation
F33: Transmission exit | G33: %
F34: GSPs | G34: %
F35: 132kV | G35: %
F36: 132kV/EHV | G36: %
F37: EHV | G37: %
F38: EHV/HV | G38: %
F39: 132kV/HV | G39: % | J39: =CHOOSE(year_selection, L39,M39,N39,O39,P39,Q39,R39,S39) -> 0 | O39: 0 | P39: 0 | Q39: 0 | R39: 0 | S39: 0
F40: HV | G40: %
F41: HV/LV | G41: %
F42: LV circuits | G42: %
C44: =INDEX('Version control'!$H$34:$H$60,MATCH($A$1,'Version control'!$F$34:$F$60,0),1)&"-C: Loss adjustment factors to transmission" -> Input 502-C: Loss adjustment factors to transmission
E46: Loss adjustment factors to transmission | I46: > | U46: Paragraph 47
F47: Transmission exit | G47: scalar
F48: GSPs | G48: scalar | J48: =CHOOSE(year_selection, L48,M48,N48,O48,P48,Q48,R48,S48) -> 1 | L48: 1 | M48: 1 | N48: 1 | O48: 1 | P48: 1 | Q48: 1 | R48: 1 | S48: 1
F49: 132kV | G49: scalar | J49: =CHOOSE(year_selection, L49,M49,N49,O49,P49,Q49,R49,S49) -> 1 | L49: 1 | M49: 1 | N49: 1 | O49: 1 | P49: 1 | Q49: 1 | R49: 1 | S49: 1
F50: 132kV/EHV | G50: scalar | J50: =CHOOSE(year_selection, L50,M50,N50,O50,P50,Q50,R50,S50) -> 1 | L50: 1 | M50: 1 | N50: 1 | O50: 1 | P50: 1 | Q50: 1 | R50: 1 | S50: 1
F51: EHV | G51: scalar | J51: =CHOOSE(year_selection, L51,M51,N51,O51,P51,Q51,R51,S51) -> 1.004 | L51: 1.004 | M51: 1.004 | N51: 1.004 | O51: 1.004 | P51: 1.004 | Q51: 1.004 | R51: 1.004 | S51: 1.004
F52: EHV/HV | G52: scalar | J52: =CHOOSE(year_selection, L52,M52,N52,O52,P52,Q52,R52,S52) -> 1.013 | L52: 1.012 | M52: 1.012 | N52: 1.012 | O52: 1.013 | P52: 1.013 | Q52: 1.013 | R52: 1.013 | S52: 1.013
F53: 132kV/HV | G53: scalar
F54: HV | G54: scalar | J54: =CHOOSE(year_selection, L54,M54,N54,O54,P54,Q54,R54,S54) -> 1.026 | L54: 1.026 | M54: 1.026 | N54: 1.026 | O54: 1.026 | P54: 1.026 | Q54: 1.026 | R54: 1.026 | S54: 1.026
F55: HV/LV | G55: scalar | J55: =CHOOSE(year_selection, L55,M55,N55,O55,P55,Q55,R55,S55) -> 1.044 | L55: 1.045 | M55: 1.044 | N55: 1.044 | O55: 1.044 | P55: 1.044 | Q55: 1.044 | R55: 1.044 | S55: 1.044
F56: LV circuits | G56: scalar | J56: =CHOOSE(year_selection, L56,M56,N56,O56,P56,Q56,R56,S56) -> 1.098 | L56: 1.087 | M56: 1.098 | N56: 1.097 | O56: 1.098 | P56: 1.098 | Q56: 1.098 | R56: 1.098 | S56: 1.098
C58: =INDEX('Version control'!$H$34:$H$60,MATCH($A$1,'Version control'!$F$34:$F$60,0),1)&"-D: Average kVAr by kVA, by network level" -> Input 502-D: Average kVAr by kVA, by network level
E60: Average kVAr by kVA, by network level | I60: > | U60: Paragraphs 50 to 51
F61: Transmission exit | G61: kVAr/ kVA
F62: GSPs | G62: kVAr/ kVA | J62: =CHOOSE(year_selection, L62,M62,N62,O62,P62,Q62,R62,S62) -> 0.2650999464 | L62: 0.1678007582 | M62: 0.1947184756 | N62: 0.2076799941 | O62: 0.2650999464 | P62: 0.2650999464 | Q62: 0.2650999464 | R62: 0.2650999464 | S62: 0.2650999464
F63: 132kV | G63: kVAr/ kVA | J63: 0 | L63: 0 | M63: 0 | N63: 0 | O63: 0 | P63: 0 | Q63: 0 | R63: 0 | S63: 0
F64: 132kV/EHV | G64: kVAr/ kVA | J64: 0 | L64: 0 | M64: 0 | N64: 0 | O64: 0 | P64: 0 | Q64: 0 | R64: 0 | S64: 0
F65: EHV | G65: kVAr/ kVA | J65: 0.2650999464 | L65: 0.1678007582 | M65: 0.1947184756 | N65: 0.2076799941 | O65: 0.2650999464 | P65: 0.2650999464 | Q65: 0.2650999464 | R65: 0.2650999464 | S65: 0.2650999464
F66: EHV/HV | G66: kVAr/ kVA | J66: 0.2169056659 | L66: 0.2746939851 | M66: 0.2076026928 | N66: 0.224933719 | O66: 0.2169056659 | P66: 0.2169056659 | Q66: 0.2169056659 | R66: 0.2169056659 | S66: 0.2169056659
F67: 132kV/HV | G67: kVAr/ kVA | J67: 0 | L67: 0.2746939851 | M67: 0.2076026928 | N67: 0.224933719 | O67: 0 | P67: 0 | Q67: 0 | R67: 0 | S67: 0
F68: HV | G68: kVAr/ kVA | J68: 0.2169056659 | L68: 0.2746939851 | M68: 0.2076026928 | N68: 0.224933719 | O68: 0.2169056659 | P68: 0.2169056659 | Q68: 0.2169056659 | R68: 0.2169056659 | S68: 0.2169056659
F69: HV/LV | G69: kVAr/ kVA | J69: 0.2169056659 | L69: 0.2746939851 | M69: 0.2076026928 | N69: 0.224933719 | O69: 0.2169056659 | P69: 0.2169056659 | Q69: 0.2169056659 | R69: 0.2169056659 | S69: 0.2169056659
F70: LV circuits | G70: kVAr/ kVA | J70: 0.2169056659 | L70: 0.2746939851 | M70: 0.2076026928 | N70: 0.224933719 | O70: 0.2169056659 | P70: 0.2169056659 | Q70: 0.2169056659 | R70: 0.2169056659 | S70: 0.2169056659
C72: =INDEX('Version control'!$H$34:$H$60,MATCH($A$1,'Version control'!$F$34:$F$60,0),1)&"-E: Customer contributions under current connection charging policy" -> Input 502-E: Customer contributions under current connection charging policy
D74: Customer contributions under current connection charging policy | I74: > | U74: Paragraphs 29 to 31
E75: LV network
F76: Transmission exit | G76: %
F77: GSPs | G77: %
F78: 132kV | G78: % | J78: =CHOOSE(year_selection, L78,M78,N78,O78,P78,Q78,R78,S78) -> 0 | L78: 0 | M78: 0 | N78: 0 | O78: 0 | P78: 0 | Q78: 0 | R78: 0 | S78: 0
F79: 132kV/EHV | G79: % | J79: 0 | L79: 0 | M79: 0 | N79: 0 | O79: 0 | P79: 0 | Q79: 0 | R79: 0 | S79: 0
F80: EHV | G80: % | J80: 0 | L80: 0 | M80: 0 | N80: 0 | O80: 0 | P80: 0 | Q80: 0 | R80: 0 | S80: 0
F81: EHV/HV | G81: % | J81: 0 | L81: 0 | M81: 0 | N81: 0 | O81: 0 | P81: 0 | Q81: 0 | R81: 0 | S81: 0
F82: 132kV/HV | G82: % | J82: 0 | L82: 0 | M82: 0 | N82: 0 | O82: 0 | P82: 0 | Q82: 0 | R82: 0 | S82: 0
F83: HV | G83: % | J83: 0.2006519784 | L83: 0.2006519784 | M83: 0.2006519784 | N83: 0.2006519784 | O83: 0.2006519784 | P83: 0.2006519784 | Q83: 0.2006519784 | R83: 0.2006519784 | S83: 0.2006519784
F84: HV/LV | G84: % | J84: 0.2696850394 | L84: 0.2696850394 | M84: 0.2696850394 | N84: 0.2696850394 | O84: 0.2696850394 | P84: 0.2696850394 | Q84: 0.2696850394 | R84: 0.2696850394 | S84: 0.2696850394
F85: LV circuits | G85: % | J85: 0.9237177393 | L85: 0.9237177393 | M85: 0.9237177393 | N85: 0.9237177393 | O85: 0.9237177393 | P85: 0.9237177393 | Q85: 0.9237177393 | R85: 0.9237177393 | S85: 0.9237177393
E86: LV substation
F87: Transmission exit | G87: %
F88: GSPs | G88: %
F89: 132kV | G89: % | J89: =CHOOSE(year_selection, L89,M89,N89,O89,P89,Q89,R89,S89) -> 0 | L89: 0 | M89: 0 | N89: 0 | O89: 0 | P89: 0 | Q89: 0 | R89: 0 | S89: 0
F90: 132kV/EHV | G90: % | J90: 0 | L90: 0 | M90: 0 | N90: 0 | O90: 0 | P90: 0 | Q90: 0 | R90: 0 | S90: 0
F91: EHV | G91: % | J91: 0 | L91: 0 | M91: 0 | N91: 0 | O91: 0 | P91: 0 | Q91: 0 | R91: 0 | S91: 0
F92: EHV/HV | G92: % | J92: 0 | L92: 0 | M92: 0 | N92: 0 | O92: 0 | P92: 0 | Q92: 0 | R92: 0 | S92: 0
F93: 132kV/HV | G93: % | J93: 0 | L93: 0 | M93: 0 | N93: 0 | O93: 0 | P93: 0 | Q93: 0 | R93: 0 | S93: 0
F94: HV | G94: % | J94: 0.2006519784 | L94: 0.2006519784 | M94: 0.2006519784 | N94: 0.2006519784 | O94: 0.2006519784 | P94: 0.2006519784 | Q94: 0.2006519784 | R94: 0.2006519784 | S94: 0.2006519784
F95: HV/LV | G95: % | J95: 0.2696850394 | L95: 0.2696850394 | M95: 0.2696850394 | N95: 0.2696850394 | O95: 0.2696850394 | P95: 0.2696850394 | Q95: 0.2696850394 | R95: 0.2696850394 | S95: 0.2696850394
F96: LV circuits | G96: %
E97: HV network
F98: Transmission exit | G98: %
F99: GSPs | G99: %
F100: 132kV | G100: % | J100: =CHOOSE(year_selection, L100,M100,N100,O100,P100,Q100,R100,S100) -> 0 | L100: 0 | M100: 0 | N100: 0 | O100: 0 | P100: 0 | Q100: 0 | R100: 0 | S100: 0
F101: 132kV/EHV | G101: % | J101: 0 | L101: 0 | M101: 0 | N101: 0 | O101: 0 | P101: 0 | Q101: 0 | R101: 0 | S101: 0
F102: EHV | G102: % | J102: 0.03110047847 | L102: 0.03110047847 | M102: 0.03110047847 | N102: 0.03110047847 | O102: 0.03110047847 | P102: 0.03110047847 | Q102: 0.03110047847 | R102: 0.03110047847 | S102: 0.03110047847
F103: EHV/HV | G103: % | J103: 0.1421225937 | L103: 0.1421225937 | M103: 0.1421225937 | N103: 0.1421225937 | O103: 0.1421225937 | P103: 0.1421225937 | Q103: 0.1421225937 | R103: 0.1421225937 | S103: 0.1421225937
F104: 132kV/HV | G104: % | J104: 0 | L104: 0 | M104: 0 | N104: 0 | O104: 0 | P104: 0 | Q104: 0 | R104: 0 | S104: 0
F105: HV | G105: % | J105: 0.4514669514 | L105: 0.4514669514 | M105: 0.4514669514 | N105: 0.4514669514 | O105: 0.4514669514 | P105: 0.4514669514 | Q105: 0.4514669514 | R105: 0.4514669514 | S105: 0.4514669514
F106: HV/LV | G106: %
F107: LV circuits | G107: %
E108: HV substation
F109: Transmission exit | G109: %
F110: GSPs | G110: %
F111: 132kV | G111: % | J111: =CHOOSE(year_selection, L111,M111,N111,O111,P111,Q111,R111,S111) -> 0 | L111: 0 | M111: 0 | N111: 0 | O111: 0 | P111: 0 | Q111: 0 | R111: 0 | S111: 0
F112: 132kV/EHV | G112: % | J112: 0 | L112: 0 | M112: 0 | N112: 0 | O112: 0 | P112: 0 | Q112: 0 | R112: 0 | S112: 0
F113: EHV | G113: % | J113: 0.03110047847 | L113: 0.03110047847 | M113: 0.03110047847 | N113: 0.03110047847 | O113: 0.03110047847 | P113: 0.03110047847 | Q113: 0.03110047847 | R113: 0.03110047847 | S113: 0.03110047847
F114: EHV/HV | G114: % | J114: 0.1421225937 | L114: 0.1421225937 | M114: 0.1421225937 | N114: 0.1421225937 | O114: 0.1421225937 | P114: 0.1421225937 | Q114: 0.1421225937 | R114: 0.1421225937 | S114: 0.1421225937
F115: 132kV/HV | G115: %
F116: HV | G116: %
F117: HV/LV | G117: %
F118: LV circuits | G118: %
C120: =INDEX('Version control'!$H$34:$H$60,MATCH($A$1,'Version control'!$F$34:$F$60,0),1)&"-F: Gross asset cost by network level" -> Input 502-F: Gross asset cost by network level
E122: Gross asset cost by network level
F123: Transmission exit | G123: £
F124: GSPs | G124: £
F125: 132kV | G125: £ | J125: =CHOOSE(year_selection, L125,M125,N125,O125,P125,Q125,R125,S125) -> 0 | L125: 0 | N125: 0 | O125: 0 | P125: 0 | Q125: 0 | R125: 0 | S125: 0
F126: 132kV/EHV | G126: £ | J126: 0 | L126: 0 | N126: 0 | O126: 0 | P126: 0 | Q126: 0 | R126: 0 | S126: 0
F127: EHV | G127: £ | J127: 115483848.7 | L127: 106060547.9 | M127: 109374940 | N127: 112394587.6 | O127: 115483848.7 | P127: 119147095.3 | Q127: 121708719.7 | R127: 124142774.4 | S127: 126625487.6
F128: EHV/HV | G128: £ | J128: 29592148.8 | L128: 27177475.91 | M128: 28026772.03 | N128: 28800541.35 | O128: 29592148.8 | P128: 30530837.1 | Q128: 31187240.34 | R128: 31810954.45 | S128: 32447137.1
F129: 132kV/HV | G129: £ | J129: 0 | L129: 0 | N129: 0 | O129: 0 | P129: 0 | Q129: 0 | R129: 0 | S129: 0
F130: HV | G130: £ | J130: 127306253.1 | L130: 116918262.7 | M130: 120571958.4 | N130: 123900735.7 | O130: 127306253.1 | P130: 131344516.5 | Q130: 134168381.6 | R130: 136851617.2 | S130: 139588492.8
F131: HV/LV | G131: £ | J131: 31995666.14 | L131: 29384870.01 | M131: 30303147.2 | N131: 31139763.19 | O131: 31995666.14 | P131: 33010596.08 | Q131: 33720313.34 | R131: 34394686.42 | S131: 35082540.74
F132: LV circuits | G132: £ | J132: 53817722.03 | L132: 49426280.39 | M132: 50970851.65 | N132: 52378066.2 | O132: 53817722.03 | P132: 55524866.26 | Q132: 56718633.14 | R132: 57852949.98 | S132: 59009942.7
C134: =INDEX('Version control'!$H$34:$H$60,MATCH($A$1,'Version control'!$F$34:$F$60,0),1)&"-G: Peaking probabilities, by timeband & network level" -> Input 502-G: Peaking probabilities, by timeband & network level
C136: Red, Amber & Green peaking probabilities must sum to 100%, except for unused network levels, which should sum to 0%
E138: Red peaking probabilities, by network level | I138: > | U138: Paragraphs 48 to 49
F139: Transmission exit | G139: %
F140: GSPs | G140: % | J140: =CHOOSE(year_selection, L140,M140,N140,O140,P140,Q140,R140,S140) -> 0.7368529084 | L140: 0.7578947736 | M140: 0.7507179652 | N140: 0.7295815503 | O140: 0.7368529084 | P140: 0.7368529084 | Q140: 0.7368529084 | R140: 0.7368529084 | S140: 0.7368529084
F141: 132kV | G141: % | J141: 0
F142: 132kV/EHV | G142: % | J142: 0
F143: EHV | G143: % | J143: 0.7368529084 | L143: 0.7578947736 | M143: 0.7507179652 | N143: 0.7295815503 | O143: 0.7368529084 | P143: 0.7368529084 | Q143: 0.7368529084 | R143: 0.7368529084 | S143: 0.7368529084
F144: EHV/HV | G144: % | J144: 0.645495708 | L144: 0.5580463552 | M144: 0.6143873287 | N144: 0.6262303011 | O144: 0.645495708 | P144: 0.645495708 | Q144: 0.645495708 | R144: 0.645495708 | S144: 0.645495708
F145: 132kV/HV | G145: % | J145: 0
F146: HV | G146: % | J146: 0.645495708 | L146: 0.5580463552 | M146: 0.6143873287 | N146: 0.6262303011 | O146: 0.645495708 | P146: 0.645495708 | Q146: 0.645495708 | R146: 0.645495708 | S146: 0.645495708
F147: HV/LV | G147: % | J147: 0.645495708 | L147: 0.5580463552 | M147: 0.6143873287 | N147: 0.6262303011 | O147: 0.645495708 | P147: 0.645495708 | Q147: 0.645495708 | R147: 0.645495708 | S147: 0.645495708
F148: LV circuits | G148: % | J148: 0.645495708 | L148: 0.5580463552 | M148: 0.6143873287 | N148: 0.6262303011 | O148: 0.645495708 | P148: 0.645495708 | Q148: 0.645495708 | R148: 0.645495708 | S148: 0.645495708
E150: Amber peaking probabilities, by network level | I150: > | U150: Paragraphs 48 to 49
F151: Transmission exit | G151: %
F152: GSPs | G152: % | J152: =CHOOSE(year_selection, L152,M152,N152,O152,P152,Q152,R152,S152) -> 0.2576364923 | L152: 0.2315781523 | M152: 0.2416657159 | N152: 0.2643894938 | O152: 0.2576364923 | P152: 0.2576364923 | Q152: 0.2576364923 | R152: 0.2576364923 | S152: 0.2576364923
F153: 132kV | G153: % | J153: 0
F154: 132kV/EHV | G154: % | J154: 0
F155: EHV | G155: % | J155: 0.2576364923 | L155: 0.2315781523 | M155: 0.2416657159 | N155: 0.2643894938 | O155: 0.2576364923 | P155: 0.2576364923 | Q155: 0.2576364923 | R155: 0.2576364923 | S155: 0.2576364923
F156: EHV/HV | G156: % | J156: 0.3391238123 | L156: 0.3902622884 | M156: 0.3502680251 | N156: 0.3525531621 | O156: 0.3391238123 | P156: 0.3391238123 | Q156: 0.3391238123 | R156: 0.3391238123 | S156: 0.3391238123
F157: 132kV/HV | G157: % | J157: 0
F158: HV | G158: % | J158: 0.3391238123 | L158: 0.3902622884 | M158: 0.3502680251 | N158: 0.3525531621 | O158: 0.3391238123 | P158: 0.3391238123 | Q158: 0.3391238123 | R158: 0.3391238123 | S158: 0.3391238123
F159: HV/LV | G159: % | J159: 0.3391238123 | L159: 0.3902622884 | M159: 0.3502680251 | N159: 0.3525531621 | O159: 0.3391238123 | P159: 0.3391238123 | Q159: 0.3391238123 | R159: 0.3391238123 | S159: 0.3391238123
F160: LV circuits | G160: % | J160: 0.3391238123 | L160: 0.3902622884 | M160: 0.3502680251 | N160: 0.3525531621 | O160: 0.3391238123 | P160: 0.3391238123 | Q160: 0.3391238123 | R160: 0.3391238123 | S160: 0.3391238123
E162: Green peaking probabilities, by network level | I162: > | U162: Paragraphs 48 to 49
F163: Transmission exit | G163: %
F164: GSPs | G164: % | J164: =CHOOSE(year_selection, L164,M164,N164,O164,P164,Q164,R164,S164) -> 0.00551059925 | L164: 0.01052707404 | M164: 0.007616318911 | N164: 0.006028955883 | O164: 0.00551059925 | P164: 0.00551059925 | Q164: 0.00551059925 | R164: 0.00551059925 | S164: 0.00551059925
F165: 132kV | G165: % | J165: 0
F166: 132kV/EHV | G166: % | J166: 0
F167: EHV | G167: % | J167: 0.00551059925 | L167: 0.01052707404 | M167: 0.007616318911 | N167: 0.006028955883 | O167: 0.00551059925 | P167: 0.00551059925 | Q167: 0.00551059925 | R167: 0.00551059925 | S167: 0.00551059925
F168: EHV/HV | G168: % | J168: 0.01538047962 | L168: 0.05081428224 | M168: 0.03534464619 | N168: 0.02121653675 | O168: 0.01538047962 | P168: 0.01538047962 | Q168: 0.01538047962 | R168: 0.01538047962 | S168: 0.01538047962
F169: 132kV/HV | G169: % | J169: 0
F170: HV | G170: % | J170: 0.01538047962 | L170: 0.05081428224 | M170: 0.03534464619 | N170: 0.02121653675 | O170: 0.01538047962 | P170: 0.01538047962 | Q170: 0.01538047962 | R170: 0.01538047962 | S170: 0.01538047962
F171: HV/LV | G171: % | J171: 0.01538047962 | L171: 0.05081428224 | M171: 0.03534464619 | N171: 0.02121653675 | O171: 0.01538047962 | P171: 0.01538047962 | Q171: 0.01538047962 | R171: 0.01538047962 | S171: 0.01538047962
F172: LV circuits | G172: % | J172: 0.01538047962 | L172: 0.05081428224 | M172: 0.03534464619 | N172: 0.02121653675 | O172: 0.01538047962 | P172: 0.01538047962 | Q172: 0.01538047962 | R172: 0.01538047962 | S172: 0.01538047962
E174: Black peaking probabilities, by network level
F175: Transmission exit | G175: %
F176: GSPs | G176: % | J176: =CHOOSE(year_selection, L176,M176,N176,O176,P176,Q176,R176,S176) -> 0.6705511399 | L176: 0.7084970707 | M176: 0.6966136203 | N176: 0.6722216084 | O176: 0.6705511399 | P176: 0.6705511399 | Q176: 0.6705511399 | R176: 0.6705511399 | S176: 0.6705511399
F177: 132kV | G177: % | J177: 0
F178: 132kV/EHV | G178: % | J178: 0
F179: EHV | G179: % | J179: 0.6705511399 | L179: 0.7084970707 | M179: 0.6966136203 | N179: 0.6722216084 | O179: 0.6705511399 | P179: 0.6705511399 | Q179: 0.6705511399 | R179: 0.6705511399 | S179: 0.6705511399
F180: EHV/HV | G180: % | J180: 0.6051144918 | L180: 0.4984479967 | M180: 0.5753396577 | N180: 0.5952414596 | O180: 0.6051144918 | P180: 0.6051144918 | Q180: 0.6051144918 | R180: 0.6051144918 | S180: 0.6051144918
F181: 132kV/HV | G181: % | J181: 0
F182: HV | G182: % | J182: 0.6051144918 | L182: 0.4984479967 | M182: 0.5753396577 | N182: 0.5952414596 | O182: 0.6051144918 | P182: 0.6051144918 | Q182: 0.6051144918 | R182: 0.6051144918 | S182: 0.6051144918
F183: HV/LV | G183: % | J183: 0.6051144918 | L183: 0.4984479967 | M183: 0.5753396577 | N183: 0.5952414596 | O183: 0.6051144918 | P183: 0.6051144918 | Q183: 0.6051144918 | R183: 0.6051144918 | S183: 0.6051144918
F184: LV circuits | G184: % | J184: 0.6051144918 | L184: 0.4984479967 | M184: 0.5753396577 | N184: 0.5952414596 | O184: 0.6051144918 | P184: 0.6051144918 | Q184: 0.6051144918 | R184: 0.6051144918 | S184: 0.6051144918
B186: Checks
C188: Checks are not run for historic years, for which DNOs are not obliged to enter inputs.
E190: Check for error values | G190: number of issues | H190: =SUM(IF(ISERROR(H18:T185), 1)) -> 0
E192: Check that loss adjustment factor = 1 at grid supply point | G192: number of issues | H192: =SUM(L192:S192) -> 0 | O192: =IF(O48 = 1, 0, 1) -> 0 | P192: =IF(P48 = 1, 0, 1) -> 0 | Q192: =IF(Q48 = 1, 0, 1) -> 0 | R192: =IF(R48 = 1, 0, 1) -> 0 | S192: =IF(S48 = 1, 0, 1) -> 0
E194: Peaking probabilities check - General
F195: Transmission exit | G195: number of issues
F196: GSPs | G196: number of issues | H196: =SUM(L196:S196) -> 0 | O196: =IF(ABS(SUM(O140,O152,O164) - 1) < 10^-check_decimals,0,1) -> 0 | P196: =IF(ABS(SUM(P140,P152,P164) - 1) < 10^-check_decimals,0,1) -> 0 | Q196: =IF(ABS(SUM(Q140,Q152,Q164) - 1) < 10^-check_decimals,0,1) -> 0 | R196: =IF(ABS(SUM(R140,R152,R164) - 1) < 10^-check_decimals,0,1) -> 0 | S196: =IF(ABS(SUM(S140,S152,S164) - 1) < 10^-check_decimals,0,1) -> 0
F197: 132kV | G197: number of issues
F198: 132kV/EHV | G198: number of issues
F199: EHV | G199: number of issues | H199: 0 | O199: =IF(ABS(SUM(O143,O155,O167) - 1) < 10^-check_decimals,0,1) -> 0 | P199: 0 | Q199: 0 | R199: 0 | S199: 0
F200: EHV/HV | G200: number of issues | H200: 0 | O200: 0 | P200: 0 | Q200: 0 | R200: 0 | S200: 0
F201: 132kV/HV | G201: number of issues
F202: HV | G202: number of issues | H202: 0 | O202: =IF(ABS(SUM(O146,O158,O170) - 1) < 10^-check_decimals,0,1) -> 0 | P202: 0 | Q202: 0 | R202: 0 | S202: 0
F203: HV/LV | G203: number of issues | H203: 0 | O203: 0 | P203: 0 | Q203: 0 | R203: 0 | S203: 0
F204: LV circuits | G204: number of issues | H204: =SUM(L204:S204) -> 0 | O204: 0 | P204: 0 | Q204: 0 | R204: 0 | S204: 0
E206: Peaking probabilities check - 132kV/HV
F207: Transmission exit | G207: number of issues
F208: GSPs | G208: number of issues
F209: 132kV | G209: number of issues | H209: =SUM(L209:S209) -> 0 | O209: =IF(OR(ABS(SUM(O141,O153,O165) - 1) < 10^-check_decimals, ABS(SUM(O141,O153,O165) - 0) < 10^-check_decimals),0,1) -> 0 | P209: 0 | Q209: 0 | R209: 0 | S209: 0
F210: 132kV/EHV | G210: number of issues | H210: =SUM(L210:S210) -> 0 | O210: 0 | P210: 0 | Q210: 0 | R210: 0 | S210: 0
F211: EHV | G211: number of issues
F212: EHV/HV | G212: number of issues
F213: 132kV/HV | G213: number of issues | H213: =SUM(L213:S213) -> 0 | O213: =IF(OR(ABS(SUM(O145,O157,O169) - 1) < 10^-check_decimals, ABS(SUM(O145,O157,O169) - 0) < 10^-check_decimals),0,1) -> 0 | P213: =IF(OR(ABS(SUM(P145,P157,P169) - 1) < 10^-check_decimals, ABS(SUM(P145,P157,P169) - 0) < 10^-check_decimals),0,1) -> 0 | Q213: =IF(OR(ABS(SUM(Q145,Q157,Q169) - 1) < 10^-check_decimals, ABS(SUM(Q145,Q157,Q169) - 0) < 10^-check_decimals),0,1) -> 0 | R213: =IF(OR(ABS(SUM(R145,R157,R169) - 1) < 10^-check_decimals, ABS(SUM(R145,R157,R169) - 0) < 10^-check_decimals),0,1) -> 0 | S213: =IF(OR(ABS(SUM(S145,S157,S169) - 1) < 10^-check_decimals, ABS(SUM(S145,S157,S169) - 0) < 10^-check_decimals),0,1) -> 0
F214: HV | G214: number of issues
F215: HV/LV | G215: number of issues
F216: LV circuits | G216: number of issues
E218: Summary of checks | G218: number of issues | H218: =SUM(H190,H192,H195:H204,H207:H216) -> 0
B220: End of sheet

Sheet ARP_General inputs
A1: =MID(CELL("filename",A1),FIND("]",CELL("filename",A1))+1,255) -> ARP_General inputs
A2: =Cover!D21&" - "&Cover!D23 -> SP Distribution - One
A3: =Cover!D2&" - "&Cover!D8&" v"&Cover!D10&" - "&Cover!D19 -> ARP model - Release for charge setting v5 - 2021/22
A4: =H124 & IF(H124 = 1, " issue", " issues") &" identified in checks on this sheet" -> 0 issues identified in checks on this sheet
J5: ="Year selected ("& charging_year_selected &")" -> Year selected (2021/22) | L5: =TRANSPOSE('ARP_User control'!G28:H35) -> 2018/19 | M5: 2019/20 | N5: 2020/21 | O5: 2021/22 | P5: 2022/23 | Q5: 2023/24 | R5: 2024/25 | S5: 2025/26
B6: Click here to return to model map | G6: Units | H6: Constants | J6: ='ARP_User control'!$H$36 -> Current | L6: Historic | M6: Historic | N6: Historic | O6: Current | P6: Forecast | Q6: Forecast | R6: Forecast | S6: Forecast | U6: Legal text reference
B8: Description
C10: This sheet sets out general inputs by year.
C11: DNOs should populate the inputs for the charging year and the four following years.
C12: DNOs can also populate the three years preceding the charging year, but are not obliged to do so.
B14: General inputs
C16: =INDEX('Version control'!$H$34:$H$60,MATCH($A$1,'Version control'!$F$34:$F$60,0),1)&"-A: Split of hours by distribution timeband" -> Input 503-A: Split of hours by distribution timeband
E18: Typical annual hours by special distribution time band | I18: > | U18: Paragraphs 40 to 41
F19: Black | G19: hours per year | J19: =CHOOSE(year_selection, L19,M19,N19,O19,P19,Q19,R19,S19) -> 258 | L19: 258 | M19: 258 | N19: 255 | O19: 258 | P19: 258 | Q19: 261 | R19: 258 | S19: 255
F20: Yellow | G20: hours per year | J20: =CHOOSE(year_selection, L20,M20,N20,O20,P20,Q20,R20,S20) -> 3942.5 | L20: 3932 | M20: 3957 | N20: 3945.5 | O20: 3942.5 | P20: 3942.5 | Q20: 3933 | R20: 3942.5 | S20: 3945.5
F21: Green | G21: hours per year | J21: =CHOOSE(year_selection, L21,M21,N21,O21,P21,Q21,R21,S21) -> 4559.5 | L21: 4570 | M21: 4569 | N21: 4559.5 | O21: 4559.5 | P21: 4559.5 | Q21: 4590 | R21: 4559.5 | S21: 4559.5
E23: Typical annual hours by distribution time band | I23: > | U23: Paragraphs 40 to 41
F24: Red | G24: hours per year | J24: =CHOOSE(year_selection, L24,M24,N24,O24,P24,Q24,R24,S24) -> 783 | L24: 780 | M24: 786 | N24: 783 | O24: 783 | P24: 783 | Q24: 780 | R24: 783 | S24: 783
F25: Amber | G25: hours per year | J25: =CHOOSE(year_selection, L25,M25,N25,O25,P25,Q25,R25,S25) -> 3417.5 | L25: 3410 | M25: 3429 | N25: 3417.5 | O25: 3417.5 | P25: 3417.5 | Q25: 3414 | R25: 3417.5 | S25: 3417.5
F26: Green | G26: hours per year | J26: =CHOOSE(year_selection, L26,M26,N26,O26,P26,Q26,R26,S26) -> 4559.5 | L26: 4570 | M26: 4569 | N26: 4559.5 | O26: 4559.5 | P26: 4559.5 | Q26: 4590 | R26: 4559.5 | S26: 4559.5
C28: =INDEX('Version control'!$H$34:$H$60,MATCH($A$1,'Version control'!$F$34:$F$60,0),1)&"-B: Embedded network (LDNO) discount percentages" -> Input 503-B: Embedded network (LDNO) discount percentages
D30: Inputs sourced from PCDM
E32: Embedded network (LDNO) discount percentages | I32: > | U32: Paragraph 53
F33: LDNO LV: LV user | G33: % | J33: =CHOOSE(year_selection, L33,M33,N33,O33,P33,Q33,R33,S33) -> 0.3906724281 | L33: 0.3870456568 | M33: 0.3873399049 | N33: 0.389806558 | O33: 0.3906724281 | P33: 0.3906724281 | Q33: 0.3906724281 | R33: 0.3906724281 | S33: 0.3906724281
F34: LDNO HV: LV user | G34: % | J34: =CHOOSE(year_selection, L34,M34,N34,O34,P34,Q34,R34,S34) -> 0.6036178811 | L34: 0.65320808 | M34: 0.6488039916 | N34: 0.6351371199 | O34: 0.6036178811 | P34: 0.6036178811 | Q34: 0.6036178811 | R34: 0.6036178811 | S34: 0.6036178811 | W34: NHH UMS category D | X34: LV UMS (Pseudo HH Metered) | Y34: LV Generation NHH or Aggregate HH | Z34: LV Sub Generation NHH | AA34: LV Generation Intermittent | AB34: LV Generation Intermittent no RP charge | AC34: LV Generation Non-Intermittent | AD34: LV Generation Non-Intermittent no RP charge | AE34: LV Sub Generation Intermittent | AF34: LV Sub Generation Intermittent no RP charge | AG34: LV Sub Generation Non-Intermittent | AH34: LV Sub Generation Non-Intermittent no RP charge | AI34: HV Generation Intermittent | AJ34: HV Generation Intermittent no RP charge | AK34: HV Generation Non-Intermittent | AL34: HV Generation Non-Intermittent no RP charge
F35: LDNO HV: LV Sub user | G35: % | J35: =CHOOSE(year_selection, L35,M35,N35,O35,P35,Q35,R35,S35) -> 0.3481924857 | L35: 0.4328238228 | M35: 0.4254867905 | N35: 0.40077097 | O35: 0.3481924857 | P35: 0.3481924857 | Q35: 0.3481924857 | R35: 0.3481924857 | S35: 0.3481924857
F36: LDNO HV: HV user | G36: % | J36: =CHOOSE(year_selection, L36,M36,N36,O36,P36,Q36,R36,S36) -> 0.2517400932 | L36: 0.3486386829 | M36: 0.3401554795 | N36: 0.3124172834 | O36: 0.2517400932 | P36: 0.2517400932 | Q36: 0.2517400932 | R36: 0.2517400932 | S36: 0.2517400932
C38: =INDEX('Version control'!$H$34:$H$60,MATCH($A$1,'Version control'!$F$34:$F$60,0),1)&"-C: CDCM target revenue" -> Input 503-C: CDCM target revenue
D40: The contents of this section are defined in Paragraph 1.5 of Schedule 15 (Table 1). | I40: > | U40: Paragraph 54 and Schedule 15 Table 1
D41: "Latest forecast of CDCM Revenue" is the only row used as an input to the model itself
E43: Base Demand Revenue before inflation | G43: £ | J43: =CHOOSE(year_selection, L43,M43,N43,O43,P43,Q43,R43,S43) -> 346000000 | L43: 346000000 | M43: 346000000 | N43: 346000000 | O43: 346000000 | P43: 346000000 | Q43: 346000000 | R43: 346000000 | S43: 346000000
E44: Annual Iteration adjustment before inflation | G44: £ | J44: -13483324.79 | L44: -4425000 | M44: -3008000 | N44: -6261852.347 | O44: -13483324.79 | P44: -15913311.65 | Q44: 335164.5121 | R44: -695912.4466 | S44: 0
E45: RPI True-up before inflation | G45: £ | J45: -2617430.544 | L45: -1062000 | M45: 247000 | N45: 991370.841 | O45: -2617430.544 | P45: 103621.7186 | Q45: -96418.86517 | R45: -193.0804223 | S45: 0
E46: Price index adjustment (RPI index) | G46: scalar | J46: 1.261 | L46: 1.155 | M46: 1.196 | N46: 1.237 | O46: 1.261 | P46: 1.301 | Q46: 1.328971084 | R46: 1.355549198 | S46: 1.382658629
E47: Base demand revenue | G47: £ | J47: 329899244.7 | L47: =SUM(L43:L45) -> 340513000 | M47: =SUM(M43:M45) -> 343239000 | N47: =SUM(N43:N45) -> 340729518.5 | O47: 329899244.7 | P47: =SUM(P43:P45) -> 330190310.1 | Q47: 346238745.6 | R47: 345303894.5 | S47: 346000000
E48: Inflation adjustment | G48: £ | J48: 86103702.86 | L48: =L47 * (L46 - 1) -> 52779515 | M48: =M47 * (M46 - 1) -> 67274844 | N48: =N47 * (N46 - 1) -> 80752895.88 | O48: 86103702.86 | P48: =P47 * (P46 - 1) -> 99387283.33 | Q48: 113902535.5 | R48: 122772522.7 | S48: 132399885.6
E50: Pass-Through Licence Fees | G50: £ | J50: =CHOOSE(year_selection, L50,M50,N50,O50,P50,Q50,R50,S50) -> 381935.6823 | L50: -58000 | M50: 268000 | N50: 164322.9283 | O50: 381935.6823 | P50: 392481.3111 | Q50: 395930.6213 | R50: 399676.0287 | S50: 0
E51: Pass-Through Business Rates | G51: £ | J51: -11566275.23 | L51: 1296000 | M51: -10584000 | N51: -11217509.63 | O51: -11566275.23 | P51: -12263566.42 | Q51: -12947488.9 | R51: -13691294.81 | S51: 0
E52: Pass-Through Transmission Connection Point Charges | G52: £ | J52: 8418434.058 | L52: 249000 | M52: -1790000 | N52: 317972.0681 | O52: 8418434.058 | P52: 2891828.716 | Q52: 3688850.668 | R52: 4290804.59 | S52: 0
E53: Pass-through Smart Meter Communication Licence Costs | G53: £ | J53: 1781216.125 | L53: 862000 | M53: 1156000 | N53: 1394664.473 | O53: 1781216.125 | P53: 2074147.055 | Q53: 2242920.95 | R53: 1925769.992 | S53: 0
E54: Pass-through Smart Meter IT Costs | G54: £ | J54: 14896.34728 | L54: 270000 | M54: -13000 | N54: 1521214.372 | O54: 14896.34728 | P54: 0 | Q54: 0 | R54: 0 | S54: 0
E55: Pass-through Ring Fence Costs | G55: £ | J55: 0 | L55: 0 | M55: 0 | N55: 0 | O55: 0 | P55: 0 | Q55: 0 | R55: 0 | S55: 0
E56: Pass-through Supplier of Last Resort Adjustment | G56: £ | J56: 47073.34384 | O56: 47073.34384 | P56: 141408.954 | Q56: 0 | R56: 0 | S56: 0
E57: Pass-through Eligible Bad Debt Adjustment | G57: £ | J57: 1417380.031 | O57: 1417380.031 | P57: 0 | Q57: 0 | R57: 0 | S57: 0
E58: Pass-Through Others | G58: £ | J58: 0 | L58: 0 | M58: 0 | N58: 0 | O58: 0 | P58: 0 | Q58: 0 | R58: 0 | S58: 0
E59: Allowed Pass-Through Items | G59: £ | J59: 494660.3602 | L59: =SUM(L50:L58) -> 2619000 | M59: -10963000 | N59: -7819335.787 | O59: =SUM(O50:O58) -> 494660.3602 | P59: =SUM(P50:P58) -> -6763700.379 | Q59: -6619786.658 | R59: -7075044.2 | S59: 0
E61: Broad Measure of Customer Service incentive | G61: £ | J61: =CHOOSE(year_selection, L61,M61,N61,O61,P61,Q61,R61,S61) -> 3925182.392 | L61: 2500000 | M61: 3253000 | N61: 3602342.523 | O61: 3925182.392 | P61: 4281719.793 | Q61: 4538376.213 | R61: 4813697.354 | S61: 0
E62: Quality of Service incentive | G62: £ | J62: 8075106.48 | L62: 7181000 | M62: 9614000 | N62: 9424915.131 | O62: 8075106.48 | P62: 7484721.905 | Q62: 6870972.885 | R62: 6298121.046 | S62: 0
E63: Connections Engagement incentive | G63: £ | J63: 0 | L63: 0 | M63: 0 | N63: 0 | O63: 0 | P63: 0 | Q63: 0 | R63: 0 | S63: 0
E64: Time to Connect incentive | G64: £ | J64: 713669.5259 | L64: 800000 | M64: 673000 | N64: 697227.5852 | O64: 713669.5259 | P64: 734009.1074 | Q64: 756396.0356 | R64: 780599.5709 | S64: 0
E65: Losses Discretionary Reward incentive | G65: £ | J65: 735163 | L65: 0 | M65: 498000 | N65: 0 | O65: 735163 | P65: 0 | Q65: 0 | R65: 0 | S65: 0
E66: Network Innovation Allowance | G66: £ | J66: 1657301.508 | L66: 1630000 | M66: 1530000 | N66: 1530000 | O66: 1657301.508 | P66: 1707020.553 | Q66: 0 | R66: 0 | S66: 0
E67: Low Carbon Network Fund - Tier 1 unrecoverable | G67: £ | J67: 0 | L67: 0 | M67: 0 | N67: 0 | O67: 0 | P67: 0 | Q67: 0 | R67: 0 | S67: 0
E68: Low Carbon Network Fund - Tier 2 & Discretionary Funding | G68: £ | J68: 0 | L68: 800000 | M68: 0 | N68: 0 | O68: 0 | P68: 0 | Q68: 0 | R68: 0 | S68: 0
E69: Connection Guaranteed Standards Systems & Processes penalty | G69: £ | J69: 0 | L69: 0 | M69: 0 | N69: 0 | O69: 0 | P69: 0 | Q69: 0 | R69: 0 | S69: 0
E70: Residual Losses and Growth Incentive - Losses | G70: £ | J70: 0 | L70: 0 | M70: 0 | N70: 0 | O70: 0 | P70: 0 | Q70: 0 | R70: 0 | S70: 0
E71: Residual Losses and Growth Incentive - Growth | G71: £ | J71: 0 | L71: 0 | M71: 0 | N71: 0 | O71: 0 | P71: 0 | Q71: 0 | R71: 0 | S71: 0
E72: Incentive Revenue and Other Adjustments | G72: £ | J72: 15106422.91 | L72: =SUM(L61:L71) -> 12911000 | M72: 15568000 | N72: 15254485.24 | O72: =SUM(O61:O71) -> 15106422.91 | P72: =SUM(P61:P71) -> 14207471.36 | Q72: 12165745.13 | R72: 11892417.97 | S72: 0
E74: Correction Factor | G74: £ | J74: =CHOOSE(year_selection, L74,M74,N74,O74,P74,Q74,R74,S74) -> -5553744.68 | L74: 2178000 | M74: 8073000 | N74: 14526604.27 | O74: -5553744.68 | P74: 5414715.902 | Q74: 0 | R74: 0 | S74: 0
E75: Total allowed Revenue | G75: £ | J75: =CHOOSE(year_selection, L75,M75,N75,O75,P75,Q75,R75,S75) -> 426050286.1 | L75: =L74 + L72 + L59 + L48 + L47 -> 411000515 | M75: 423191844 | N75: 443444168.1 | O75: =O74 + O72 + O59 + O48 + O47 -> 426050286.1 | P75: =P74 + P72 + P59 + P48 + P47 -> 442436080.3 | Q75: 465687239.6 | R75: 472893791 | S75: 478399885.6
E77: Other 1. Excluded services - Top-up, standby, and enhanced system security | G77: £ | J77: =CHOOSE(year_selection, L77,M77,N77,O77,P77,Q77,R77,S77) -> 0 | L77: 0 | M77: 0 | N77: 0 | O77: 0 | P77: 0 | Q77: 0 | R77: 0 | S77: 0
E78: Other 2. Excluded services - Revenue protection services | G78: £ | J78: 687596.0353 | L78: 689000 | M78: 700000 | N78: 666366.2063 | O78: 687596.0353 | P78: 709598.0741 | Q78: 724854.6043 | R78: 739350.9831 | S78: 754137.1557
E79: Other 3. Excluded services - Miscellaneous | G79: £ | J79: 0 | L79: 0 | M79: 0 | N79: 0 | O79: 0 | P79: 0 | Q79: 0 | R79: 0 | S79: 0
E80: Other 4. Increase in UoS tariffs relating to Supplier of Last Resort derogation | G80: £ | J80: 0 | O80: 0 | P80: 0 | Q80: 0 | R80: 0 | S80: 0
E81: Other 5. Lead/Lag | G81: £ | J81: 0 | O81: 0 | P81: 0 | Q81: 0 | R81: 0 | S81: 0
E82: Total other revenue recovered by Use of System Charges | G82: £ | J82: 687596.0353 | L82: =SUM(L77:L81) -> 689000 | M82: 700000 | N82: 666366.2063 | O82: =SUM(O77:O81) -> 687596.0353 | P82: =SUM(P77:P81) -> 709598.0741 | Q82: 724854.6043 | R82: 739350.9831 | S82: 754137.1557
E83: Total Revenue for Use of System Charges | G83: £ | J83: 426737882.1 | L83: =L75+L82 -> 411689515 | M83: 423891844 | N83: 444110534.3 | O83: =O75+O82 -> 426737882.1 | P83: =P75+P82 -> 443145678.4 | Q83: 466412094.2 | R83: 473633141.9 | S83: 479154022.7
E85: 1. Revenue raised outside CDCM - EDCM and Certain Interconnector Revenue | G85: £ | J85: =CHOOSE(year_selection, L85,M85,N85,O85,P85,Q85,R85,S85) -> 9556157.066 | L85: 9113457.196 | M85: 8402622.444 | N85: 8640347.025 | O85: 9556157.066 | P85: 9556157.066 | Q85: 9556157.066 | R85: 9556157.066 | S85: 9556157.066
E86: 2. Revenue raised outside CDCM - Voluntary under-recovery | G86: £ | J86: 0 | L86: 0 | M86: 0 | N86: 0 | O86: 0
E87: 3. Revenue raised outside CDCM - Please describe if used | G87: £ | J87: 0 | L87: 0 | M87: 0 | N87: 0 | O87: 0
E88: 4. Revenue raised outside CDCM - Please describe if used | G88: £ | J88: 0 | L88: 0 | M88: 0 | N88: 0 | O88: 0
E89: Total Revenue to be raised outside the CDCM | G89: £ | J89: 9556157.066 | L89: =SUM(L85:L88) -> 9113457.196 | M89: 8402622.444 | N89: 8640347.025 | O89: =SUM(O85:O88) -> 9556157.066 | P89: =SUM(P85:P88) -> 9556157.066 | Q89: 9556157.066 | R89: 9556157.066 | S89: 9556157.066
E90: Latest forecast of CDCM Revenue | G90: £ | J90: 417181725.1 | L90: =L83-L89 -> 402576057.8 | M90: 415489221.6 | N90: 435470187.3 | O90: =O83-O89 -> 417181725.1 | P90: =P83-P89 -> 433589521.3 | Q90: 456855937.2 | R90: 464076984.9 | S90: 469597865.7
E91: CDCM Revenue Used in Charging Model | G91: £ | J91: =CHOOSE(year_selection, L91,M91,N91,O91,P91,Q91,R91,S91) -> 417181725.1 | L91: =L90 -> 402576057.8 | M91: 415489221.6 | N91: 435470187.3 | O91: =O90 -> 417181725.1 | P91: =P90 -> 433589521.3 | Q91: 456855937.2 | R91: 464076984.9 | S91: 469597865.7
E93: Final Collected Revenue Forecast | G93: £ | J93: =CHOOSE(year_selection, L93,M93,N93,O93,P93,Q93,R93,S93) -> 426737882.1 | L93: 411689515 | M93: 423891844 | N93: 444110534.3 | O93: 426737882.1 | P93: 443145678.4 | Q93: 466412094.2 | R93: 473633141.9 | S93: 479154022.7
E94: Forecast Over / (Under) Recovery | G94: £ | J94: =CHOOSE(year_selection, L94,M94,N94,O94,P94,Q94,R94,S94) -> 0 | L94: =L93 - L82 - L75 + L86 -> 0 | M94: -5.960464478e-08 | N94: =N93 - N82 - N75 + N86 -> 0 | O94: =O93 - O82 - O75 + O86 -> 0 | P94: 0 | Q94: 0 | R94: 0 | S94: 0
E95: Forecast overall percentage change to Allowed Revenue | G95: % | J95: =CHOOSE(year_selection, L95,M95,N95,O95,P95,Q95,R95,S95) -> -0.03922451402 | L95: =IF( K75 <> 0, L75 / K75 - 1, 0) -> 0 | M95: =IF( L75 <> 0, M75 / L75 - 1, 0) -> 0.0296625638 | N95: 0.04785613047 | O95: =IF( N75 <> 0, O75 / N75 - 1, 0) -> -0.03922451402 | P95: 0.03845976569 | Q95: 0.05255258417 | R95: 0.01547508867 | S95: 0.01164340642
E96: Overall % change to Use of System Charges effective 1st April of Regulatory Year to balance | G96: % | J96: =CHOOSE(year_selection, L96,M96,N96,O96,P96,Q96,R96,S96) -> -0.03911785652 | L96: =IF( K93 <> 0, L93 / K93 - 1, 0) -> 0 | M96: 0.02963963996 | N96: 0.04769775732 | O96: -0.03911785652 | P96: 0.03844935475 | Q96: 0.05250286083 | R96: 0.01548211934 | S96: 0.01165644944
C98: =INDEX('Version control'!$H$34:$H$60,MATCH($A$1,'Version control'!$F$34:$F$60,0),1)&"-D: Financial and general assumptions" -> Input 503-D: Financial and general assumptions
E100: Real pre-tax cost of capital | G100: % | I100: > | J100: =CHOOSE(year_selection, L100,M100,N100,O100,P100,Q100,R100,S100) -> 0.0369 | L100: 0.0408 | M100: 0.0402 | N100: 0.0379 | O100: 0.0369 | P100: 0.0369 | Q100: 0.0369 | R100: 0.0369 | S100: 0.0369 | U100: Paragraph 57
E101: Days in the charging year | G101: days | J101: =CHOOSE(year_selection, L101,M101,N101,O101,P101,Q101,R101,S101) -> 365 | L101: 365 | M101: 366 | N101: 365 | O101: 365 | P101: 365 | Q101: 366 | R101: 365 | S101: 365
C103: =INDEX('Version control'!$H$34:$H$60,MATCH($A$1,'Version control'!$F$34:$F$60,0),1)&"-E: Transmission exit charges" -> Input 503-E: Transmission exit charges
E105: Transmission exit charges | G105: £ per year | I105: > | J105: =CHOOSE(year_selection, L105,M105,N105,O105,P105,Q105,R105,S105) -> 35908234.06 | L105: 26120655.34 | M105: 24282910.65 | N105: 27655672.07 | O105: 35908234.06 | P105: 37047274 | Q105: 37843778.54 | R105: 38600616.87 | S105: 39372584.98 | U105: Paragraph 38
D107: =INDEX('[1]Version control'!$H$34:$H$60,MATCH($A$1,'[1]Version control'!$F$34:$F$60,0),1)&"-F: Other expenditure" -> Input 503-F: Other expenditure
E109: Other expenditure | I109: > | U109: Paragraph 39
F110: Direct cost | G110: £ per year | J110: =CHOOSE(year_selection, L110,M110,N110,O110,P110,Q110,R110,S110) -> 28803040.43 | L110: 23202752.27 | M110: 22970035.52 | N110: 24557177.97 | O110: 28803040.43 | P110: 29716697.54 | Q110: 30355597.03 | R110: 30962679.1 | S110: 31581897.21
F111: Indirect cost | G111: £ per year | J111: =CHOOSE(year_selection, L111,M111,N111,O111,P111,Q111,R111,S111) -> 83130091.18 | L111: 89926235.57 | M111: 90642222.22 | N111: 80366361.65 | O111: 83130091.18 | P111: 85767048.87 | Q111: 87611013 | R111: 89363147.04 | S111: 91150307.6
F112: Network rates | G112: £ per year | J112: =CHOOSE(year_selection, L112,M112,N112,O112,P112,Q112,R112,S112) -> 37991024.77 | L112: 46687620.05 | M112: 36418555.51 | N112: 37396590.37 | O112: 37991024.77 | P112: 39196132.62 | Q112: 40038836.94 | R112: 40839574.27 | S112: 41656318.97
B114: Checks
C116: Checks are not run for historic years, for which DNOs are not obliged to enter inputs.
E118: Check for error values | G118: number of issues | H118: =SUM(IF(ISERROR(H15:S113), 1)) -> 0
E120: Hours in charging year check
F121: Normal distribution timebands | G121: number of issues | H121: =SUM(L121:S121) -> 0 | M121: =IF(SUM(M19:M21) = M$101 * hours_in_day, 0, 1) -> 0 | N121: 0 | O121: 0 | P121: 0 | Q121: 0 | R121: 0 | S121: 0
F122: Special distribution timebands | G122: number of issues | H122: =SUM(L122:S122) -> 0 | M122: =IF(SUM(M24:M26) = M$101 * hours_in_day, 0, 1) -> 0 | N122: 0 | O122: 0 | P122: 0 | Q122: 0 | R122: 0 | S122: 0
E124: Summary of checks | G124: number of issues | H124: =SUM(H118, H121:H122) -> 0
B126: End of sheet

Sheet Fixed inputs
A1: =MID(CELL("filename",A1),FIND("]",CELL("filename",A1))+1,255) -> Fixed inputs
A2: =Cover!D21&" - "&Cover!D23 -> SP Distribution - One
A3: =Cover!D2&" - "&Cover!D8&" v"&Cover!D10&" - "&Cover!D19 -> ARP model - Release for charge setting v5 - 2021/22
A4: =H172 & IF(H172 = 1, " issue", " issues") &" identified in checks on this sheet" -> 0 issues identified in checks on this sheet
B5: Click here to return to model map | G5: Units | H5: Constants | J5: Domestic Aggregated | K5: Domestic Aggregated (Related MPAN) | L5: Non-Domestic Aggregated | M5: Non-Domestic Aggregated (Related MPAN) | N5: LV Site Specific | O5: LV Sub Site Specific | P5: HV Site Specific | Q5: Unmetered Supplies | R5: LV Generation Aggregated | S5: LV Sub Generation Aggregated | T5: LV Generation Site Specific | U5: LV Generation Site Specific no RP Charge | V5: LV Sub Generation Site Specific | W5: LV Sub Generation Site Specific no RP Charge | X5: HV Generation Site Specific | Y5: HV Generation Site Specific no RP Charge | AA5: Legal text reference
B7: Description
C9: This sheet sets out the inputs that should be constant across DNOs
B11: Fixed inputs
C13: =INDEX('Version control'!$H$34:$H$60,MATCH($A$1,'Version control'!$F$34:$F$60,0),1)&"-A: Conversions and time" -> Input 504-A: Conversions and time
E15: Hours per day | G15: hours | H15: 24
E16: Ten | G16: integer | H16: 10
E17: One hundred | G17: integer | H17: 100
E18: One thousand | G18: integer | H18: 1000
C20: =INDEX('Version control'!$H$34:$H$60,MATCH($A$1,'Version control'!$F$34:$F$60,0),1)&"-B: Input 101-B: Rounding" -> Input 504-B: Input 101-B: Rounding
D22: Number of decimal places each final charge should be rounded to, specified in Paragraph 14.
E24: Decimal places | I24: > | AA24: Paragraph 14
F25: Unit rate 1 | G25: integer | H25: 3
F26: Unit rate 2 | G26: integer | H26: 3
F27: Unit rate 3 | G27: integer | H27: 3
F28: Fixed charge | G28: integer | H28: 2
F29: Capacity charge | G29: integer | H29: 2
F30: Exceeded capacity charge | G30: integer | H30: 2
F31: Reactive power charge | G31: integer | H31: 3
C33: =INDEX('Version control'!$H$34:$H$60,MATCH($A$1,'Version control'!$F$34:$F$60,0),1)&"-C: Financial and general assumptions" -> Input 504-C: Financial and general assumptions
E35: Annualisation period | G35: years | H35: 40 | I35: > | AA35: Paragraph 57
E37: Power factor | G37: % | H37: 0.95 | I37: > | AA37: Paragraphs 21 & 79
E39: Indirect cost proportion | G39: % | H39: 0.6 | I39: > | AA39: Paragraph 39
E41: Network model GSP peak demand | G41: MW | H41: 500 | I41: > | AA41: Paragraph 20
C43: =INDEX('Version control'!$H$34:$H$60,MATCH($A$1,'Version control'!$F$34:$F$60,0),1)&"-D: Mappings" -> Input 504-D: Mappings
E45: LDNO discount map
F46: LDNO LV: LV user | G46: 1 or 0 | J46: 1 | K46: 1 | L46: 1 | M46: 1 | N46: 1 | O46: 0 | P46: 0 | Q46: 1
F47: LDNO HV: LV user | G47: 1 or 0 | J47: 1 | K47: 1 | L47: 1 | M47: 1 | N47: 1 | O47: 0 | P47: 0 | Q47: 1
F48: LDNO HV: LV Sub user | G48: 1 or 0 | J48: 0 | K48: 0 | L48: 0 | M48: 0 | N48: 0 | O48: 1 | P48: 0 | Q48: 0
F49: LDNO HV: HV user | G49: 1 or 0 | J49: 0 | K49: 0 | L49: 0 | M49: 0 | N49: 0 | O49: 0 | P49: 1 | Q49: 0
E51: Network level at which users are supplied | I51: > | AA51: Paragraph 30
E52: Network use factors based on customer contributed assets
F53: HV substation | G53: 1 or 0 | J53: 0 | K53: 0 | L53: 0 | M53: 0 | N53: 0 | O53: 0 | P53: 0 | Q53: 0 | R53: 0 | S53: 0 | T53: 0 | U53: 0 | V53: 0 | W53: 0 | X53: 0 | Y53: 0
F54: HV network | G54: 1 or 0 | J54: 0 | K54: 0 | L54: 0 | M54: 0 | N54: 0 | O54: 0 | P54: 1 | Q54: 0 | R54: 0 | S54: 0 | T54: 0 | U54: 0 | V54: 0 | W54: 0 | X54: 1 | Y54: 1
F55: LV substation | G55: 1 or 0 | J55: 0 | K55: 0 | L55: 0 | M55: 0 | N55: 0 | O55: 1 | P55: 0 | Q55: 0 | R55: 0 | S55: 1 | T55: 0 | U55: 0 | V55: 1 | W55: 1 | X55: 0 | Y55: 0
F56: LV network | G56: 1 or 0 | J56: 1 | K56: 1 | L56: 1 | M56: 1 | N56: 1 | O56: 0 | P56: 0 | Q56: 1 | R56: 1 | S56: 0 | T56: 1 | U56: 1 | V56: 0 | W56: 0 | X56: 0 | Y56: 0
E58: Network use factors (assuming generation contributes at level of connection)
E59: These assume demand and generation use the network from the point of connection.
F60: Transmission exit | G60: 1, 0 or -1 | J60: 1 | K60: 1 | L60: 1 | M60: 1 | N60: 1 | O60: 1 | P60: 1 | Q60: 1 | R60: -1 | S60: -1 | T60: -1 | U60: -1 | V60: -1 | W60: -1 | X60: -1 | Y60: -1
F61: GSPs | G61: 1, 0 or -1 | J61: 1 | K61: 1 | L61: 1 | M61: 1 | N61: 1 | O61: 1 | P61: 1 | Q61: 1 | R61: -1 | S61: -1 | T61: -1 | U61: -1 | V61: -1 | W61: -1 | X61: -1 | Y61: -1
F62: 132kV | G62: 1, 0 or -1 | J62: 1 | K62: 1 | L62: 1 | M62: 1 | N62: 1 | O62: 1 | P62: 1 | Q62: 1 | R62: -1 | S62: -1 | T62: -1 | U62: -1 | V62: -1 | W62: -1 | X62: -1 | Y62: -1
F63: 132kV/EHV | G63: 1, 0 or -1 | J63: 1 | K63: 1 | L63: 1 | M63: 1 | N63: 1 | O63: 1 | P63: 1 | Q63: 1 | R63: -1 | S63: -1 | T63: -1 | U63: -1 | V63: -1 | W63: -1 | X63: -1 | Y63: -1
F64: EHV | G64: 1, 0 or -1 | J64: 1 | K64: 1 | L64: 1 | M64: 1 | N64: 1 | O64: 1 | P64: 1 | Q64: 1 | R64: -1 | S64: -1 | T64: -1 | U64: -1 | V64: -1 | W64: -1 | X64: -1 | Y64: -1
F65: EHV/HV | G65: 1, 0 or -1 | J65: 1 | K65: 1 | L65: 1 | M65: 1 | N65: 1 | O65: 1 | P65: 1 | Q65: 1 | R65: -1 | S65: -1 | T65: -1 | U65: -1 | V65: -1 | W65: -1 | X65: -1 | Y65: -1
F66: 132kV/HV | G66: 1, 0 or -1 | J66: 1 | K66: 1 | L66: 1 | M66: 1 | N66: 1 | O66: 1 | P66: 1 | Q66: 1 | R66: -1 | S66: -1 | T66: -1 | U66: -1 | V66: -1 | W66: -1 | X66: -1 | Y66: -1
F67: HV | G67: 1, 0 or -1 | J67: 1 | K67: 1 | L67: 1 | M67: 1 | N67: 1 | O67: 1 | P67: 1 | Q67: 1 | R67: -1 | S67: -1 | T67: -1 | U67: -1 | V67: -1 | W67: -1 | X67: -1 | Y67: -1
F68: HV/LV | G68: 1, 0 or -1 | J68: 1 | K68: 1 | L68: 1 | M68: 1 | N68: 1 | O68: 1 | P68: 0 | Q68: 1 | R68: -1 | S68: -1 | T68: -1 | U68: -1 | V68: -1 | W68: -1 | X68: 0 | Y68: 0
F69: LV circuits | G69: 1, 0 or -1 | J69: 1 | K69: 1 | L69: 1 | M69: 1 | N69: 1 | O69: 0 | P69: 0 | Q69: 1 | R69: -1 | S69: 0 | T69: -1 | U69: -1 | V69: 0 | W69: 0 | X69: 0 | Y69: 0
E71: Network use factors (assuming generation makes no contribution at level of connection) | I71: > | AA71: Paragraphs 62 & 71
E72: Equal to 0 for the network level at which generation is connected, otherwise equal to network use factor
F73: Transmission exit | G73: 1, 0 or -1 | J73: 1 | K73: 1 | L73: 1 | M73: 1 | N73: 1 | O73: 1 | P73: 1 | Q73: 1 | R73: -1 | S73: -1 | T73: -1 | U73: -1 | V73: -1 | W73: -1 | X73: -1 | Y73: -1
F74: GSPs | G74: 1, 0 or -1 | J74: 1 | K74: 1 | L74: 1 | M74: 1 | N74: 1 | O74: 1 | P74: 1 | Q74: 1 | R74: -1 | S74: -1 | T74: -1 | U74: -1 | V74: -1 | W74: -1 | X74: -1 | Y74: -1
F75: 132kV | G75: 1, 0 or -1 | J75: 1 | K75: 1 | L75: 1 | M75: 1 | N75: 1 | O75: 1 | P75: 1 | Q75: 1 | R75: -1 | S75: -1 | T75: -1 | U75: -1 | V75: -1 | W75: -1 | X75: -1 | Y75: -1
F76: 132kV/EHV | G76: 1, 0 or -1 | J76: 1 | K76: 1 | L76: 1 | M76: 1 | N76: 1 | O76: 1 | P76: 1 | Q76: 1 | R76: -1 | S76: -1 | T76: -1 | U76: -1 | V76: -1 | W76: -1 | X76: -1 | Y76: -1
F77: EHV | G77: 1, 0 or -1 | J77: 1 | K77: 1 | L77: 1 | M77: 1 | N77: 1 | O77: 1 | P77: 1 | Q77: 1 | R77: -1 | S77: -1 | T77: -1 | U77: -1 | V77: -1 | W77: -1 | X77: -1 | Y77: -1
F78: EHV/HV | G78: 1, 0 or -1 | J78: 1 | K78: 1 | L78: 1 | M78: 1 | N78: 1 | O78: 1 | P78: 1 | Q78: 1 | R78: -1 | S78: -1 | T78: -1 | U78: -1 | V78: -1 | W78: -1 | X78: -1 | Y78: -1
F79: 132kV/HV | G79: 1, 0 or -1 | J79: 1 | K79: 1 | L79: 1 | M79: 1 | N79: 1 | O79: 1 | P79: 1 | Q79: 1 | R79: -1 | S79: -1 | T79: -1 | U79: -1 | V79: -1 | W79: -1 | X79: -1 | Y79: -1
F80: HV | G80: 1, 0 or -1 | J80: 1 | K80: 1 | L80: 1 | M80: 1 | N80: 1 | O80: 1 | P80: 1 | Q80: 1 | R80: -1 | S80: -1 | T80: -1 | U80: -1 | V80: -1 | W80: -1 | X80: 0 | Y80: 0
F81: HV/LV | G81: 1, 0 or -1 | J81: 1 | K81: 1 | L81: 1 | M81: 1 | N81: 1 | O81: 1 | P81: 0 | Q81: 1 | R81: -1 | S81: 0 | T81: -1 | U81: -1 | V81: 0 | W81: 0 | X81: 0 | Y81: 0
F82: LV circuits | G82: 1, 0 or -1 | J82: 1 | K82: 1 | L82: 1 | M82: 1 | N82: 1 | O82: 0 | P82: 0 | Q82: 1 | R82: 0 | S82: 0 | T82: 0 | U82: 0 | V82: 0 | W82: 0 | X82: 0 | Y82: 0
C84: =INDEX('Version control'!$H$34:$H$60,MATCH($A$1,'Version control'!$F$34:$F$60,0),1)&"-E: Standing charge factors" -> Input 504-E: Standing charge factors
E86: Standing charge factors | I86: > | AA86: Paragraph 74
E87: Sets the proportion of costs to be recovered through fixed and capacity charge components.
F88: Transmission exit | G88: %
F89: GSPs | G89: %
F90: 132kV | G90: %
F91: 132kV/EHV | G91: %
F92: EHV | G92: % | P92: 0.2
F93: EHV/HV | G93: % | P93: 1
F94: 132kV/HV | G94: %
F95: HV | G95: % | N95: 0.2 | O95: 1 | P95: 1
F96: HV/LV | G96: % | N96: 1 | O96: 1
F97: LV circuits | G97: % | J97: 1 | K97: 1 | L97: 1 | M97: 1 | N97: 1 | Q97: 0
C99: =INDEX('Version control'!$H$34:$H$60,MATCH($A$1,'Version control'!$F$34:$F$60,0),1)&"-F: Flags" -> Input 504-F: Flags
D101: Override discount rate applied
D102: See Schedule 16, para 125. This has been interpreted to mean that MPANs are fully discounted,
D103: and everything else is not
E104: MWh
F105: Override discount | G105: TRUE / FALSE | I105: > | J105: FALSE | K105: FALSE | L105: FALSE | M105: FALSE | N105: FALSE | O105: FALSE | P105: FALSE | Q105: FALSE | R105: TRUE | S105: TRUE | T105: TRUE | U105: TRUE | V105: TRUE | W105: TRUE | X105: TRUE | Y105: TRUE | AA105: Paragraph 99
F106: Discount % | G106: % | R106: 0 | S106: 0 | T106: 0 | U106: 0 | V106: 0 | W106: 0 | X106: 0 | Y106: 0
E108: MPANs
F109: Override discount | G109: TRUE / FALSE | J109: FALSE | K109: FALSE | L109: FALSE | M109: FALSE | N109: FALSE | O109: FALSE | P109: FALSE | Q109: FALSE | R109: TRUE | S109: TRUE | T109: TRUE | U109: TRUE | V109: TRUE | W109: TRUE | X109: TRUE | Y109: TRUE
F110: Discount % | G110: % | R110: 1 | S110: 1 | T110: 1 | U110: 1 | V110: 1 | W110: 1 | X110: 1 | Y110: 1
E112: Import capacity (kVA)
F113: Override discount | G113: TRUE / FALSE | J113: FALSE | K113: FALSE | L113: FALSE | M113: FALSE | N113: FALSE | O113: FALSE | P113: FALSE | Q113: FALSE | R113: TRUE | S113: TRUE | T113: TRUE | U113: TRUE | V113: TRUE | W113: TRUE | X113: TRUE | Y113: TRUE
F114: Discount % | G114: % | R114: 0 | S114: 0 | T114: 0 | U114: 0 | V114: 0 | W114: 0 | X114: 0 | Y114: 0
E116: Exceeded capacity (kVA)
F117: Override discount | G117: TRUE / FALSE | J117: FALSE | K117: FALSE | L117: FALSE | M117: FALSE | N117: FALSE | O117: FALSE | P117: FALSE | Q117: FALSE | R117: TRUE | S117: TRUE | T117: TRUE | U117: TRUE | V117: TRUE | W117: TRUE | X117: TRUE | Y117: TRUE
F118: Discount % | G118: % | R118: 0 | S118: 0 | T118: 0 | U118: 0 | V118: 0 | W118: 0 | X118: 0 | Y118: 0
E120: Reactive power units (MVArh)
F121: Override discount | G121: TRUE / FALSE | J121: FALSE | K121: FALSE | L121: FALSE | M121: FALSE | N121: FALSE | O121: FALSE | P121: FALSE | Q121: FALSE | R121: TRUE | S121: TRUE | T121: TRUE | U121: TRUE | V121: TRUE | W121: TRUE | X121: TRUE | Y121: TRUE
F122: Discount % | G122: % | R122: 0 | S122: 0 | T122: 0 | U122: 0 | V122: 0 | W122: 0 | X122: 0 | Y122: 0
E124: Unmetered supply flags
E125: These are used to flag UMS tariff forecast in the pseudo load coefficient calculations, because UMS
E126: customers are subject to a different timebanding
F127: Unmetered supply flags | G127: TRUE / FALSE | J127: FALSE | K127: FALSE | L127: FALSE | M127: FALSE | N127: FALSE | O127: FALSE | P127: FALSE | Q127: TRUE | R127: FALSE | S127: FALSE | T127: FALSE | U127: FALSE | V127: FALSE | W127: FALSE | X127: FALSE | Y127: FALSE
E129: Flags used in calculation of LV diversity allowance
E130: FALSE = exclude
F131: Flag for customers included in aggregate maximum demand | G131: TRUE / FALSE | J131: TRUE | K131: FALSE | L131: TRUE | M131: FALSE | N131: TRUE | O131: TRUE | P131: TRUE | Q131: TRUE | R131: TRUE | S131: TRUE | T131: TRUE | U131: TRUE | V131: TRUE | W131: TRUE | X131: TRUE | Y131: TRUE
E133: Flags for applicability of capacity & reactive charges | I133: > | AA133: Paragraphs 141 & 146
E134: 0 = charges not applicable to customer type
E135: For fixed charges, 1 = capacity element is allocated to fixed charges
F136: Capacity charge | G136: 1 or 0 | J136: 0 | K136: 0 | L136: 0 | M136: 0 | N136: 1 | O136: 1 | P136: 1 | Q136: 0 | R136: 0 | S136: 0 | T136: 0 | U136: 0 | V136: 0 | W136: 0 | X136: 0 | Y136: 0
F137: Exceeded capacity charge | G137: 1 or 0 | J137: 0 | K137: 0 | L137: 0 | M137: 0 | N137: 1 | O137: 1 | P137: 1 | Q137: 0 | R137: 0 | S137: 0 | T137: 0 | U137: 0 | V137: 0 | W137: 0 | X137: 0 | Y137: 0
F138: Reactive power | G138: 1 or 0 | J138: 0 | K138: 0 | L138: 0 | M138: 0 | N138: 1 | O138: 1 | P138: 1 | Q138: 0 | R138: 0 | S138: 0 | T138: 1 | U138: 0 | V138: 1 | W138: 0 | X138: 1 | Y138: 0
F139: Capacity charge allocated to fixed charge | G139: 1 or 0 | J139: 1 | K139: 0 | L139: 1 | M139: 0 | N139: 0 | O139: 0 | P139: 0 | Q139: 0 | R139: 0 | S139: 0 | T139: 0 | U139: 0 | V139: 0 | W139: 0 | X139: 0 | Y139: 0
C141: =INDEX('Version control'!$H$34:$H$60,MATCH($A$1,'Version control'!$F$34:$F$60,0),1)&"-G: Identifiers for customer groupings" -> Input 504-G: Identifiers for customer groupings
E143: Groupings for fixed charges
E144: Sets out the groups that are aggregated when calculating fixed charges. Each group is given an identifier. | I144: > | AA144: Paragraph 83
F145: Groupings for fixed charges | G145: integer | J145: 1 | L145: 1
E147: Groupings for aggregated pseudo-load coefficients | I147: > | AA147: Paragraph 70 c) iv
E148: Sets out the groups that are equalised for unit rates, as set out in Paragraph 70 c) iv
F149: Pseudo-load coefficient aggregation group | G149: integer | J149: 1 | K149: 1 | L149: 2 | M149: 2
C151: =INDEX('Version control'!$H$34:$H$60,MATCH($A$1,'Version control'!$F$34:$F$60,0),1)&"-H: Decimal places for error checks" -> Input 504-H: Decimal places for error checks
E153: Decimals of precision for error checks | G153: integer | H153: 5
C155: =INDEX('Version control'!$H$34:$H$60,MATCH($A$1,'Version control'!$F$34:$F$60,0),1)&"-I: Map of applicable MPANs" -> Input 504-I: Map of applicable MPANs
E157: Map of applicable MPANs | I157: > | AA157: Paragraphs 101 and 103
F158: Pass-through Supplier of Last Resort Adjustment | G158: 1 or 0 | J158: 1 | K158: 0 | L158: 0 | M158: 0 | N158: 0 | O158: 0 | P158: 0 | Q158: 0 | R158: 0 | S158: 0 | T158: 0 | U158: 0 | V158: 0 | W158: 0 | X158: 0 | Y158: 0
F159: Pass-through Eligible Bad Debt Adjustment | G159: 1 or 0 | J159: 1 | K159: 0 | L159: 1 | M159: 0 | N159: 1 | O159: 1 | P159: 1 | Q159: 0 | R159: 0 | S159: 0 | T159: 0 | U159: 0 | V159: 0 | W159: 0 | X159: 0 | Y159: 0
B161: Checks
E163: Check for error values | G163: number of issues | H163: =SUM(IF(ISERROR(H15:Y146), 1)) -> 0
E165: Check that discount overrides are either FALSE, or non-zero
F166: MWh override | G166: number of issues | H166: =SUM(J166:Y166) -> 0 | J166: =IF( OR( AND(J105 = TRUE, NOT(ISBLANK(J106))), AND(J105 = FALSE, J106 = 0)), 0, 1) -> 0 | K166: 0 | L166: 0 | M166: 0 | N166: 0 | O166: 0 | P166: 0 | Q166: 0 | R166: 0 | S166: 0 | T166: 0 | U166: 0 | V166: 0 | W166: 0 | X166: 0 | Y166: 0
F167: MPAN override | G167: number of issues | H167: =SUM(J167:Y167) -> 0 | J167: =IF( OR( AND(J109 = TRUE, NOT(ISBLANK(J110))), AND(J109 = FALSE, J110 = 0)), 0, 1) -> 0 | K167: 0 | L167: 0 | M167: 0 | N167: 0 | O167: 0 | P167: 0 | Q167: 0 | R167: 0 | S167: 0 | T167: 0 | U167: 0 | V167: 0 | W167: 0 | X167: 0 | Y167: 0
F168: Import capacity override | G168: number of issues | H168: =SUM(J168:Y168) -> 0 | J168: =IF( OR( AND(J113 = TRUE, NOT(ISBLANK(J114))), AND(J113 = FALSE, J114 = 0)), 0, 1) -> 0 | K168: 0 | L168: 0 | M168: 0 | N168: 0 | O168: 0 | P168: 0 | Q168: 0 | R168: 0 | S168: 0 | T168: 0 | U168: 0 | V168: 0 | W168: 0 | X168: 0 | Y168: 0
F169: Exceeded capacity override | G169: number of issues | H169: =SUM(J169:Y169) -> 0 | J169: =IF( OR( AND(J117 = TRUE, NOT(ISBLANK(J118))), AND(J117 = FALSE, J118 = 0)), 0, 1) -> 0 | K169: 0 | L169: 0 | M169: 0 | N169: 0 | O169: 0 | P169: 0 | Q169: 0 | R169: 0 | S169: 0 | T169: 0 | U169: 0 | V169: 0 | W169: 0 | X169: 0 | Y169: 0
F170: Reactive power override | G170: number of issues | H170: =SUM(J170:Y170) -> 0 | J170: =IF( OR( AND(J121 = TRUE, NOT(ISBLANK(J122))), AND(J121 = FALSE, J122 = 0)), 0, 1) -> 0 | K170: 0 | L170: 0 | M170: 0 | N170: 0 | O170: 0 | P170: 0 | Q170: 0 | R170: 0 | S170: 0 | T170: 0 | U170: 0 | V170: 0 | W170: 0 | X170: 0 | Y170: 0
E172: Summary of checks | G172: number of issues | H172: =H163 + SUM(H166:H170) -> 0
B174: End of sheet

Sheet Inputs by customer type
A1: =MID(CELL("filename",A1),FIND("]",CELL("filename",A1))+1,255) -> Inputs by customer type
A2: =Cover!D21&" - "&Cover!D23 -> SP Distribution - One
A3: =Cover!D2&" - "&Cover!D8&" v"&Cover!D10&" - "&Cover!D19 -> ARP model - Release for charge setting v5 - 2021/22
A4: =H65 & IF(H65 = 1, " issue", " issues") &" identified in checks on this sheet" -> 0 issues identified in checks on this sheet
B5: Click here to return to model map | G5: Units | H5: Constants | J5: Domestic Aggregated | K5: Domestic Aggregated (Related MPAN) | L5: Non-Domestic Aggregated | M5: Non-Domestic Aggregated (Related MPAN) | N5: LV Site Specific | O5: LV Sub Site Specific | P5: HV Site Specific | Q5: Unmetered Supplies | R5: LV Generation Aggregated | S5: LV Sub Generation Aggregated | T5: LV Generation Site Specific | U5: LV Generation Site Specific no RP Charge | V5: LV Sub Generation Site Specific | W5: LV Sub Generation Site Specific no RP Charge | X5: HV Generation Site Specific | Y5: HV Generation Site Specific no RP Charge | AA5: Legal text reference
B7: Description
C9: This sheet sets out the inputs by customer type to be filled in by DNOs.
E11: Charging year selected | G11: year | H11: =charging_year_selected -> 2021/22
E12: Historic / current / forecast | G12: text | H12: ='ARP_User control'!$H$36 -> Current
B14: Inputs by customer type
C16: =INDEX('Version control'!$H$34:$H$58,MATCH($A$1,'Version control'!$F$34:$F$58,0),1)&"-A: Load characteristics" -> Section 501-A: Load characteristics
E18: Load factor | G18: % | I18: > | J18: ='ARP_Inputs by customer type'!J19 -> 0.4486666667 | K18: ='ARP_Inputs by customer type'!J20 -> 0.09966666667 | L18: ='ARP_Inputs by customer type'!J21 -> 0.4166666667 | M18: ='ARP_Inputs by customer type'!J22 -> 0.32 | N18: ='ARP_Inputs by customer type'!J23 -> 0.556 | O18: ='ARP_Inputs by customer type'!J24 -> 0.6726666667 | P18: ='ARP_Inputs by customer type'!J25 -> 0.7353333333 | Q18: ='ARP_Inputs by customer type'!J26 -> 0.4583333333 | AA18: Paragraph 42 (a)
E19: Coincidence factor | G19: % | I19: > | J19: ='ARP_Inputs by customer type'!J39 -> 0.8986666667 | L19: ='ARP_Inputs by customer type'!J41 -> 0.6643333333 | N19: ='ARP_Inputs by customer type'!J43 -> 0.7836666667 | O19: ='ARP_Inputs by customer type'!J44 -> 0.7853333333 | P19: ='ARP_Inputs by customer type'!J45 -> 0.8453333333 | Q19: ='ARP_Inputs by customer type'!J46 -> 0.926 | AA19: Paragraph 42 (b)
C21: =INDEX('Version control'!$H$34:$H$58,MATCH($A$1,'Version control'!$F$34:$F$58,0),1)&"-B: Volume forecasts for the charging year" -> Section 501-B: Volume forecasts for the charging year
E23: All the way volume forecast | I23: > | AA23: Paragraph 52
F24: Rate 1 units | G24: MWh | J24: ='ARP_Inputs by customer type'!J61 -> 728182.6648 | K24: ='ARP_Inputs by customer type'!J62 -> 1325.902556 | L24: ='ARP_Inputs by customer type'!J63 -> 187782.1274 | M24: ='ARP_Inputs by customer type'!J64 -> 4172.24106 | N24: ='ARP_Inputs by customer type'!J65 -> 275821.7689 | O24: ='ARP_Inputs by customer type'!J66 -> 21569.59891 | P24: ='ARP_Inputs by customer type'!J67 -> 322473.7741 | Q24: ='ARP_Inputs by customer type'!J68 -> 13844.28609 | R24: ='ARP_Inputs by customer type'!J69 -> 139.2145634 | S24: ='ARP_Inputs by customer type'!J70 -> 2.877628454 | T24: ='ARP_Inputs by customer type'!J71 -> 6131.38141 | U24: ='ARP_Inputs by customer type'!J72 -> 0 | V24: ='ARP_Inputs by customer type'!J73 -> 144.6141526 | W24: ='ARP_Inputs by customer type'!J74 -> 0 | X24: ='ARP_Inputs by customer type'!J75 -> 116075.8182 | Y24: ='ARP_Inputs by customer type'!J76 -> 0
F25: Rate 2 units | G25: MWh | J25: ='ARP_Inputs by customer type'!J79 -> 2586978.352 | K25: ='ARP_Inputs by customer type'!J80 -> 24004.86702 | L25: ='ARP_Inputs by customer type'!J81 -> 1017175.554 | M25: ='ARP_Inputs by customer type'!J82 -> 25319.41548 | N25: ='ARP_Inputs by customer type'!J83 -> 1322296.433 | O25: ='ARP_Inputs by customer type'!J84 -> 101185.049 | P25: ='ARP_Inputs by customer type'!J85 -> 1497042.89 | Q25: ='ARP_Inputs by customer type'!J86 -> 52546.80809 | R25: ='ARP_Inputs by customer type'!J87 -> 625.5891527 | S25: ='ARP_Inputs by customer type'!J88 -> 11.85801479 | T25: ='ARP_Inputs by customer type'!J89 -> 27525.45625 | U25: ='ARP_Inputs by customer type'!J90 -> 0 | V25: ='ARP_Inputs by customer type'!J91 -> 597.3478309 | W25: ='ARP_Inputs by customer type'!J92 -> 0 | X25: ='ARP_Inputs by customer type'!J93 -> 445212.4393 | Y25: ='ARP_Inputs by customer type'!J94 -> 0
F26: Rate 3 units | G26: MWh | J26: ='ARP_Inputs by customer type'!J97 -> 2382458.577 | K26: ='ARP_Inputs by customer type'!J98 -> 245208.3312 | L26: ='ARP_Inputs by customer type'!J99 -> 982488.0516 | M26: ='ARP_Inputs by customer type'!J100 -> 52561.15803 | N26: ='ARP_Inputs by customer type'!J101 -> 1154944.241 | O26: ='ARP_Inputs by customer type'!J102 -> 100898.0161 | P26: ='ARP_Inputs by customer type'!J103 -> 1602377.032 | Q26: ='ARP_Inputs by customer type'!J104 -> 189052.6852 | R26: ='ARP_Inputs by customer type'!J105 -> 698.1711401 | S26: ='ARP_Inputs by customer type'!J106 -> 16.00635676 | T26: ='ARP_Inputs by customer type'!J107 -> 30981.27634 | U26: ='ARP_Inputs by customer type'!J108 -> 0 | V26: ='ARP_Inputs by customer type'!J109 -> 807.2790165 | W26: ='ARP_Inputs by customer type'!J110 -> 0 | X26: ='ARP_Inputs by customer type'!J111 -> 507559.1675 | Y26: ='ARP_Inputs by customer type'!J112 -> 0
F27: MPANs | G27: MPANs | J27: ='ARP_Inputs by customer type'!J115 -> 1852569 | K27: ='ARP_Inputs by customer type'!J116 -> 100059 | L27: ='ARP_Inputs by customer type'!J117 -> 125030 | M27: ='ARP_Inputs by customer type'!J118 -> 7441 | N27: ='ARP_Inputs by customer type'!J119 -> 10491 | O27: ='ARP_Inputs by customer type'!J120 -> 219 | P27: ='ARP_Inputs by customer type'!J121 -> 1257 | Q27: ='ARP_Inputs by customer type'!J122 -> 4868 | R27: ='ARP_Inputs by customer type'!J123 -> 167 | S27: ='ARP_Inputs by customer type'!J124 -> 4 | T27: ='ARP_Inputs by customer type'!J125 -> 472 | U27: ='ARP_Inputs by customer type'!J126 -> 0 | V27: ='ARP_Inputs by customer type'!J127 -> 8 | W27: ='ARP_Inputs by customer type'!J128 -> 0 | X27: ='ARP_Inputs by customer type'!J129 -> 255 | Y27: ='ARP_Inputs by customer type'!J130 -> 0
F28: Import capacity | G28: kVA | N28: ='ARP_Inputs by customer type'!J137 -> 1465414 | O28: ='ARP_Inputs by customer type'!J138 -> 92670 | P28: ='ARP_Inputs by customer type'!J139 -> 1282859
F29: Exceeded capacity | G29: kVA | N29: ='ARP_Inputs by customer type'!J155 -> 29539.14 | O29: ='ARP_Inputs by customer type'!J156 -> 1042.17 | P29: ='ARP_Inputs by customer type'!J157 -> 16267.89
F30: Reactive power units | G30: MVArh | N30: ='ARP_Inputs by customer type'!J173 -> 241920 | O30: ='ARP_Inputs by customer type'!J174 -> 19020 | P30: ='ARP_Inputs by customer type'!J175 -> 250200 | T30: ='ARP_Inputs by customer type'!J179 -> 4452 | V30: ='ARP_Inputs by customer type'!J181 -> 408 | X30: ='ARP_Inputs by customer type'!J183 -> 16464
E32: LDNO LV volume forecast | I32: > | AA32: Paragraph 52
F33: Rate 1 units | G33: MWh | J33: ='ARP_Inputs by customer type'!J189 -> 13713.32247 | K33: ='ARP_Inputs by customer type'!J190 -> 1.398102951 | L33: ='ARP_Inputs by customer type'!J191 -> 601.0432152 | M33: ='ARP_Inputs by customer type'!J192 -> 0 | N33: ='ARP_Inputs by customer type'!J193 -> 1596.465 | Q33: ='ARP_Inputs by customer type'!J196 -> 20.43003215 | R33: ='ARP_Inputs by customer type'!J197 -> 0.5702560532 | T33: ='ARP_Inputs by customer type'!J199 -> 0
F34: Rate 2 units | G34: MWh | J34: ='ARP_Inputs by customer type'!J207 -> 48809.78109 | K34: ='ARP_Inputs by customer type'!J208 -> 25.32965948 | L34: ='ARP_Inputs by customer type'!J209 -> 3253.025245 | M34: ='ARP_Inputs by customer type'!J210 -> 0 | N34: ='ARP_Inputs by customer type'!J211 -> 7155.507 | Q34: ='ARP_Inputs by customer type'!J214 -> 273.9606815 | R34: ='ARP_Inputs by customer type'!J215 -> 2.083030798 | T34: ='ARP_Inputs by customer type'!J217 -> 0
F35: Rate 3 units | G35: MWh | J35: ='ARP_Inputs by customer type'!J225 -> 44956.58064 | K35: ='ARP_Inputs by customer type'!J226 -> 257.4712376 | L35: ='ARP_Inputs by customer type'!J227 -> 3140.330539 | M35: ='ARP_Inputs by customer type'!J228 -> 0 | N35: ='ARP_Inputs by customer type'!J229 -> 6545.246 | Q35: ='ARP_Inputs by customer type'!J232 -> 303.2542863 | R35: ='ARP_Inputs by customer type'!J233 -> 1.945449991 | T35: ='ARP_Inputs by customer type'!J235 -> 0
F36: MPANs | G36: MPANs | J36: ='ARP_Inputs by customer type'!J243 -> 41179.93548 | K36: ='ARP_Inputs by customer type'!J244 -> 67 | L36: ='ARP_Inputs by customer type'!J245 -> 1036.677419 | M36: ='ARP_Inputs by customer type'!J246 -> 0 | N36: ='ARP_Inputs by customer type'!J247 -> 76 | Q36: ='ARP_Inputs by customer type'!J250 -> 34 | R36: ='ARP_Inputs by customer type'!J251 -> 3 | T36: ='ARP_Inputs by customer type'!J253 -> 0
F37: Import capacity | G37: kVA | N37: ='ARP_Inputs by customer type'!J265 -> 10403
F38: Exceeded capacity | G38: kVA | N38: ='ARP_Inputs by customer type'!J283 -> 41.612
F39: Reactive power units | G39: MVArh | N39: ='ARP_Inputs by customer type'!J301 -> 936 | T39: ='ARP_Inputs by customer type'!J307 -> 0
E41: LDNO HV volume forecast | I41: > | AA41: Paragraph 52
F42: Rate 1 units | G42: MWh | J42: ='ARP_Inputs by customer type'!J317 -> 20104.0997 | K42: ='ARP_Inputs by customer type'!J318 -> 2.048089748 | L42: ='ARP_Inputs by customer type'!J319 -> 2081.735409 | M42: ='ARP_Inputs by customer type'!J320 -> 0 | N42: ='ARP_Inputs by customer type'!J321 -> 13322.005 | O42: ='ARP_Inputs by customer type'!J322 -> 2210.538 | P42: ='ARP_Inputs by customer type'!J323 -> 5129.456 | Q42: ='ARP_Inputs by customer type'!J324 -> 30.87936123 | R42: ='ARP_Inputs by customer type'!J325 -> 0.2559787902 | S42: ='ARP_Inputs by customer type'!J326 -> 0 | T42: ='ARP_Inputs by customer type'!J327 -> 0 | V42: ='ARP_Inputs by customer type'!J329 -> 0 | X42: ='ARP_Inputs by customer type'!J331 -> 0
F43: Rate 2 units | G43: MWh | J43: ='ARP_Inputs by customer type'!J335 -> 71593.3955 | K43: ='ARP_Inputs by customer type'!J336 -> 37.26374667 | L43: ='ARP_Inputs by customer type'!J337 -> 11268.10454 | M43: ='ARP_Inputs by customer type'!J338 -> 0 | N43: ='ARP_Inputs by customer type'!J339 -> 59210.166 | O43: ='ARP_Inputs by customer type'!J340 -> 9690.43 | P43: ='ARP_Inputs by customer type'!J341 -> 23108.695 | Q43: ='ARP_Inputs by customer type'!J342 -> 425.4987206 | R43: ='ARP_Inputs by customer type'!J343 -> 0.9426520012 | S43: ='ARP_Inputs by customer type'!J344 -> 0 | T43: ='ARP_Inputs by customer type'!J345 -> 0 | V43: ='ARP_Inputs by customer type'!J347 -> 0 | X43: ='ARP_Inputs by customer type'!J349 -> 0
F44: Rate 3 units | G44: MWh | J44: ='ARP_Inputs by customer type'!J353 -> 65951.8658 | K44: ='ARP_Inputs by customer type'!J354 -> 378.2381636 | L44: ='ARP_Inputs by customer type'!J355 -> 10881.05205 | M44: ='ARP_Inputs by customer type'!J356 -> 0 | N44: ='ARP_Inputs by customer type'!J357 -> 50706.112 | O44: ='ARP_Inputs by customer type'!J358 -> 8312.202 | P44: ='ARP_Inputs by customer type'!J359 -> 25303.565 | Q44: ='ARP_Inputs by customer type'!J360 -> 470.5323582 | R44: ='ARP_Inputs by customer type'!J361 -> 0.8671549229 | S44: ='ARP_Inputs by customer type'!J362 -> 0 | T44: ='ARP_Inputs by customer type'!J363 -> 0 | V44: ='ARP_Inputs by customer type'!J365 -> 0 | X44: ='ARP_Inputs by customer type'!J367 -> 0
F45: MPANs | G45: MPANs | J45: ='ARP_Inputs by customer type'!J371 -> 58740.54839 | K45: ='ARP_Inputs by customer type'!J372 -> 78.4516129 | L45: ='ARP_Inputs by customer type'!J373 -> 1509.870968 | M45: ='ARP_Inputs by customer type'!J374 -> 0 | N45: ='ARP_Inputs by customer type'!J375 -> 381 | O45: ='ARP_Inputs by customer type'!J376 -> 26 | P45: ='ARP_Inputs by customer type'!J377 -> 30 | Q45: ='ARP_Inputs by customer type'!J378 -> 46 | R45: ='ARP_Inputs by customer type'!J379 -> 5 | S45: ='ARP_Inputs by customer type'!J380 -> 0 | T45: ='ARP_Inputs by customer type'!J381 -> 0 | V45: ='ARP_Inputs by customer type'!J383 -> 0 | X45: ='ARP_Inputs by customer type'!J385 -> 0
F46: Import capacity | G46: kVA | N46: ='ARP_Inputs by customer type'!J393 -> 87614 | O46: ='ARP_Inputs by customer type'!J394 -> 13995 | P46: ='ARP_Inputs by customer type'!J395 -> 28618
F47: Exceeded capacity | G47: kVA | N47: ='ARP_Inputs by customer type'!J411 -> 175.228 | O47: ='ARP_Inputs by customer type'!J412 -> 0 | P47: ='ARP_Inputs by customer type'!J413 -> 14.309
F48: Reactive power units | G48: MVArh | N48: ='ARP_Inputs by customer type'!J429 -> 9000 | O48: ='ARP_Inputs by customer type'!J430 -> 1320 | P48: ='ARP_Inputs by customer type'!J431 -> 1908 | T48: ='ARP_Inputs by customer type'!J435 -> 0 | V48: ='ARP_Inputs by customer type'!J437 -> 0 | X48: ='ARP_Inputs by customer type'!J439 -> 0
E50: 'Designated Property' MPANs with EDCM-level LDNO boundaries | G50: MPANs | I50: > | J50: =TRANSPOSE('ARP_Inputs by customer type'!J445:J460) -> 3083 | K50: 0 | L50: 42 | M50: 0 | N50: 18 | O50: 0 | P50: 4 | Q50: 0 | R50: 0 | S50: 0 | T50: 0 | U50: 0 | V50: 0 | W50: 0 | X50: 0 | Y50: 0 | AA50: Paragraphs 53A, 53B, 101 and 102
C52: =INDEX('Version control'!$H$34:$H$58,MATCH($A$1,'Version control'!$F$34:$F$58,0),1)&"-C: Service model asset values" -> Section 501-C: Service model asset values
D54: Service model costs should be entered per customer or per MWh for unmetered customers
I55: > | AA55: Paragraphs 32 to 37
E56: LV customer service model asset values | G56: £ per MPAN | J56: ='ARP_Inputs by customer type'!J469 -> 377.7 | L56: ='ARP_Inputs by customer type'!J471 -> 508.75 | N56: ='ARP_Inputs by customer type'!J473 -> 2380 | O56: ='ARP_Inputs by customer type'!J474 -> 840 | R56: ='ARP_Inputs by customer type'!J477 -> 0 | S56: ='ARP_Inputs by customer type'!J478 -> 0 | T56: ='ARP_Inputs by customer type'!J479 -> 0 | U56: ='ARP_Inputs by customer type'!J480 -> 0 | V56: ='ARP_Inputs by customer type'!J481 -> 0 | W56: ='ARP_Inputs by customer type'!J482 -> 0
E57: HV customer service model asset values | G57: £ per MPAN | P57: ='ARP_Inputs by customer type'!J495 -> 12718.10554 | X57: ='ARP_Inputs by customer type'!J503 -> 9287 | Y57: ='ARP_Inputs by customer type'!J504 -> 9287
E59: LV UMS customer service model asset values | G59: £/MWh/year | I59: > | Q59: ='ARP_Inputs by customer type'!J516 -> 120.51 | AA59: Paragraph 36
B61: Checks
E63: Check for error values | G63: number of issues | H63: =SUM(IF(ISERROR(H16:Y60), 1)) -> 0
E65: Summary of checks | G65: number of issues | H65: =H63 -> 0
B67: End of sheet

Sheet Inputs by network level
A1: =MID(CELL("filename",A1),FIND("]",CELL("filename",A1))+1,255) -> Inputs by network level
A2: =Cover!D21&" - "&Cover!D23 -> SP Distribution - One
A3: =Cover!D2&" - "&Cover!D8&" v"&Cover!D10&" - "&Cover!D19 -> ARP model - Release for charge setting v5 - 2021/22
A4: =H59 & IF(H59 = 1, " issue", " issues") &" identified in checks on this sheet" -> 0 issues identified in checks on this sheet
B5: Click here to return to model map | G5: Units | H5: Constants | J5: Transmission exit | K5: GSPs | L5: 132kV | M5: 132kV/EHV | N5: EHV | O5: EHV/HV | P5: 132kV/HV | Q5: HV | R5: HV/LV | S5: LV circuits | U5: Legal text reference
B7: Description
C9: This sheet sets out the inputs by network level to be filled in by DNOs.
E11: Charging year selected | G11: year | H11: =charging_year_selected -> 2021/22
E12: Historic / current / forecast | G12: text | H12: ='ARP_User control'!$H$36 -> Current
B14: Inputs by network level
C16: =INDEX('Version control'!$H$34:$H$58,MATCH($A$1,'Version control'!$F$34:$F$58,0),1)&"-A: Network and load inputs" -> Section 502-A: Network and load inputs
E18: Diversity allowance between top and bottom of network level | G18: % | I18: > | K18: ='ARP_Inputs by network level'!J20 -> 0.116 | L18: ='ARP_Inputs by network level'!J21 -> 0 | N18: ='ARP_Inputs by network level'!J23 -> 0.13 | Q18: ='ARP_Inputs by network level'!J26 -> 0.25 | U18: Paragraphs 26 to 28
E20: Proportion of load going through 132kV/HV direct transformation | G20: % | P20: ='ARP_Inputs by network level'!J39 -> 0
E22: Loss adjustment factors to transmission | G22: scalar | I22: > | K22: ='ARP_Inputs by network level'!J48 -> 1 | L22: ='ARP_Inputs by network level'!J49 -> 1 | M22: ='ARP_Inputs by network level'!J50 -> 1 | N22: ='ARP_Inputs by network level'!J51 -> 1.004 | O22: ='ARP_Inputs by network level'!J52 -> 1.013 | Q22: ='ARP_Inputs by network level'!J54 -> 1.026 | R22: ='ARP_Inputs by network level'!J55 -> 1.044 | S22: ='ARP_Inputs by network level'!J56 -> 1.098 | U22: Paragraph 47
E24: Average kVAr by kVA, by network level | G24: kVAr/kVA | I24: > | K24: ='ARP_Inputs by network level'!J62 -> 0.2650999464 | L24: ='ARP_Inputs by network level'!J63 -> 0 | M24: ='ARP_Inputs by network level'!J64 -> 0 | N24: ='ARP_Inputs by network level'!J65 -> 0.2650999464 | O24: ='ARP_Inputs by network level'!J66 -> 0.2169056659 | P24: ='ARP_Inputs by network level'!J67 -> 0 | Q24: ='ARP_Inputs by network level'!J68 -> 0.2169056659 | R24: ='ARP_Inputs by network level'!J69 -> 0.2169056659 | S24: ='ARP_Inputs by network level'!J70 -> 0.2169056659 | U24: Paragraphs 50 to 51
C26: =INDEX('Version control'!$H$34:$H$58,MATCH($A$1,'Version control'!$F$34:$F$58,0),1)&"-B: Customer contributions under current connection charging policy" -> Section 502-B: Customer contributions under current connection charging policy
I27: > | U27: Paragraphs 29 to 31
E28: Customer contributions under current connection charging policy
F29: LV network | G29: % | L29: ='ARP_Inputs by network level'!J78 -> 0 | M29: ='ARP_Inputs by network level'!J79 -> 0 | N29: ='ARP_Inputs by network level'!J80 -> 0 | O29: ='ARP_Inputs by network level'!J81 -> 0 | P29: ='ARP_Inputs by network level'!J82 -> 0 | Q29: ='ARP_Inputs by network level'!J83 -> 0.2006519784 | R29: ='ARP_Inputs by network level'!J84 -> 0.2696850394 | S29: ='ARP_Inputs by network level'!J85 -> 0.9237177393
F30: LV substation | G30: % | L30: ='ARP_Inputs by network level'!J89 -> 0 | M30: ='ARP_Inputs by network level'!J90 -> 0 | N30: ='ARP_Inputs by network level'!J91 -> 0 | O30: ='ARP_Inputs by network level'!J92 -> 0 | P30: ='ARP_Inputs by network level'!J93 -> 0 | Q30: ='ARP_Inputs by network level'!J94 -> 0.2006519784 | R30: ='ARP_Inputs by network level'!J95 -> 0.2696850394
F31: HV network | G31: % | L31: ='ARP_Inputs by network level'!J100 -> 0 | M31: ='ARP_Inputs by network level'!J101 -> 0 | N31: ='ARP_Inputs by network level'!J102 -> 0.03110047847 | O31: ='ARP_Inputs by network level'!J103 -> 0.1421225937 | P31: ='ARP_Inputs by network level'!J104 -> 0 | Q31: ='ARP_Inputs by network level'!J105 -> 0.4514669514
F32: HV substation | G32: % | L32: ='ARP_Inputs by network level'!J111 -> 0 | M32: ='ARP_Inputs by network level'!J112 -> 0 | N32: ='ARP_Inputs by network level'!J113 -> 0.03110047847 | O32: ='ARP_Inputs by network level'!J114 -> 0.1421225937
C34: =INDEX('Version control'!$H$34:$H$58,MATCH($A$1,'Version control'!$F$34:$F$58,0),1)&"-C: DRM asset costs" -> Section 502-C: DRM asset costs
E36: Gross asset cost by network level | G36: £ | I36: > | L36: ='ARP_Inputs by network level'!J125 -> 0 | M36: ='ARP_Inputs by network level'!J126 -> 0 | N36: ='ARP_Inputs by network level'!J127 -> 115483848.7 | O36: ='ARP_Inputs by network level'!J128 -> 29592148.8 | P36: ='ARP_Inputs by network level'!J129 -> 0 | Q36: ='ARP_Inputs by network level'!J130 -> 127306253.1 | R36: ='ARP_Inputs by network level'!J131 -> 31995666.14 | S36: ='ARP_Inputs by network level'!J132 -> 53817722.03
C38: =INDEX('Version control'!$H$34:$H$58,MATCH($A$1,'Version control'!$F$34:$F$58,0),1)&"-D: Peaking probabilities by network level" -> Section 502-D: Peaking probabilities by network level
D40: Red, Amber & Green peaking probabilities must sum to 100%, except for unused network levels, which should sum to 0%
E42: Peaking probabilities by network level | I42: > | U42: Paragraphs 48 to 49
F43: Red | G43: % | K43: ='ARP_Inputs by network level'!J140 -> 0.7368529084 | L43: ='ARP_Inputs by network level'!J141 -> 0 | M43: ='ARP_Inputs by network level'!J142 -> 0 | N43: ='ARP_Inputs by network level'!J143 -> 0.7368529084 | O43: ='ARP_Inputs by network level'!J144 -> 0.645495708 | P43: ='ARP_Inputs by network level'!J145 -> 0 | Q43: ='ARP_Inputs by network level'!J146 -> 0.645495708 | R43: ='ARP_Inputs by network level'!J147 -> 0.645495708 | S43: ='ARP_Inputs by network level'!J148 -> 0.645495708
F44: Amber | G44: % | K44: ='ARP_Inputs by network level'!J152 -> 0.2576364923 | L44: ='ARP_Inputs by network level'!J153 -> 0 | M44: ='ARP_Inputs by network level'!J154 -> 0 | N44: ='ARP_Inputs by network level'!J155 -> 0.2576364923 | O44: ='ARP_Inputs by network level'!J156 -> 0.3391238123 | P44: ='ARP_Inputs by network level'!J157 -> 0 | Q44: ='ARP_Inputs by network level'!J158 -> 0.3391238123 | R44: ='ARP_Inputs by network level'!J159 -> 0.3391238123 | S44: ='ARP_Inputs by network level'!J160 -> 0.3391238123
F45: Green | G45: % | K45: ='ARP_Inputs by network level'!J164 -> 0.00551059925 | L45: ='ARP_Inputs by network level'!J165 -> 0 | M45: ='ARP_Inputs by network level'!J166 -> 0 | N45: ='ARP_Inputs by network level'!J167 -> 0.00551059925 | O45: ='ARP_Inputs by network level'!J168 -> 0.01538047962 | P45: ='ARP_Inputs by network level'!J169 -> 0 | Q45: ='ARP_Inputs by network level'!J170 -> 0.01538047962 | R45: ='ARP_Inputs by network level'!J171 -> 0.01538047962 | S45: ='ARP_Inputs by network level'!J172 -> 0.01538047962
F46: Black | G46: % | K46: ='ARP_Inputs by network level'!J176 -> 0.6705511399 | L46: ='ARP_Inputs by network level'!J177 -> 0 | M46: ='ARP_Inputs by network level'!J178 -> 0 | N46: ='ARP_Inputs by network level'!J179 -> 0.6705511399 | O46: ='ARP_Inputs by network level'!J180 -> 0.6051144918 | P46: ='ARP_Inputs by network level'!J181 -> 0 | Q46: ='ARP_Inputs by network level'!J182 -> 0.6051144918 | R46: ='ARP_Inputs by network level'!J183 -> 0.6051144918 | S46: ='ARP_Inputs by network level'!J184 -> 0.6051144918
B48: Checks
E50: Check for error values | G50: number of issues | H50: =SUM(IF(ISERROR(H18:AA47), 1)) -> 0
E52: Check that loss adjustment factor = 1 at grid supply point | G52: number of issues | H52: =IF(K22 = 1, 0, 1) -> 0
E54: Peaking probabilities check
E55: 0% peaking probabilities are permitted for 132kV, 132kV/EHV & 132kV/HV network levels, which do not exist for all DNOs
F56: General | G56: number of issues | H56: =SUM(K56:S56) -> 0 | K56: =IF(ABS(SUM(K43:K45) - 1) < 10^-check_decimals, 0, 1) -> 0 | N56: =IF(ABS(SUM(N43:N45) - 1) < 10^-check_decimals, 0, 1) -> 0 | O56: =IF(ABS(SUM(O43:O45) - 1) < 10^-check_decimals, 0, 1) -> 0 | Q56: =IF(ABS(SUM(Q43:Q45) - 1) < 10^-check_decimals, 0, 1) -> 0 | R56: =IF(ABS(SUM(R43:R45) - 1) < 10^-check_decimals, 0, 1) -> 0 | S56: =IF(ABS(SUM(S43:S45) - 1) < 10^-check_decimals, 0, 1) -> 0
F57: 132kV | G57: number of issues | H57: =SUM(K57:S57) -> 0 | L57: =IF(OR(ABS(SUM(L43:L45) - 1) < 10^-check_decimals, ABS(SUM(L43:L45) - 0) < 10^-check_decimals), 0, 1) -> 0 | M57: =IF(OR(ABS(SUM(M43:M45) - 1) < 10^-check_decimals, ABS(SUM(M43:M45) - 0) < 10^-check_decimals), 0, 1) -> 0 | P57: =IF(OR(ABS(SUM(P43:P45) - 1) < 10^-check_decimals, ABS(SUM(P43:P45) - 0) < 10^-check_decimals), 0, 1) -> 0
E59: Summary of checks | G59: number of issues | H59: =SUM(H50:H57) -> 0
B61: End of sheet

Sheet General inputs
A1: =MID(CELL("filename",A1),FIND("]",CELL("filename",A1))+1,255) -> General inputs
A2: =Cover!D21&" - "&Cover!D23 -> SP Distribution - One
A3: =Cover!D2&" - "&Cover!D8&" v"&Cover!D10&" - "&Cover!D19 -> ARP model - Release for charge setting v5 - 2021/22
A4: =H117 & IF(H117 = 1, " issue", " issues") &" identified in checks on this sheet" -> 0 issues identified in checks on this sheet
B5: Click here to return to model map | G5: Units | H5: Constants | J5: Legal text reference
B7: Description
C9: This sheet sets out the other inputs to be filled in by DNOs
E11: Charging year selected | G11: year | H11: =charging_year_selected -> 2021/22
E12: Historic / current / forecast | G12: text | H12: ='ARP_User control'!$H$36 -> Current
B14: General inputs
C16: =INDEX('Version control'!$H$34:$H$58,MATCH($A$1,'Version control'!$F$34:$F$58,0),1)&"-A: Inputs by distribution timeband" -> Section 503-A: Inputs by distribution timeband
D18: Typical annual hours by special distribution time band | I18: > | J18: Paragraphs 40 to 41
E19: Black | G19: hours per year | H19: ='ARP_General inputs'!J19 -> 258
E20: Yellow | G20: hours per year | H20: ='ARP_General inputs'!J20 -> 3942.5
E21: Green | G21: hours per year | H21: ='ARP_General inputs'!J21 -> 4559.5
D23: Typical annual hours by distribution time band | I23: > | J23: Paragraphs 40 to 41
E24: Red | G24: hours per year | H24: ='ARP_General inputs'!J24 -> 783
E25: Amber | G25: hours per year | H25: ='ARP_General inputs'!J25 -> 3417.5
E26: Green | G26: hours per year | H26: ='ARP_General inputs'!J26 -> 4559.5
C28: =INDEX('Version control'!$H$34:$H$58,MATCH($A$1,'Version control'!$F$34:$F$58,0),1)&"-B: LDNO discount inputs" -> Section 503-B: LDNO discount inputs
D30: Inputs sourced from the PCDM
D32: Embedded network (LDNO) discount percentages | I32: > | J32: Paragraph 53
E33: LDNO LV: LV user | G33: % | H33: ='ARP_General inputs'!J33 -> 0.3906724281
E34: LDNO HV: LV user | G34: % | H34: ='ARP_General inputs'!J34 -> 0.6036178811
E35: LDNO HV: LV Sub user | G35: % | H35: ='ARP_General inputs'!J35 -> 0.3481924857
E36: LDNO HV: HV user | G36: % | H36: ='ARP_General inputs'!J36 -> 0.2517400932
C38: =INDEX('Version control'!$H$34:$H$58,MATCH($A$1,'Version control'!$F$34:$F$58,0),1)&"-C: CDCM target revenue" -> Section 503-C: CDCM target revenue
D40: The contents of this table are defined in Paragraph 1.5 of Schedule 15 (Table 1) | I40: > | J40: Paragraph 54 and Schedule 15 Table 1
D41: "Latest forecast of CDCM Revenue" is the only row used as an input to the model itself
E43: Base Demand Revenue before inflation | G43: £ | H43: ='ARP_General inputs'!J43 -> 346000000
E44: Annual Iteration adjustment before inflation | G44: £ | H44: ='ARP_General inputs'!J44 -> -13483324.79
E45: RPI True-up before inflation | G45: £ | H45: ='ARP_General inputs'!J45 -> -2617430.544
E46: Price index adjustment (RPI index) | G46: scalar | H46: ='ARP_General inputs'!J46 -> 1.261
E47: Base demand revenue | G47: £ | H47: =SUM(H43:H45) -> 329899244.7
E48: Inflation adjustment | G48: £ | H48: =H47 * (H46 - 1) -> 86103702.86
E50: Pass-Through Licence Fees | G50: £ | H50: ='ARP_General inputs'!J50 -> 381935.6823
E51: Pass-Through Business Rates | G51: £ | H51: ='ARP_General inputs'!J51 -> -11566275.23
E52: Pass-Through Transmission Connection Point Charges | G52: £ | H52: ='ARP_General inputs'!J52 -> 8418434.058
E53: Pass-through Smart Meter Communication Licence Costs | G53: £ | H53: ='ARP_General inputs'!J53 -> 1781216.125
E54: Pass-through Smart Meter IT Costs | G54: £ | H54: ='ARP_General inputs'!J54 -> 14896.34728
E55: Pass-through Ring Fence Costs | G55: £ | H55: ='ARP_General inputs'!J55 -> 0
E56: Pass-through Supplier of Last Resort Adjustment | G56: £ | H56: ='ARP_General inputs'!J56 -> 47073.34384
E57: Pass-through Eligible Bad Debt Adjustment | G57: £ | H57: ='ARP_General inputs'!J57 -> 1417380.031
E58: Pass-Through Others | G58: £ | H58: ='ARP_General inputs'!J58 -> 0
E59: Allowed Pass-Through Items | G59: £ | H59: =SUM(H50:H58) -> 494660.3602
E61: Broad Measure of Customer Service incentive | G61: £ | H61: ='ARP_General inputs'!J61 -> 3925182.392
E62: Quality of Service incentive | G62: £ | H62: ='ARP_General inputs'!J62 -> 8075106.48
E63: Connections Engagement incentive | G63: £ | H63: ='ARP_General inputs'!J63 -> 0
E64: Time to Connect incentive | G64: £ | H64: ='ARP_General inputs'!J64 -> 713669.5259
E65: Losses Discretionary Reward incentive | G65: £ | H65: ='ARP_General inputs'!J65 -> 735163
E66: Network Innovation Allowance | G66: £ | H66: ='ARP_General inputs'!J66 -> 1657301.508
E67: Low Carbon Network Fund - Tier 1 unrecoverable | G67: £ | H67: ='ARP_General inputs'!J67 -> 0
E68: Low Carbon Network Fund - Tier 2 & Discretionary Funding | G68: £ | H68: ='ARP_General inputs'!J68 -> 0
E69: Connection Guaranteed Standards Systems & Processes penalty | G69: £ | H69: ='ARP_General inputs'!J69 -> 0
E70: Residual Losses and Growth Incentive - Losses | G70: £ | H70: ='ARP_General inputs'!J70 -> 0
E71: Residual Losses and Growth Incentive - Growth | G71: £ | H71: ='ARP_General inputs'!J71 -> 0
E72: Incentive Revenue and Other Adjustments | G72: £ | H72: =SUM(H61:H71) -> 15106422.91
E74: Correction Factor | G74: £ | H74: ='ARP_General inputs'!J74 -> -5553744.68
E75: Total allowed Revenue | G75: £ | H75: =H74 + H72 + H59 + H48 + H47 -> 426050286.1
E77: Other 1. Excluded services - Top-up, standby, and enhanced system security | G77: £ | H77: ='ARP_General inputs'!J77 -> 0
E78: Other 2. Excluded services - Revenue protection services | G78: £ | H78: ='ARP_General inputs'!J78 -> 687596.0353
E79: Other 3. Excluded services - Miscellaneous | G79: £ | H79: ='ARP_General inputs'!J79 -> 0
E80: Other 4. Please describe if used | G80: £ | H80: ='ARP_General inputs'!J80 -> 0
E81: Other 5. Please describe if used | G81: £ | H81: ='ARP_General inputs'!J81 -> 0
E82: Total other revenue recovered by Use of System Charges | G82: £ | H82: =SUM(H77:H81) -> 687596.0353
E83: Total Revenue for Use of System Charges | G83: £ | H83: =H75+H82 -> 426737882.1
E85: 1. Revenue raised outside CDCM - EDCM and Certain Interconnector Revenue | G85: £ | H85: ='ARP_General inputs'!J85 -> 9556157.066
E86: 2. Revenue raised outside CDCM - Voluntary under-recovery | G86: £ | H86: ='ARP_General inputs'!J86 -> 0
E87: 3. Revenue raised outside CDCM - Please describe if used | G87: £ | H87: ='ARP_General inputs'!J87 -> 0
E88: 4. Revenue raised outside CDCM - Please describe if used | G88: £ | H88: ='ARP_General inputs'!J88 -> 0
E89: Total Revenue to be raised outside the CDCM | G89: £ | H89: =SUM(H85:H88) -> 9556157.066
E90: Latest forecast of CDCM Revenue | G90: £ | H90: =H83-H89 -> 417181725.1
C92: =INDEX('Version control'!$H$34:$H$58,MATCH($A$1,'Version control'!$F$34:$F$58,0),1)&"-D: Financial and general assumptions" -> Section 503-D: Financial and general assumptions
E94: Real pre-tax cost of capital | G94: % | H94: ='ARP_General inputs'!J100 -> 0.0369 | I94: > | J94: Paragraph 57
E95: Days in the charging year | G95: days | H95: ='ARP_General inputs'!J101 -> 365
E96: Hours in charging year | G96: hours | H96: =days_in_year * hours_in_day -> 8760
C98: =INDEX('Version control'!$H$34:$H$58,MATCH($A$1,'Version control'!$F$34:$F$58,0),1)&"-E: Transmission exit charges" -> Section 503-E: Transmission exit charges
E100: Transmission exit charges | G100: £ per year | H100: ='ARP_General inputs'!J105 -> 35908234.06 | I100: > | J100: Paragraph 38
C102: =INDEX('Version control'!$H$34:$H$58,MATCH($A$1,'Version control'!$F$34:$F$58,0),1)&"-F: Other expenditure" -> Section 503-F: Other expenditure
E104: Other expenditure | I104: > | J104: Paragraph 39
F105: Direct cost | G105: £ per year | H105: ='ARP_General inputs'!J110 -> 28803040.43
F106: Indirect cost | G106: £ per year | H106: ='ARP_General inputs'!J111 -> 83130091.18
F107: Network rates | G107: £ per year | H107: ='ARP_General inputs'!J112 -> 37991024.77
B109: Checks
E111: Check for error values | G111: number of issues | H111: =SUM(IF(ISERROR(H6:H108), 1)) -> 0
E113: Hours in charging year check
F114: Normal distribution timebands | G114: number of issues | H114: =IF(SUM(H19:H21) = hours_in_year, 0, 1) -> 0
F115: Special distribution timebands | G115: number of issues | H115: =IF(SUM(H24:H26) = hours_in_year, 0, 1) -> 0
E117: Summary of checks | G117: number of issues | H117: =SUM(H111,H114:H115) -> 0
B119: End of sheet

Sheet Standing charge factors
A1: =MID(CELL("filename",A1),FIND("]",CELL("filename",A1))+1,255) -> Standing charge factors
A2: =Cover!D21&" - "&Cover!D23 -> SP Distribution - One
A3: =Cover!D2&" - "&Cover!D8&" v"&Cover!D10&" - "&Cover!D19 -> ARP model - Release for charge setting v5 - 2021/22
A4: =H58 & IF(H58 = 1, " issue", " issues") &" identified in checks on this sheet" -> 0 issues identified in checks on this sheet
B5: Click here to return to model map | G5: Units | H5: Constants | J5: Domestic Aggregated | K5: Domestic Aggregated (Related MPAN) | L5: Non-Domestic Aggregated | M5: Non-Domestic Aggregated (Related MPAN) | N5: LV Site Specific | O5: LV Sub Site Specific | P5: HV Site Specific | Q5: Unmetered Supplies | R5: LV Generation Aggregated | S5: LV Sub Generation Aggregated | T5: LV Generation Site Specific | U5: LV Generation Site Specific no RP Charge | V5: LV Sub Generation Site Specific | W5: LV Sub Generation Site Specific no RP Charge | X5: HV Generation Site Specific | Y5: HV Generation Site Specific no RP Charge | AA5: Legal text reference
B7: Description
C9: This sheet contains standing charge factors, as described in DCUSA Schedule 16, Paragraphs 74-76.
C10: Standing charge factors are used to split network costs between those to be recovered through unit rate charges
C11: and those to be recovered through standing (capacity or fixed) charges, depending on the customer class and
C12: the network level at which costs occur.
C14: Standing charge factors are only applied for demand users.
C15: A factor of 100% implies that all costs will be allocated to standing charges.
B17: Adjustments to standing charges
C19: =INDEX('Version control'!$H$34:$H$58,MATCH($A$1,'Version control'!$F$34:$F$58,0),1)&"-A: Adjustments to standing charges" -> Section 504-A: Adjustments to standing charges
D21: Brings in standing charge factors and adjusts them for share of load going through 132/HV
E23: Raw inputs for standing charge factors, by network level | I23: > | AA23: Paragraph 74
E24: Standing charge factors as specified in Paragraph 74
F25: Transmission exit | G25: % | J25: ='Fixed inputs'!J88 -> 0 | K25: ='Fixed inputs'!K88 -> 0 | L25: ='Fixed inputs'!L88 -> 0 | M25: ='Fixed inputs'!M88 -> 0 | N25: ='Fixed inputs'!N88 -> 0 | O25: ='Fixed inputs'!O88 -> 0 | P25: ='Fixed inputs'!P88 -> 0 | Q25: ='Fixed inputs'!Q88 -> 0
F26: GSPs | G26: % | J26: ='Fixed inputs'!J89 -> 0 | K26: ='Fixed inputs'!K89 -> 0 | L26: ='Fixed inputs'!L89 -> 0 | M26: ='Fixed inputs'!M89 -> 0 | N26: ='Fixed inputs'!N89 -> 0 | O26: ='Fixed inputs'!O89 -> 0 | P26: ='Fixed inputs'!P89 -> 0 | Q26: ='Fixed inputs'!Q89 -> 0
F27: 132kV | G27: % | J27: ='Fixed inputs'!J90 -> 0 | K27: ='Fixed inputs'!K90 -> 0 | L27: ='Fixed inputs'!L90 -> 0 | M27: ='Fixed inputs'!M90 -> 0 | N27: ='Fixed inputs'!N90 -> 0 | O27: ='Fixed inputs'!O90 -> 0 | P27: ='Fixed inputs'!P90 -> 0 | Q27: ='Fixed inputs'!Q90 -> 0
F28: 132kV/EHV | G28: % | J28: ='Fixed inputs'!J91 -> 0 | K28: ='Fixed inputs'!K91 -> 0 | L28: ='Fixed inputs'!L91 -> 0 | M28: ='Fixed inputs'!M91 -> 0 | N28: ='Fixed inputs'!N91 -> 0 | O28: ='Fixed inputs'!O91 -> 0 | P28: ='Fixed inputs'!P91 -> 0 | Q28: ='Fixed inputs'!Q91 -> 0
F29: EHV | G29: % | J29: ='Fixed inputs'!J92 -> 0 | K29: ='Fixed inputs'!K92 -> 0 | L29: ='Fixed inputs'!L92 -> 0 | M29: ='Fixed inputs'!M92 -> 0 | N29: ='Fixed inputs'!N92 -> 0 | O29: ='Fixed inputs'!O92 -> 0 | P29: ='Fixed inputs'!P92 -> 0.2 | Q29: ='Fixed inputs'!Q92 -> 0
F30: EHV/HV | G30: % | J30: ='Fixed inputs'!J93 -> 0 | K30: ='Fixed inputs'!K93 -> 0 | L30: ='Fixed inputs'!L93 -> 0 | M30: ='Fixed inputs'!M93 -> 0 | N30: ='Fixed inputs'!N93 -> 0 | O30: ='Fixed inputs'!O93 -> 0 | P30: ='Fixed inputs'!P93 -> 1 | Q30: ='Fixed inputs'!Q93 -> 0
F31: 132kV/HV | G31: % | J31: ='Fixed inputs'!J94 -> 0 | K31: ='Fixed inputs'!K94 -> 0 | L31: ='Fixed inputs'!L94 -> 0 | M31: ='Fixed inputs'!M94 -> 0 | N31: ='Fixed inputs'!N94 -> 0 | O31: ='Fixed inputs'!O94 -> 0 | P31: ='Fixed inputs'!P94 -> 0 | Q31: ='Fixed inputs'!Q94 -> 0
F32: HV | G32: % | J32: ='Fixed inputs'!J95 -> 0 | K32: ='Fixed inputs'!K95 -> 0 | L32: ='Fixed inputs'!L95 -> 0 | M32: ='Fixed inputs'!M95 -> 0 | N32: ='Fixed inputs'!N95 -> 0.2 | O32: ='Fixed inputs'!O95 -> 1 | P32: ='Fixed inputs'!P95 -> 1 | Q32: ='Fixed inputs'!Q95 -> 0
F33: HV/LV | G33: % | J33: ='Fixed inputs'!J96 -> 0 | K33: ='Fixed inputs'!K96 -> 0 | L33: ='Fixed inputs'!L96 -> 0 | M33: ='Fixed inputs'!M96 -> 0 | N33: ='Fixed inputs'!N96 -> 1 | O33: ='Fixed inputs'!O96 -> 1 | P33: ='Fixed inputs'!P96 -> 0 | Q33: ='Fixed inputs'!Q96 -> 0
F34: LV circuits | G34: % | J34: ='Fixed inputs'!J97 -> 1 | K34: ='Fixed inputs'!K97 -> 1 | L34: ='Fixed inputs'!L97 -> 1 | M34: ='Fixed inputs'!M97 -> 1 | N34: ='Fixed inputs'!N97 -> 1 | O34: ='Fixed inputs'!O97 -> 0 | P34: ='Fixed inputs'!P97 -> 0 | Q34: ='Fixed inputs'!Q97 -> 0
F35: LV customers | G35: %
F36: HV customers | G36: %
E38: Proportion of load going through 132kV/HV direct transformation
F39: Proportion of load going through 132kV/HV direct transformation | G39: % | H39: ='Inputs by network level'!P20 -> 0
E41: Standing charges factors adapted to use 132kV/HV, by network level
E42: Adjustments as described in Paragraph 75 and 76
F43: Transmission exit | G43: %
F44: GSPs | G44: %
F45: 132kV | G45: % | I45: > | J45: =IF($H$39 = 0, J27, J29 * $H$39) -> 0 | K45: =IF($H$39 = 0, K27, K29 * $H$39) -> 0 | L45: 0 | M45: 0 | N45: 0 | O45: 0 | P45: 0 | Q45: 0 | AA45: Paragraph 76
F46: 132kV/EHV | G46: % | J46: =J28 -> 0 | K46: 0 | L46: 0 | M46: 0 | N46: 0 | O46: 0 | P46: 0 | Q46: 0
F47: EHV | G47: % | J47: 0 | K47: 0 | L47: 0 | M47: 0 | N47: 0 | O47: 0 | P47: 0.2 | Q47: 0
F48: EHV/HV | G48: % | J48: 0 | K48: 0 | L48: 0 | M48: 0 | N48: 0 | O48: 0 | P48: 1 | Q48: 0
F49: 132kV/HV | G49: % | I49: > | J49: =J30 -> 0 | K49: 0 | L49: 0 | M49: 0 | N49: 0 | O49: 0 | P49: 1 | Q49: 0 | AA49: Paragraph 75
F50: HV | G50: % | J50: =J32 -> 0 | K50: 0 | L50: 0 | M50: 0 | N50: 0.2 | O50: 1 | P50: 1 | Q50: 0
F51: HV/LV | G51: % | J51: 0 | K51: 0 | L51: 0 | M51: 0 | N51: 1 | O51: 1 | P51: 0 | Q51: 0
F52: LV circuits | G52: % | J52: 1 | K52: 1 | L52: 1 | M52: 1 | N52: 1 | O52: 0 | P52: 0 | Q52: 0
F53: LV customers | G53: %
F54: HV customers | G54: %
B56: Checks
E58: Check for error values | G58: number of issues | H58: =SUM(IF(ISERROR(H25:Y54), 1)) -> 0
B60: End of sheet

Sheet Load & loss characteristics
A1: =MID(CELL("filename",A1),FIND("]",CELL("filename",A1))+1,255) -> Load & loss characteristics
A2: =Cover!D21&" - "&Cover!D23 -> SP Distribution - One
A3: =Cover!D2&" - "&Cover!D8&" v"&Cover!D10&" - "&Cover!D19 -> ARP model - Release for charge setting v5 - 2021/22
A4: =H183 & IF(H183 = 1, " issue", " issues") &" identified in checks on this sheet" -> 0 issues identified in checks on this sheet
B5: Click here to return to model map | G5: Units | H5: Constants | J5: Transmission exit | K5: GSPs | L5: 132kV | M5: 132kV/EHV | N5: EHV | O5: EHV/HV | P5: 132kV/HV | Q5: HV | R5: HV/LV | S5: LV circuits | T5: LV customers | U5: HV customers | W5: Legal text reference
B7: Description
C9: This sheet adjusts diversity allowances, coincidence factors and loss adjustment factors for use in the model
C10: This sheet then uses network use factors and loss adjustment factors to calculate user loss factors
C11: Network use factors and user loss factors are also adjusted for the share of load going through 132/HV transformation
B13: Load and loss characteristics
C15: Brings in diversity allowances to calculate coincidence and cumulative diversity factors. Also adjusts loss adjustment factors.
C17: =INDEX('Version control'!$H$34:$H$58,MATCH($A$1,'Version control'!$F$34:$F$58,0),1)&"-A: Load characteristics" -> Section 505-A: Load characteristics
E19: Network model diversity allowances | G19: % | K19: ='Inputs by network level'!K18 -> 0.116 | L19: ='Inputs by network level'!L18 -> 0 | N19: ='Inputs by network level'!N18 -> 0.13 | Q19: ='Inputs by network level'!Q18 -> 0.25
E20: Coincidence factor | G20: % | J20: =IF(I20 = "", 1, I20 / (1 + J19)) -> 1 | K20: =IF(J20 = "", 1, J20 / (1 + K19)) -> 0.8960573477 | L20: =IF(K20 = "", 1, K20 / (1 + L19)) -> 0.8960573477 | M20: 0.8960573477 | N20: 0.7929711041 | O20: 0.7929711041 | P20: 0.7929711041 | Q20: 0.6343768833 | R20: 0.6343768833 | S20: 0.6343768833
E21: Network model cumulative diversity factor | G21: % | J21: =1 / J20 - 1 -> 0 | K21: =1 / K20 - 1 -> 0.116 | L21: 0.116 | M21: 0.116 | N21: 0.26108 | O21: 0.26108 | P21: 0.26108 | Q21: 0.57635 | R21: 0.57635 | S21: 0.57635
E22: Adjustment for 132/HV diversity | G22: % | P22: =M21 -> 0.116
E23: Adjusted network model cumulative diversity factor | G23: % | I23: > | J23: =IF(J22 = "", J21, J22) -> 0 | K23: 0.116 | L23: 0.116 | M23: 0.116 | N23: 0.26108 | O23: 0.26108 | P23: 0.116 | Q23: 0.57635 | R23: 0.57635 | S23: 0.57635 | W23: Paragraphs 42 to 44
C25: =INDEX('Version control'!$H$34:$H$58,MATCH($A$1,'Version control'!$F$34:$F$58,0),1)&"-B: Loss adjustment factors" -> Section 505-B: Loss adjustment factors
E27: Loss adjustment factor to transmission | G27: scalar | K27: ='Inputs by network level'!K22 -> 1 | L27: ='Inputs by network level'!L22 -> 1 | M27: ='Inputs by network level'!M22 -> 1 | N27: ='Inputs by network level'!N22 -> 1.004 | O27: ='Inputs by network level'!O22 -> 1.013 | Q27: ='Inputs by network level'!Q22 -> 1.026 | R27: ='Inputs by network level'!R22 -> 1.044 | S27: ='Inputs by network level'!S22 -> 1.098
E28: Adjustment for 132/HV transformation & transmission exit | G28: scalar | J28: =K27 -> 1 | P28: =O27 -> 1.013
E29: Loss adjustment factor to transmission for each DRM network level | G29: scalar | I29: > | J29: =J27 + J28 -> 1 | K29: 1 | L29: 1 | M29: 1 | N29: 1.004 | O29: 1.013 | P29: 1.013 | Q29: 1.026 | R29: 1.044 | S29: 1.098 | W29: Paragraph 47
B31: User loss factor adjustments
C33: Calculates user loss factors and makes adjustments for share of load going through 132kV/HV
C35: =INDEX('Version control'!$H$34:$H$58,MATCH($A$1,'Version control'!$F$34:$F$58,0),1)&"-C: Proportion of relevant load going through 132kV/HV direct transformation" -> Section 505-C: Proportion of relevant load going through 132kV/HV direct transformation
E37: 132kV/HV | G37: % | H37: ='Inputs by network level'!P20 -> 0
E38: Adjustment to network use factors for 132/HV share | G38: % | M38: =1 - $H$37 -> 1 | N38: =1 - $H$37 -> 1 | O38: =1 - $H$37 -> 1 | P38: =H37 -> 0
C40: =INDEX('Version control'!$H$34:$H$58,MATCH($A$1,'Version control'!$F$34:$F$58,0),1)&"-D: Network use factors" -> Section 505-D: Network use factors
D42: Network use factors assume demand and generation use the network from the point of connection.
E44: Network use factors (assuming generation contributes at level of connection)
E45: These values are drawn from the "Fixed inputs" sheet.
F46: Domestic Aggregated | G46: 1, 0 or -1 | J46: =TRANSPOSE('Fixed inputs'!J60:Y69) -> 1 | K46: 1 | L46: 1 | M46: 1 | N46: 1 | O46: 1 | P46: 1 | Q46: 1 | R46: 1 | S46: 1
F47: Domestic Aggregated (Related MPAN) | G47: 1, 0 or -1 | J47: 1 | K47: 1 | L47: 1 | M47: 1 | N47: 1 | O47: 1 | P47: 1 | Q47: 1 | R47: 1 | S47: 1
F48: Non-Domestic Aggregated | G48: 1, 0 or -1 | J48: 1 | K48: 1 | L48: 1 | M48: 1 | N48: 1 | O48: 1 | P48: 1 | Q48: 1 | R48: 1 | S48: 1
F49: Non-Domestic Aggregated (Related MPAN) | G49: 1, 0 or -1 | J49: 1 | K49: 1 | L49: 1 | M49: 1 | N49: 1 | O49: 1 | P49: 1 | Q49: 1 | R49: 1 | S49: 1
F50: LV Site Specific | G50: 1, 0 or -1 | J50: 1 | K50: 1 | L50: 1 | M50: 1 | N50: 1 | O50: 1 | P50: 1 | Q50: 1 | R50: 1 | S50: 1
F51: LV Sub Site Specific | G51: 1, 0 or -1 | J51: 1 | K51: 1 | L51: 1 | M51: 1 | N51: 1 | O51: 1 | P51: 1 | Q51: 1 | R51: 1 | S51: 0
F52: HV Site Specific | G52: 1, 0 or -1 | J52: 1 | K52: 1 | L52: 1 | M52: 1 | N52: 1 | O52: 1 | P52: 1 | Q52: 1 | R52: 0 | S52: 0
F53: Unmetered Supplies | G53: 1, 0 or -1 | J53: 1 | K53: 1 | L53: 1 | M53: 1 | N53: 1 | O53: 1 | P53: 1 | Q53: 1 | R53: 1 | S53: 1
F54: LV Generation Aggregated | G54: 1, 0 or -1 | J54: -1 | K54: -1 | L54: -1 | M54: -1 | N54: -1 | O54: -1 | P54: -1 | Q54: -1 | R54: -1 | S54: -1
F55: LV Sub Generation Aggregated | G55: 1, 0 or -1 | J55: -1 | K55: -1 | L55: -1 | M55: -1 | N55: -1 | O55: -1 | P55: -1 | Q55: -1 | R55: -1 | S55: 0
F56: LV Generation Site Specific | G56: 1, 0 or -1 | J56: -1 | K56: -1 | L56: -1 | M56: -1 | N56: -1 | O56: -1 | P56: -1 | Q56: -1 | R56: -1 | S56: -1
F57: LV Generation Site Specific no RP Charge | G57: 1, 0 or -1 | J57: -1 | K57: -1 | L57: -1 | M57: -1 | N57: -1 | O57: -1 | P57: -1 | Q57: -1 | R57: -1 | S57: -1
F58: LV Sub Generation Site Specific | G58: 1, 0 or -1 | J58: -1 | K58: -1 | L58: -1 | M58: -1 | N58: -1 | O58: -1 | P58: -1 | Q58: -1 | R58: -1 | S58: 0
F59: LV Sub Generation Site Specific no RP Charge | G59: 1, 0 or -1 | J59: -1 | K59: -1 | L59: -1 | M59: -1 | N59: -1 | O59: -1 | P59: -1 | Q59: -1 | R59: -1 | S59: 0
F60: HV Generation Site Specific | G60: 1, 0 or -1 | J60: -1 | K60: -1 | L60: -1 | M60: -1 | N60: -1 | O60: -1 | P60: -1 | Q60: -1 | R60: 0 | S60: 0
F61: HV Generation Site Specific no RP Charge | G61: 1, 0 or -1 | J61: -1 | K61: -1 | L61: -1 | M61: -1 | N61: -1 | O61: -1 | P61: -1 | Q61: -1 | R61: 0 | S61: 0
E63: Network use factors (assuming generation contributes at level of connection) scaled for 132/HV
E64: These have been adjusted for the share of load going through 132/HV transformation
F65: Domestic Aggregated | G65: 1, 0 or -1 | J65: =IF(J$38 = "", J46, J46 * J$38) -> 1 | K65: 1 | L65: 1 | M65: 1 | N65: 1 | O65: 1 | P65: 0 | Q65: 1 | R65: 1 | S65: 1
F66: Domestic Aggregated (Related MPAN) | G66: 1, 0 or -1 | J66: 1 | K66: 1 | L66: 1 | M66: 1 | N66: 1 | O66: 1 | P66: 0 | Q66: 1 | R66: 1 | S66: 1
F67: Non-Domestic Aggregated | G67: 1, 0 or -1 | J67: 1 | K67: 1 | L67: 1 | M67: 1 | N67: 1 | O67: 1 | P67: 0 | Q67: 1 | R67: 1 | S67: 1
F68: Non-Domestic Aggregated (Related MPAN) | G68: 1, 0 or -1 | J68: 1 | K68: 1 | L68: 1 | M68: 1 | N68: 1 | O68: 1 | P68: 0 | Q68: 1 | R68: 1 | S68: 1
F69: LV Site Specific | G69: 1, 0 or -1 | J69: 1 | K69: 1 | L69: 1 | M69: 1 | N69: 1 | O69: 1 | P69: 0 | Q69: 1 | R69: 1 | S69: 1
F70: LV Sub Site Specific | G70: 1, 0 or -1 | J70: 1 | K70: 1 | L70: 1 | M70: 1 | N70: 1 | O70: 1 | P70: 0 | Q70: 1 | R70: 1 | S70: 0
F71: HV Site Specific | G71: 1, 0 or -1 | J71: 1 | K71: 1 | L71: 1 | M71: 1 | N71: 1 | O71: 1 | P71: 0 | Q71: 1 | R71: 0 | S71: 0
F72: Unmetered Supplies | G72: 1, 0 or -1 | J72: 1 | K72: 1 | L72: 1 | M72: 1 | N72: 1 | O72: 1 | P72: 0 | Q72: 1 | R72: 1 | S72: 1
F73: LV Generation Aggregated | G73: 1, 0 or -1 | J73: -1 | K73: -1 | L73: -1 | M73: -1 | N73: -1 | O73: -1 | P73: 0 | Q73: -1 | R73: -1 | S73: -1
F74: LV Sub Generation Aggregated | G74: 1, 0 or -1 | J74: -1 | K74: -1 | L74: -1 | M74: -1 | N74: -1 | O74: -1 | P74: 0 | Q74: -1 | R74: -1 | S74: 0
F75: LV Generation Site Specific | G75: 1, 0 or -1 | J75: -1 | K75: -1 | L75: -1 | M75: -1 | N75: -1 | O75: -1 | P75: 0 | Q75: -1 | R75: -1 | S75: -1
F76: LV Generation Site Specific no RP Charge | G76: 1, 0 or -1 | J76: -1 | K76: -1 | L76: -1 | M76: -1 | N76: -1 | O76: -1 | P76: 0 | Q76: -1 | R76: -1 | S76: -1
F77: LV Sub Generation Site Specific | G77: 1, 0 or -1 | J77: -1 | K77: -1 | L77: -1 | M77: -1 | N77: -1 | O77: -1 | P77: 0 | Q77: -1 | R77: -1 | S77: 0
F78: LV Sub Generation Site Specific no RP Charge | G78: 1, 0 or -1 | J78: -1 | K78: -1 | L78: -1 | M78: -1 | N78: -1 | O78: -1 | P78: 0 | Q78: -1 | R78: -1 | S78: 0
F79: HV Generation Site Specific | G79: 1, 0 or -1 | J79: -1 | K79: -1 | L79: -1 | M79: -1 | N79: -1 | O79: -1 | P79: 0 | Q79: -1 | R79: 0 | S79: 0
F80: HV Generation Site Specific no RP Charge | G80: 1, 0 or -1 | J80: -1 | K80: -1 | L80: -1 | M80: -1 | N80: -1 | O80: -1 | P80: 0 | Q80: -1 | R80: 0 | S80: 0
E82: Network use factors (assuming generation makes no contribution at level of connection) | I82: > | W82: Paragraphs 62 and 71
E83: Equal to 0 for the network level at which generation is connected, otherwise equal to network use factor
F84: Domestic Aggregated | G84: 1 or 0 | J84: =TRANSPOSE('Fixed inputs'!J73:Y82) -> 1 | K84: 1 | L84: 1 | M84: 1 | N84: 1 | O84: 1 | P84: 1 | Q84: 1 | R84: 1 | S84: 1
F85: Domestic Aggregated (Related MPAN) | G85: 1 or 0 | J85: 1 | K85: 1 | L85: 1 | M85: 1 | N85: 1 | O85: 1 | P85: 1 | Q85: 1 | R85: 1 | S85: 1
F86: Non-Domestic Aggregated | G86: 1 or 0 | J86: 1 | K86: 1 | L86: 1 | M86: 1 | N86: 1 | O86: 1 | P86: 1 | Q86: 1 | R86: 1 | S86: 1
F87: Non-Domestic Aggregated (Related MPAN) | G87: 1 or 0 | J87: 1 | K87: 1 | L87: 1 | M87: 1 | N87: 1 | O87: 1 | P87: 1 | Q87: 1 | R87: 1 | S87: 1
F88: LV Site Specific | G88: 1 or 0 | J88: 1 | K88: 1 | L88: 1 | M88: 1 | N88: 1 | O88: 1 | P88: 1 | Q88: 1 | R88: 1 | S88: 1
F89: LV Sub Site Specific | G89: 1 or 0 | J89: 1 | K89: 1 | L89: 1 | M89: 1 | N89: 1 | O89: 1 | P89: 1 | Q89: 1 | R89: 1 | S89: 0
F90: HV Site Specific | G90: 1 or 0 | J90: 1 | K90: 1 | L90: 1 | M90: 1 | N90: 1 | O90: 1 | P90: 1 | Q90: 1 | R90: 0 | S90: 0
F91: Unmetered Supplies | G91: 1 or 0 | J91: 1 | K91: 1 | L91: 1 | M91: 1 | N91: 1 | O91: 1 | P91: 1 | Q91: 1 | R91: 1 | S91: 1
F92: LV Generation Aggregated | G92: 1 or 0 | J92: -1 | K92: -1 | L92: -1 | M92: -1 | N92: -1 | O92: -1 | P92: -1 | Q92: -1 | R92: -1 | S92: 0
F93: LV Sub Generation Aggregated | G93: 1 or 0 | J93: -1 | K93: -1 | L93: -1 | M93: -1 | N93: -1 | O93: -1 | P93: -1 | Q93: -1 | R93: 0 | S93: 0
F94: LV Generation Site Specific | G94: 1 or 0 | J94: -1 | K94: -1 | L94: -1 | M94: -1 | N94: -1 | O94: -1 | P94: -1 | Q94: -1 | R94: -1 | S94: 0
F95: LV Generation Site Specific no RP Charge | G95: 1 or 0 | J95: -1 | K95: -1 | L95: -1 | M95: -1 | N95: -1 | O95: -1 | P95: -1 | Q95: -1 | R95: -1 | S95: 0
F96: LV Sub Generation Site Specific | G96: 1 or 0 | J96: -1 | K96: -1 | L96: -1 | M96: -1 | N96: -1 | O96: -1 | P96: -1 | Q96: -1 | R96: 0 | S96: 0
F97: LV Sub Generation Site Specific no RP Charge | G97: 1 or 0 | J97: -1 | K97: -1 | L97: -1 | M97: -1 | N97: -1 | O97: -1 | P97: -1 | Q97: -1 | R97: 0 | S97: 0
F98: HV Generation Site Specific | G98: 1 or 0 | J98: -1 | K98: -1 | L98: -1 | M98: -1 | N98: -1 | O98: -1 | P98: -1 | Q98: 0 | R98: 0 | S98: 0
F99: HV Generation Site Specific no RP Charge | G99: 1 or 0 | J99: -1 | K99: -1 | L99: -1 | M99: -1 | N99: -1 | O99: -1 | P99: -1 | Q99: 0 | R99: 0 | S99: 0
E101: Network use factors (assuming generation makes no contribution at level of connection), scaled for 132/HV | I101: > | W101: Paragraphs 62 and 71
E102: Equal to 0 for the network level at which generation is connected, otherwise equal to network use factor
E103: These have been adjusted for the share of load going through 132/HV transformation
F104: Domestic Aggregated | G104: 1 or 0 | J104: =IF(J$38 = "", J84, J84 * J$38) -> 1 | K104: 1 | L104: 1 | M104: 1 | N104: 1 | O104: 1 | P104: 0 | Q104: 1 | R104: 1 | S104: 1
F105: Domestic Aggregated (Related MPAN) | G105: 1 or 0 | J105: 1 | K105: 1 | L105: 1 | M105: 1 | N105: 1 | O105: 1 | P105: 0 | Q105: 1 | R105: 1 | S105: 1
F106: Non-Domestic Aggregated | G106: 1 or 0 | J106: 1 | K106: 1 | L106: 1 | M106: 1 | N106: 1 | O106: 1 | P106: 0 | Q106: 1 | R106: 1 | S106: 1
F107: Non-Domestic Aggregated (Related MPAN) | G107: 1 or 0 | J107: 1 | K107: 1 | L107: 1 | M107: 1 | N107: 1 | O107: 1 | P107: 0 | Q107: 1 | R107: 1 | S107: 1
F108: LV Site Specific | G108: 1 or 0 | J108: 1 | K108: 1 | L108: 1 | M108: 1 | N108: 1 | O108: 1 | P108: 0 | Q108: 1 | R108: 1 | S108: 1
F109: LV Sub Site Specific | G109: 1 or 0 | J109: 1 | K109: 1 | L109: 1 | M109: 1 | N109: 1 | O109: 1 | P109: 0 | Q109: 1 | R109: 1 | S109: 0
F110: HV Site Specific | G110: 1 or 0 | J110: 1 | K110: 1 | L110: 1 | M110: 1 | N110: 1 | O110: 1 | P110: 0 | Q110: 1 | R110: 0 | S110: 0
F111: Unmetered Supplies | G111: 1 or 0 | J111: 1 | K111: 1 | L111: 1 | M111: 1 | N111: 1 | O111: 1 | P111: 0 | Q111: 1 | R111: 1 | S111: 1
F112: LV Generation Aggregated | G112: 1 or 0 | J112: -1 | K112: -1 | L112: -1 | M112: -1 | N112: -1 | O112: -1 | P112: 0 | Q112: -1 | R112: -1 | S112: 0
F113: LV Sub Generation Aggregated | G113: 1 or 0 | J113: -1 | K113: -1 | L113: -1 | M113: -1 | N113: -1 | O113: -1 | P113: 0 | Q113: -1 | R113: 0 | S113: 0
F114: LV Generation Site Specific | G114: 1 or 0 | J114: -1 | K114: -1 | L114: -1 | M114: -1 | N114: -1 | O114: -1 | P114: 0 | Q114: -1 | R114: -1 | S114: 0
F115: LV Generation Site Specific no RP Charge | G115: 1 or 0 | J115: -1 | K115: -1 | L115: -1 | M115: -1 | N115: -1 | O115: -1 | P115: 0 | Q115: -1 | R115: -1 | S115: 0
F116: LV Sub Generation Site Specific | G116: 1 or 0 | J116: -1 | K116: -1 | L116: -1 | M116: -1 | N116: -1 | O116: -1 | P116: 0 | Q116: -1 | R116: 0 | S116: 0
F117: LV Sub Generation Site Specific no RP Charge | G117: 1 or 0 | J117: -1 | K117: -1 | L117: -1 | M117: -1 | N117: -1 | O117: -1 | P117: 0 | Q117: -1 | R117: 0 | S117: 0
F118: HV Generation Site Specific | G118: 1 or 0 | J118: -1 | K118: -1 | L118: -1 | M118: -1 | N118: -1 | O118: -1 | P118: 0 | Q118: 0 | R118: 0 | S118: 0
F119: HV Generation Site Specific no RP Charge | G119: 1 or 0 | J119: -1 | K119: -1 | L119: -1 | M119: -1 | N119: -1 | O119: -1 | P119: 0 | Q119: 0 | R119: 0 | S119: 0
C121: =INDEX('Version control'!$H$34:$H$58,MATCH($A$1,'Version control'!$F$34:$F$58,0),1)&"-E: User loss factors" -> Section 505-E: User loss factors
E123: User loss factor (assuming generation contributes at level of connection)
E124: For demand, it is the loss factor at network level which user is supplied.
E125: For generation, it is the loss factor at network level which user is supplied. | H125: Maximum
F126: Domestic Aggregated | G126: scalar | H126: =MAX(J126:S126) -> 1.098 | J126: =OR(SUM(J65:$S65) = 1, SUM(J65:$S65) = -1) * J$29 -> 0 | K126: =OR(SUM(K65:$S65) = 1, SUM(K65:$S65) = -1) * K$29 -> 0 | L126: =OR(SUM(L65:$S65) = 1, SUM(L65:$S65) = -1) * L$29 -> 0 | M126: =OR(SUM(M65:$S65) = 1, SUM(M65:$S65) = -1) * M$29 -> 0 | N126: =OR(SUM(N65:$S65) = 1, SUM(N65:$S65) = -1) * N$29 -> 0 | O126: =OR(SUM(O65:$S65) = 1, SUM(O65:$S65) = -1) * O$29 -> 0 | P126: =OR(SUM(P65:$S65) = 1, SUM(P65:$S65) = -1) * P$29 -> 0 | Q126: =OR(SUM(Q65:$S65) = 1, SUM(Q65:$S65) = -1) * Q$29 -> 0 | R126: =OR(SUM(R65:$S65) = 1, SUM(R65:$S65) = -1) * R$29 -> 0 | S126: =OR(SUM(S65:$S65) = 1, SUM(S65:$S65) = -1) * S$29 -> 1.098
F127: Domestic Aggregated (Related MPAN) | G127: scalar | H127: 1.098 | J127: =OR(SUM(J66:$S66) = 1, SUM(J66:$S66) = -1) * J$29 -> 0 | K127: =OR(SUM(K66:$S66) = 1, SUM(K66:$S66) = -1) * K$29 -> 0 | L127: =OR(SUM(L66:$S66) = 1, SUM(L66:$S66) = -1) * L$29 -> 0 | M127: =OR(SUM(M66:$S66) = 1, SUM(M66:$S66) = -1) * M$29 -> 0 | N127: =OR(SUM(N66:$S66) = 1, SUM(N66:$S66) = -1) * N$29 -> 0 | O127: =OR(SUM(O66:$S66) = 1, SUM(O66:$S66) = -1) * O$29 -> 0 | P127: =OR(SUM(P66:$S66) = 1, SUM(P66:$S66) = -1) * P$29 -> 0 | Q127: =OR(SUM(Q66:$S66) = 1, SUM(Q66:$S66) = -1) * Q$29 -> 0 | R127: =OR(SUM(R66:$S66) = 1, SUM(R66:$S66) = -1) * R$29 -> 0 | S127: =OR(SUM(S66:$S66) = 1, SUM(S66:$S66) = -1) * S$29 -> 1.098
F128: Non-Domestic Aggregated | G128: scalar | H128: 1.098 | J128: =OR(SUM(J67:$S67) = 1, SUM(J67:$S67) = -1) * J$29 -> 0 | K128: =OR(SUM(K67:$S67) = 1, SUM(K67:$S67) = -1) * K$29 -> 0 | L128: =OR(SUM(L67:$S67) = 1, SUM(L67:$S67) = -1) * L$29 -> 0 | M128: =OR(SUM(M67:$S67) = 1, SUM(M67:$S67) = -1) * M$29 -> 0 | N128: =OR(SUM(N67:$S67) = 1, SUM(N67:$S67) = -1) * N$29 -> 0 | O128: =OR(SUM(O67:$S67) = 1, SUM(O67:$S67) = -1) * O$29 -> 0 | P128: =OR(SUM(P67:$S67) = 1, SUM(P67:$S67) = -1) * P$29 -> 0 | Q128: =OR(SUM(Q67:$S67) = 1, SUM(Q67:$S67) = -1) * Q$29 -> 0 | R128: =OR(SUM(R67:$S67) = 1, SUM(R67:$S67) = -1) * R$29 -> 0 | S128: =OR(SUM(S67:$S67) = 1, SUM(S67:$S67) = -1) * S$29 -> 1.098
F129: Non-Domestic Aggregated (Related MPAN) | G129: scalar | H129: 1.098 | J129: =OR(SUM(J68:$S68) = 1, SUM(J68:$S68) = -1) * J$29 -> 0 | K129: =OR(SUM(K68:$S68) = 1, SUM(K68:$S68) = -1) * K$29 -> 0 | L129: =OR(SUM(L68:$S68) = 1, SUM(L68:$S68) = -1) * L$29 -> 0 | M129: =OR(SUM(M68:$S68) = 1, SUM(M68:$S68) = -1) * M$29 -> 0 | N129: =OR(SUM(N68:$S68) = 1, SUM(N68:$S68) = -1) * N$29 -> 0 | O129: =OR(SUM(O68:$S68) = 1, SUM(O68:$S68) = -1) * O$29 -> 0 | P129: =OR(SUM(P68:$S68) = 1, SUM(P68:$S68) = -1) * P$29 -> 0 | Q129: =OR(SUM(Q68:$S68) = 1, SUM(Q68:$S68) = -1) * Q$29 -> 0 | R129: =OR(SUM(R68:$S68) = 1, SUM(R68:$S68) = -1) * R$29 -> 0 | S129: =OR(SUM(S68:$S68) = 1, SUM(S68:$S68) = -1) * S$29 -> 1.098
F130: LV Site Specific | G130: scalar | H130: 1.098 | J130: =OR(SUM(J69:$S69) = 1, SUM(J69:$S69) = -1) * J$29 -> 0 | K130: =OR(SUM(K69:$S69) = 1, SUM(K69:$S69) = -1) * K$29 -> 0 | L130: =OR(SUM(L69:$S69) = 1, SUM(L69:$S69) = -1) * L$29 -> 0 | M130: =OR(SUM(M69:$S69) = 1, SUM(M69:$S69) = -1) * M$29 -> 0 | N130: =OR(SUM(N69:$S69) = 1, SUM(N69:$S69) = -1) * N$29 -> 0 | O130: =OR(SUM(O69:$S69) = 1, SUM(O69:$S69) = -1) * O$29 -> 0 | P130: =OR(SUM(P69:$S69) = 1, SUM(P69:$S69) = -1) * P$29 -> 0 | Q130: =OR(SUM(Q69:$S69) = 1, SUM(Q69:$S69) = -1) * Q$29 -> 0 | R130: =OR(SUM(R69:$S69) = 1, SUM(R69:$S69) = -1) * R$29 -> 0 | S130: =OR(SUM(S69:$S69) = 1, SUM(S69:$S69) = -1) * S$29 -> 1.098
F131: LV Sub Site Specific | G131: scalar | H131: 1.044 | J131: =OR(SUM(J70:$S70) = 1, SUM(J70:$S70) = -1) * J$29 -> 0 | K131: =OR(SUM(K70:$S70) = 1, SUM(K70:$S70) = -1) * K$29 -> 0 | L131: =OR(SUM(L70:$S70) = 1, SUM(L70:$S70) = -1) * L$29 -> 0 | M131: =OR(SUM(M70:$S70) = 1, SUM(M70:$S70) = -1) * M$29 -> 0 | N131: =OR(SUM(N70:$S70) = 1, SUM(N70:$S70) = -1) * N$29 -> 0 | O131: =OR(SUM(O70:$S70) = 1, SUM(O70:$S70) = -1) * O$29 -> 0 | P131: =OR(SUM(P70:$S70) = 1, SUM(P70:$S70) = -1) * P$29 -> 0 | Q131: =OR(SUM(Q70:$S70) = 1, SUM(Q70:$S70) = -1) * Q$29 -> 0 | R131: =OR(SUM(R70:$S70) = 1, SUM(R70:$S70) = -1) * R$29 -> 1.044 | S131: =OR(SUM(S70:$S70) = 1, SUM(S70:$S70) = -1) * S$29 -> 0
F132: HV Site Specific | G132: scalar | H132: 1.026 | J132: =OR(SUM(J71:$S71) = 1, SUM(J71:$S71) = -1) * J$29 -> 0 | K132: =OR(SUM(K71:$S71) = 1, SUM(K71:$S71) = -1) * K$29 -> 0 | L132: =OR(SUM(L71:$S71) = 1, SUM(L71:$S71) = -1) * L$29 -> 0 | M132: =OR(SUM(M71:$S71) = 1, SUM(M71:$S71) = -1) * M$29 -> 0 | N132: =OR(SUM(N71:$S71) = 1, SUM(N71:$S71) = -1) * N$29 -> 0 | O132: =OR(SUM(O71:$S71) = 1, SUM(O71:$S71) = -1) * O$29 -> 0 | P132: =OR(SUM(P71:$S71) = 1, SUM(P71:$S71) = -1) * P$29 -> 1.013 | Q132: =OR(SUM(Q71:$S71) = 1, SUM(Q71:$S71) = -1) * Q$29 -> 1.026 | R132: =OR(SUM(R71:$S71) = 1, SUM(R71:$S71) = -1) * R$29 -> 0 | S132: =OR(SUM(S71:$S71) = 1, SUM(S71:$S71) = -1) * S$29 -> 0
F133: Unmetered Supplies | G133: scalar | H133: 1.098 | J133: =OR(SUM(J72:$S72) = 1, SUM(J72:$S72) = -1) * J$29 -> 0 | K133: =OR(SUM(K72:$S72) = 1, SUM(K72:$S72) = -1) * K$29 -> 0 | L133: =OR(SUM(L72:$S72) = 1, SUM(L72:$S72) = -1) * L$29 -> 0 | M133: =OR(SUM(M72:$S72) = 1, SUM(M72:$S72) = -1) * M$29 -> 0 | N133: =OR(SUM(N72:$S72) = 1, SUM(N72:$S72) = -1) * N$29 -> 0 | O133: =OR(SUM(O72:$S72) = 1, SUM(O72:$S72) = -1) * O$29 -> 0 | P133: =OR(SUM(P72:$S72) = 1, SUM(P72:$S72) = -1) * P$29 -> 0 | Q133: =OR(SUM(Q72:$S72) = 1, SUM(Q72:$S72) = -1) * Q$29 -> 0 | R133: =OR(SUM(R72:$S72) = 1, SUM(R72:$S72) = -1) * R$29 -> 0 | S133: =OR(SUM(S72:$S72) = 1, SUM(S72:$S72) = -1) * S$29 -> 1.098
F134: LV Generation Aggregated | G134: scalar | H134: 1.098 | J134: =OR(SUM(J73:$S73) = 1, SUM(J73:$S73) = -1) * J$29 -> 0 | K134: =OR(SUM(K73:$S73) = 1, SUM(K73:$S73) = -1) * K$29 -> 0 | L134: =OR(SUM(L73:$S73) = 1, SUM(L73:$S73) = -1) * L$29 -> 0 | M134: =OR(SUM(M73:$S73) = 1, SUM(M73:$S73) = -1) * M$29 -> 0 | N134: =OR(SUM(N73:$S73) = 1, SUM(N73:$S73) = -1) * N$29 -> 0 | O134: =OR(SUM(O73:$S73) = 1, SUM(O73:$S73) = -1) * O$29 -> 0 | P134: =OR(SUM(P73:$S73) = 1, SUM(P73:$S73) = -1) * P$29 -> 0 | Q134: =OR(SUM(Q73:$S73) = 1, SUM(Q73:$S73) = -1) * Q$29 -> 0 | R134: =OR(SUM(R73:$S73) = 1, SUM(R73:$S73) = -1) * R$29 -> 0 | S134: =OR(SUM(S73:$S73) = 1, SUM(S73:$S73) = -1) * S$29 -> 1.098
F135: LV Sub Generation Aggregated | G135: scalar | H135: 1.044 | J135: =OR(SUM(J74:$S74) = 1, SUM(J74:$S74) = -1) * J$29 -> 0 | K135: =OR(SUM(K74:$S74) = 1, SUM(K74:$S74) = -1) * K$29 -> 0 | L135: =OR(SUM(L74:$S74) = 1, SUM(L74:$S74) = -1) * L$29 -> 0 | M135: =OR(SUM(M74:$S74) = 1, SUM(M74:$S74) = -1) * M$29 -> 0 | N135: =OR(SUM(N74:$S74) = 1, SUM(N74:$S74) = -1) * N$29 -> 0 | O135: =OR(SUM(O74:$S74) = 1, SUM(O74:$S74) = -1) * O$29 -> 0 | P135: =OR(SUM(P74:$S74) = 1, SUM(P74:$S74) = -1) * P$29 -> 0 | Q135: =OR(SUM(Q74:$S74) = 1, SUM(Q74:$S74) = -1) * Q$29 -> 0 | R135: =OR(SUM(R74:$S74) = 1, SUM(R74:$S74) = -1) * R$29 -> 1.044 | S135: =OR(SUM(S74:$S74) = 1, SUM(S74:$S74) = -1) * S$29 -> 0
F136: LV Generation Site Specific | G136: scalar | H136: 1.098 | J136: =OR(SUM(J75:$S75) = 1, SUM(J75:$S75) = -1) * J$29 -> 0 | K136: =OR(SUM(K75:$S75) = 1, SUM(K75:$S75) = -1) * K$29 -> 0 | L136: =OR(SUM(L75:$S75) = 1, SUM(L75:$S75) = -1) * L$29 -> 0 | M136: =OR(SUM(M75:$S75) = 1, SUM(M75:$S75) = -1) * M$29 -> 0 | N136: =OR(SUM(N75:$S75) = 1, SUM(N75:$S75) = -1) * N$29 -> 0 | O136: =OR(SUM(O75:$S75) = 1, SUM(O75:$S75) = -1) * O$29 -> 0 | P136: =OR(SUM(P75:$S75) = 1, SUM(P75:$S75) = -1) * P$29 -> 0 | Q136: =OR(SUM(Q75:$S75) = 1, SUM(Q75:$S75) = -1) * Q$29 -> 0 | R136: =OR(SUM(R75:$S75) = 1, SUM(R75:$S75) = -1) * R$29 -> 0 | S136: =OR(SUM(S75:$S75) = 1, SUM(S75:$S75) = -1) * S$29 -> 1.098
F137: LV Generation Site Specific no RP Charge | G137: scalar | H137: 1.098 | J137: =OR(SUM(J76:$S76) = 1, SUM(J76:$S76) = -1) * J$29 -> 0 | K137: =OR(SUM(K76:$S76) = 1, SUM(K76:$S76) = -1) * K$29 -> 0 | L137: =OR(SUM(L76:$S76) = 1, SUM(L76:$S76) = -1) * L$29 -> 0 | M137: =OR(SUM(M76:$S76) = 1, SUM(M76:$S76) = -1) * M$29 -> 0 | N137: =OR(SUM(N76:$S76) = 1, SUM(N76:$S76) = -1) * N$29 -> 0 | O137: =OR(SUM(O76:$S76) = 1, SUM(O76:$S76) = -1) * O$29 -> 0 | P137: =OR(SUM(P76:$S76) = 1, SUM(P76:$S76) = -1) * P$29 -> 0 | Q137: =OR(SUM(Q76:$S76) = 1, SUM(Q76:$S76) = -1) * Q$29 -> 0 | R137: =OR(SUM(R76:$S76) = 1, SUM(R76:$S76) = -1) * R$29 -> 0 | S137: =OR(SUM(S76:$S76) = 1, SUM(S76:$S76) = -1) * S$29 -> 1.098
F138: LV Sub Generation Site Specific | G138: scalar | H138: 1.044 | J138: =OR(SUM(J77:$S77) = 1, SUM(J77:$S77) = -1) * J$29 -> 0 | K138: =OR(SUM(K77:$S77) = 1, SUM(K77:$S77) = -1) * K$29 -> 0 | L138: =OR(SUM(L77:$S77) = 1, SUM(L77:$S77) = -1) * L$29 -> 0 | M138: =OR(SUM(M77:$S77) = 1, SUM(M77:$S77) = -1) * M$29 -> 0 | N138: =OR(SUM(N77:$S77) = 1, SUM(N77:$S77) = -1) * N$29 -> 0 | O138: =OR(SUM(O77:$S77) = 1, SUM(O77:$S77) = -1) * O$29 -> 0 | P138: =OR(SUM(P77:$S77) = 1, SUM(P77:$S77) = -1) * P$29 -> 0 | Q138: =OR(SUM(Q77:$S77) = 1, SUM(Q77:$S77) = -1) * Q$29 -> 0 | R138: =OR(SUM(R77:$S77) = 1, SUM(R77:$S77) = -1) * R$29 -> 1.044 | S138: =OR(SUM(S77:$S77) = 1, SUM(S77:$S77) = -1) * S$29 -> 0
F139: LV Sub Generation Site Specific no RP Charge | G139: scalar | H139: 1.044 | J139: =OR(SUM(J78:$S78) = 1, SUM(J78:$S78) = -1) * J$29 -> 0 | K139: =OR(SUM(K78:$S78) = 1, SUM(K78:$S78) = -1) * K$29 -> 0 | L139: =OR(SUM(L78:$S78) = 1, SUM(L78:$S78) = -1) * L$29 -> 0 | M139: =OR(SUM(M78:$S78) = 1, SUM(M78:$S78) = -1) * M$29 -> 0 | N139: =OR(SUM(N78:$S78) = 1, SUM(N78:$S78) = -1) * N$29 -> 0 | O139: =OR(SUM(O78:$S78) = 1, SUM(O78:$S78) = -1) * O$29 -> 0 | P139: =OR(SUM(P78:$S78) = 1, SUM(P78:$S78) = -1) * P$29 -> 0 | Q139: =OR(SUM(Q78:$S78) = 1, SUM(Q78:$S78) = -1) * Q$29 -> 0 | R139: =OR(SUM(R78:$S78) = 1, SUM(R78:$S78) = -1) * R$29 -> 1.044 | S139: =OR(SUM(S78:$S78) = 1, SUM(S78:$S78) = -1) * S$29 -> 0
F140: HV Generation Site Specific | G140: scalar | H140: 1.026 | J140: =OR(SUM(J79:$S79) = 1, SUM(J79:$S79) = -1) * J$29 -> 0 | K140: =OR(SUM(K79:$S79) = 1, SUM(K79:$S79) = -1) * K$29 -> 0 | L140: =OR(SUM(L79:$S79) = 1, SUM(L79:$S79) = -1) * L$29 -> 0 | M140: =OR(SUM(M79:$S79) = 1, SUM(M79:$S79) = -1) * M$29 -> 0 | N140: =OR(SUM(N79:$S79) = 1, SUM(N79:$S79) = -1) * N$29 -> 0 | O140: =OR(SUM(O79:$S79) = 1, SUM(O79:$S79) = -1) * O$29 -> 0 | P140: =OR(SUM(P79:$S79) = 1, SUM(P79:$S79) = -1) * P$29 -> 1.013 | Q140: =OR(SUM(Q79:$S79) = 1, SUM(Q79:$S79) = -1) * Q$29 -> 1.026 | R140: =OR(SUM(R79:$S79) = 1, SUM(R79:$S79) = -1) * R$29 -> 0 | S140: =OR(SUM(S79:$S79) = 1, SUM(S79:$S79) = -1) * S$29 -> 0
F141: HV Generation Site Specific no RP Charge | G141: scalar | H141: 1.026 | J141: =OR(SUM(J80:$S80) = 1, SUM(J80:$S80) = -1) * J$29 -> 0 | K141: =OR(SUM(K80:$S80) = 1, SUM(K80:$S80) = -1) * K$29 -> 0 | L141: =OR(SUM(L80:$S80) = 1, SUM(L80:$S80) = -1) * L$29 -> 0 | M141: =OR(SUM(M80:$S80) = 1, SUM(M80:$S80) = -1) * M$29 -> 0 | N141: =OR(SUM(N80:$S80) = 1, SUM(N80:$S80) = -1) * N$29 -> 0 | O141: =OR(SUM(O80:$S80) = 1, SUM(O80:$S80) = -1) * O$29 -> 0 | P141: =OR(SUM(P80:$S80) = 1, SUM(P80:$S80) = -1) * P$29 -> 1.013 | Q141: =OR(SUM(Q80:$S80) = 1, SUM(Q80:$S80) = -1) * Q$29 -> 1.026 | R141: =OR(SUM(R80:$S80) = 1, SUM(R80:$S80) = -1) * R$29 -> 0 | S141: =OR(SUM(S80:$S80) = 1, SUM(S80:$S80) = -1) * S$29 -> 0
E143: User loss factor (assuming generation does not contribute at level of connection) | I143: > | W143: Paragraph 70 (a)
E144: These have been adjusted for the share of load going through 132/HV transformation
F145: Domestic Aggregated | G145: scalar | J145: =$H126 * J104 -> 1.098 | K145: 1.098 | L145: 1.098 | M145: 1.098 | N145: 1.098 | O145: 1.098 | P145: 0 | Q145: 1.098 | R145: 1.098 | S145: 1.098
F146: Domestic Aggregated (Related MPAN) | G146: scalar | J146: 1.098 | K146: 1.098 | L146: 1.098 | M146: 1.098 | N146: 1.098 | O146: 1.098 | P146: 0 | Q146: 1.098 | R146: 1.098 | S146: 1.098
F147: Non-Domestic Aggregated | G147: scalar | J147: 1.098 | K147: 1.098 | L147: 1.098 | M147: 1.098 | N147: 1.098 | O147: 1.098 | P147: 0 | Q147: 1.098 | R147: 1.098 | S147: 1.098
F148: Non-Domestic Aggregated (Related MPAN) | G148: scalar | J148: 1.098 | K148: 1.098 | L148: 1.098 | M148: 1.098 | N148: 1.098 | O148: 1.098 | P148: 0 | Q148: 1.098 | R148: 1.098 | S148: 1.098
F149: LV Site Specific | G149: scalar | J149: 1.098 | K149: 1.098 | L149: 1.098 | M149: 1.098 | N149: 1.098 | O149: 1.098 | P149: 0 | Q149: 1.098 | R149: 1.098 | S149: 1.098
F150: LV Sub Site Specific | G150: scalar | J150: 1.044 | K150: 1.044 | L150: 1.044 | M150: 1.044 | N150: 1.044 | O150: 1.044 | P150: 0 | Q150: 1.044 | R150: 1.044 | S150: 0
F151: HV Site Specific | G151: scalar | J151: 1.026 | K151: 1.026 | L151: 1.026 | M151: 1.026 | N151: 1.026 | O151: 1.026 | P151: 0 | Q151: 1.026 | R151: 0 | S151: 0
F152: Unmetered Supplies | G152: scalar | J152: 1.098 | K152: 1.098 | L152: 1.098 | M152: 1.098 | N152: 1.098 | O152: 1.098 | P152: 0 | Q152: 1.098 | R152: 1.098 | S152: 1.098
F153: LV Generation Aggregated | G153: scalar | J153: -1.098 | K153: -1.098 | L153: -1.098 | M153: -1.098 | N153: -1.098 | O153: -1.098 | P153: 0 | Q153: -1.098 | R153: -1.098 | S153: 0
F154: LV Sub Generation Aggregated | G154: scalar | J154: -1.044 | K154: -1.044 | L154: -1.044 | M154: -1.044 | N154: -1.044 | O154: -1.044 | P154: 0 | Q154: -1.044 | R154: 0 | S154: 0
F155: LV Generation Site Specific | G155: scalar | J155: -1.098 | K155: -1.098 | L155: -1.098 | M155: -1.098 | N155: -1.098 | O155: -1.098 | P155: 0 | Q155: -1.098 | R155: -1.098 | S155: 0
F156: LV Generation Site Specific no RP Charge | G156: scalar | J156: -1.098 | K156: -1.098 | L156: -1.098 | M156: -1.098 | N156: -1.098 | O156: -1.098 | P156: 0 | Q156: -1.098 | R156: -1.098 | S156: 0
F157: LV Sub Generation Site Specific | G157: scalar | J157: -1.044 | K157: -1.044 | L157: -1.044 | M157: -1.044 | N157: -1.044 | O157: -1.044 | P157: 0 | Q157: -1.044 | R157: 0 | S157: 0
F158: LV Sub Generation Site Specific no RP Charge | G158: scalar | J158: -1.044 | K158: -1.044 | L158: -1.044 | M158: -1.044 | N158: -1.044 | O158: -1.044 | P158: 0 | Q158: -1.044 | R158: 0 | S158: 0
F159: HV Generation Site Specific | G159: scalar | J159: -1.026 | K159: -1.026 | L159: -1.026 | M159: -1.026 | N159: -1.026 | O159: -1.026 | P159: 0 | Q159: 0 | R159: 0 | S159: 0
F160: HV Generation Site Specific no RP Charge | G160: scalar | J160: -1.026 | K160: -1.026 | L160: -1.026 | M160: -1.026 | N160: -1.026 | O160: -1.026 | P160: 0 | Q160: 0 | R160: 0 | S160: 0
E162: User loss factor (assuming generation contributes at level of connection) | I162: > | W162: Paragraph 70 (a)
E163: These have been adjusted for the share of load going through 132/HV transformation
F164: Domestic Aggregated | G164: scalar
F165: Domestic Aggregated (Related MPAN) | G165: scalar
F166: Non-Domestic Aggregated | G166: scalar
F167: Non-Domestic Aggregated (Related MPAN) | G167: scalar
F168: LV Site Specific | G168: scalar
F169: LV Sub Site Specific | G169: scalar
F170: HV Site Specific | G170: scalar
F171: Unmetered Supplies | G171: scalar
F172: LV Generation Aggregated | G172: scalar | J172: =$H134 * J73 -> -1.098 | K172: -1.098 | L172: -1.098 | M172: -1.098 | N172: -1.098 | O172: -1.098 | P172: 0 | Q172: -1.098 | R172: -1.098 | S172: -1.098
F173: LV Sub Generation Aggregated | G173: scalar | J173: -1.044 | K173: -1.044 | L173: -1.044 | M173: -1.044 | N173: -1.044 | O173: -1.044 | P173: 0 | Q173: -1.044 | R173: -1.044 | S173: 0
F174: LV Generation Site Specific | G174: scalar | J174: -1.098 | K174: -1.098 | L174: -1.098 | M174: -1.098 | N174: -1.098 | O174: -1.098 | P174: 0 | Q174: -1.098 | R174: -1.098 | S174: -1.098
F175: LV Generation Site Specific no RP Charge | G175: scalar | J175: -1.098 | K175: -1.098 | L175: -1.098 | M175: -1.098 | N175: -1.098 | O175: -1.098 | P175: 0 | Q175: -1.098 | R175: -1.098 | S175: -1.098
F176: LV Sub Generation Site Specific | G176: scalar | J176: -1.044 | K176: -1.044 | L176: -1.044 | M176: -1.044 | N176: -1.044 | O176: -1.044 | P176: 0 | Q176: -1.044 | R176: -1.044 | S176: 0
F177: LV Sub Generation Site Specific no RP Charge | G177: scalar | J177: -1.044 | K177: -1.044 | L177: -1.044 | M177: -1.044 | N177: -1.044 | O177: -1.044 | P177: 0 | Q177: -1.044 | R177: -1.044 | S177: 0
F178: HV Generation Site Specific | G178: scalar | J178: -1.026 | K178: -1.026 | L178: -1.026 | M178: -1.026 | N178: -1.026 | O178: -1.026 | P178: 0 | Q178: -1.026 | R178: 0 | S178: 0
F179: HV Generation Site Specific no RP Charge | G179: scalar | J179: =$H141 * J80 -> -1.026 | K179: -1.026 | L179: -1.026 | M179: -1.026 | N179: -1.026 | O179: -1.026 | P179: 0 | Q179: -1.026 | R179: 0 | S179: 0
B181: Checks
E183: Check for error values | G183: number of issues | H183: =SUM(IF(ISERROR(H19:W181), 1)) -> 0
B185: End of sheet

Sheet Customer contributions
A1: =MID(CELL("filename",A1),FIND("]",CELL("filename",A1))+1,255) -> Customer contributions
A2: =Cover!D21&" - "&Cover!D23 -> SP Distribution - One
A3: =Cover!D2&" - "&Cover!D8&" v"&Cover!D10&" - "&Cover!D19 -> ARP model - Release for charge setting v5 - 2021/22
A4: =H70 & IF(H70 = 1, " issue", " issues") &" identified in checks on this sheet" -> 0 issues identified in checks on this sheet
B5: Click here to return to model map | G5: Units | H5: Constants | W5: Legal text reference
B7: Description
C9: This sheet calculates customer contributions towards assets (i.e. assets that are paid for, and should not be
C10: recovered under UoS charges)
B12: Customer contributions
C14: Maps customer contributions to customer categories
C16: =INDEX('Version control'!$H$34:$H$58,MATCH($A$1,'Version control'!$F$34:$F$58,0),1)&"-A: Network use factors" -> Section 506-A: Network use factors
E18: Network level at which users are supplied | I18: > | W18: Paragraph 30
E19: Network use factors based on customer contributed assets
J20: HV substation | K20: HV network | L20: LV substation | M20: LV network
F21: Domestic Aggregated | G21: 1 or 0 | J21: =TRANSPOSE('Fixed inputs'!J53:Y56) -> 0 | K21: 0 | L21: 0 | M21: 1
F22: Domestic Aggregated (Related MPAN) | G22: 1 or 0 | J22: 0 | K22: 0 | L22: 0 | M22: 1
F23: Non-Domestic Aggregated | G23: 1 or 0 | J23: 0 | K23: 0 | L23: 0 | M23: 1
F24: Non-Domestic Aggregated (Related MPAN) | G24: 1 or 0 | J24: 0 | K24: 0 | L24: 0 | M24: 1
F25: LV Site Specific | G25: 1 or 0 | J25: 0 | K25: 0 | L25: 0 | M25: 1
F26: LV Sub Site Specific | G26: 1 or 0 | J26: 0 | K26: 0 | L26: 1 | M26: 0
F27: HV Site Specific | G27: 1 or 0 | J27: 0 | K27: 1 | L27: 0 | M27: 0
F28: Unmetered Supplies | G28: 1 or 0 | J28: 0 | K28: 0 | L28: 0 | M28: 1
F29: LV Generation Aggregated | G29: 1 or 0 | J29: 0 | K29: 0 | L29: 0 | M29: 1
F30: LV Sub Generation Aggregated | G30: 1 or 0 | J30: 0 | K30: 0 | L30: 1 | M30: 0
F31: LV Generation Site Specific | G31: 1 or 0 | J31: 0 | K31: 0 | L31: 0 | M31: 1
F32: LV Generation Site Specific no RP Charge | G32: 1 or 0 | J32: 0 | K32: 0 | L32: 0 | M32: 1
F33: LV Sub Generation Site Specific | G33: 1 or 0 | J33: 0 | K33: 0 | L33: 1 | M33: 0
F34: LV Sub Generation Site Specific no RP Charge | G34: 1 or 0 | J34: 0 | K34: 0 | L34: 1 | M34: 0
F35: HV Generation Site Specific | G35: 1 or 0 | J35: 0 | K35: 1 | L35: 0 | M35: 0
F36: HV Generation Site Specific no RP Charge | G36: 1 or 0 | J36: 0 | K36: 1 | L36: 0 | M36: 0
C38: =INDEX('Version control'!$H$34:$H$58,MATCH($A$1,'Version control'!$F$34:$F$58,0),1)&"-B: Customer contributions" -> Section 506-B: Customer contributions
E40: Customer contributions, by network level of supply | I40: > | W40: Paragraph 29
E41: Share of customer contributions by network level and asset type
J42: Transmission exit | K42: GSPs | L42: 132kV | M42: 132kV/EHV | N42: EHV | O42: EHV/HV | P42: 132kV/HV | Q42: HV | R42: HV/LV | S42: LV circuits | T42: LV customers | U42: HV customers
F43: LV network | G43: % | L43: ='Inputs by network level'!L29 -> 0 | M43: ='Inputs by network level'!M29 -> 0 | N43: ='Inputs by network level'!N29 -> 0 | O43: ='Inputs by network level'!O29 -> 0 | P43: ='Inputs by network level'!P29 -> 0 | Q43: ='Inputs by network level'!Q29 -> 0.2006519784 | R43: ='Inputs by network level'!R29 -> 0.2696850394 | S43: ='Inputs by network level'!S29 -> 0.9237177393
F44: LV substation | G44: % | L44: ='Inputs by network level'!L30 -> 0 | M44: ='Inputs by network level'!M30 -> 0 | N44: ='Inputs by network level'!N30 -> 0 | O44: ='Inputs by network level'!O30 -> 0 | P44: ='Inputs by network level'!P30 -> 0 | Q44: ='Inputs by network level'!Q30 -> 0.2006519784 | R44: ='Inputs by network level'!R30 -> 0.2696850394 | S44: ='Inputs by network level'!S30 -> 0
F45: HV network | G45: % | L45: ='Inputs by network level'!L31 -> 0 | M45: ='Inputs by network level'!M31 -> 0 | N45: ='Inputs by network level'!N31 -> 0.03110047847 | O45: ='Inputs by network level'!O31 -> 0.1421225937 | P45: ='Inputs by network level'!P31 -> 0 | Q45: ='Inputs by network level'!Q31 -> 0.4514669514 | R45: ='Inputs by network level'!R31 -> 0 | S45: ='Inputs by network level'!S31 -> 0
F46: HV substation | G46: % | L46: ='Inputs by network level'!L32 -> 0 | M46: ='Inputs by network level'!M32 -> 0 | N46: ='Inputs by network level'!N32 -> 0.03110047847 | O46: ='Inputs by network level'!O32 -> 0.1421225937 | P46: ='Inputs by network level'!P32 -> 0 | Q46: ='Inputs by network level'!Q32 -> 0 | R46: ='Inputs by network level'!R32 -> 0 | S46: ='Inputs by network level'!S32 -> 0
E48: Customer contributions, by network level
E49: Customer contributions by network level and customer type based on mappings above
J50: Transmission exit | K50: GSPs | L50: 132kV | M50: 132kV/EHV | N50: EHV | O50: EHV/HV | P50: 132kV/HV | Q50: HV | R50: HV/LV | S50: LV circuits | T50: LV customers | U50: HV customers
F51: Domestic Aggregated | H51: % | L51: =$M21 * L$43 + $L21 * L$44 + $K21 * L$45 + $J21 * L$46 -> 0 | M51: 0 | N51: 0 | O51: 0 | P51: 0 | Q51: 0.2006519784 | R51: 0.2696850394 | S51: 0.9237177393
F52: Domestic Aggregated (Related MPAN) | H52: % | L52: 0 | M52: 0 | N52: 0 | O52: 0 | P52: 0 | Q52: 0.2006519784 | R52: 0.2696850394 | S52: 0.9237177393
F53: Non-Domestic Aggregated | H53: % | L53: 0 | M53: 0 | N53: 0 | O53: 0 | P53: 0 | Q53: 0.2006519784 | R53: 0.2696850394 | S53: 0.9237177393
F54: Non-Domestic Aggregated (Related MPAN) | H54: % | L54: 0 | M54: 0 | N54: 0 | O54: 0 | P54: 0 | Q54: 0.2006519784 | R54: 0.2696850394 | S54: 0.9237177393
F55: LV Site Specific | H55: % | L55: 0 | M55: 0 | N55: 0 | O55: 0 | P55: 0 | Q55: 0.2006519784 | R55: 0.2696850394 | S55: 0.9237177393
F56: LV Sub Site Specific | H56: % | L56: 0 | M56: 0 | N56: 0 | O56: 0 | P56: 0 | Q56: 0.2006519784 | R56: 0.2696850394 | S56: 0
F57: HV Site Specific | H57: % | L57: 0 | M57: 0 | N57: 0.03110047847 | O57: 0.1421225937 | P57: 0 | Q57: 0.4514669514 | R57: 0 | S57: 0
F58: Unmetered Supplies | H58: % | L58: 0 | M58: 0 | N58: 0 | O58: 0 | P58: 0 | Q58: 0.2006519784 | R58: 0.2696850394 | S58: 0.9237177393
F59: LV Generation Aggregated | H59: % | L59: 0 | M59: 0 | N59: 0 | O59: 0 | P59: 0 | Q59: 0.2006519784 | R59: 0.2696850394 | S59: 0.9237177393
F60: LV Sub Generation Aggregated | H60: % | L60: 0 | M60: 0 | N60: 0 | O60: 0 | P60: 0 | Q60: 0.2006519784 | R60: 0.2696850394 | S60: 0
F61: LV Generation Site Specific | H61: % | L61: 0 | M61: 0 | N61: 0 | O61: 0 | P61: 0 | Q61: 0.2006519784 | R61: 0.2696850394 | S61: 0.9237177393
F62: LV Generation Site Specific no RP Charge | H62: % | L62: 0 | M62: 0 | N62: 0 | O62: 0 | P62: 0 | Q62: 0.2006519784 | R62: 0.2696850394 | S62: 0.9237177393
F63: LV Sub Generation Site Specific | H63: % | L63: 0 | M63: 0 | N63: 0 | O63: 0 | P63: 0 | Q63: 0.2006519784 | R63: 0.2696850394 | S63: 0
F64: LV Sub Generation Site Specific no RP Charge | H64: % | L64: 0 | M64: 0 | N64: 0 | O64: 0 | P64: 0 | Q64: 0.2006519784 | R64: 0.2696850394 | S64: 0
F65: HV Generation Site Specific | H65: % | L65: 0 | M65: 0 | N65: 0.03110047847 | O65: 0.1421225937 | P65: 0 | Q65: 0.4514669514 | R65: 0 | S65: 0
F66: HV Generation Site Specific no RP Charge | H66: % | L66: 0 | M66: 0 | N66: 0.03110047847 | O66: 0.1421225937 | P66: 0 | Q66: 0.4514669514 | R66: 0 | S66: 0
B68: Checks
E70: Check for error values | G70: number of issues | H70: =SUM(IF(ISERROR(H21:U66), 1)) -> 0
B72: End of sheet

Sheet Volume adjustments
A1: =MID(CELL("filename",A1),FIND("]",CELL("filename",A1))+1,255) -> Volume adjustments
A2: =Cover!D21&" - "&Cover!D23 -> SP Distribution - One
A3: =Cover!D2&" - "&Cover!D8&" v"&Cover!D10&" - "&Cover!D19 -> ARP model - Release for charge setting v5 - 2021/22
A4: =H140 & IF(H140 = 1, " issue", " issues") &" identified in checks on this sheet" -> 0 issues identified in checks on this sheet
B5: Click here to return to model map | G5: Units | H5: Constants | J5: Domestic Aggregated | K5: Domestic Aggregated (Related MPAN) | L5: Non-Domestic Aggregated | M5: Non-Domestic Aggregated (Related MPAN) | N5: LV Site Specific | O5: LV Sub Site Specific | P5: HV Site Specific | Q5: Unmetered Supplies | R5: LV Generation Aggregated | S5: LV Sub Generation Aggregated | T5: LV Generation Site Specific | U5: LV Generation Site Specific no RP Charge | V5: LV Sub Generation Site Specific | W5: LV Sub Generation Site Specific no RP Charge | X5: HV Generation Site Specific | Y5: HV Generation Site Specific no RP Charge | AA5: Legal text reference
B7: Description
C9: This sheet calculates volumes (kWh, MPAN, import and exceeded capacity) to be used throughout the model.
C10: This sheet first calculates the discounts to be applied to LDNO volumes, then combines these with volumes for
C11: all the way customers.
B13: LDNO discounts
C15: =INDEX('Version control'!$H$34:$H$58,MATCH($A$1,'Version control'!$F$34:$F$58,0),1)&"-A: LDNO discounts" -> Section 507-A: LDNO discounts
D17: This section maps the LDNO discounts from the PCDM to different customer categories
D18: Generation LDNO customers do not receive the standard LDNO discounts, and this adjustment is made in this section
E20: Discounts from PCDM | I20: >
E21: LDNO discounts calculated in the PCDM | AA21: Paragraph 97
F22: LDNO LV: LV user | G22: % | H22: ='General inputs'!H33 -> 0.3906724281
F23: LDNO HV: LV user | G23: % | H23: ='General inputs'!H34 -> 0.6036178811
F24: LDNO HV: LV Sub user | G24: % | H24: ='General inputs'!H35 -> 0.3481924857
F25: LDNO HV: HV user | G25: % | H25: ='General inputs'!H36 -> 0.2517400932
E27: Discount mapping | I27: > | AA27: Paragraphs 98 & 99
E28: Maps customer types to LDNO discount categories and calculates the appropriate discount to be applied to
E29: each customer
F30: LDNO LV: LV user | G30: 1 or 0 | J30: ='Fixed inputs'!J46 -> 1 | K30: ='Fixed inputs'!K46 -> 1 | L30: ='Fixed inputs'!L46 -> 1 | M30: ='Fixed inputs'!M46 -> 1 | N30: ='Fixed inputs'!N46 -> 1 | O30: ='Fixed inputs'!O46 -> 0 | P30: ='Fixed inputs'!P46 -> 0 | Q30: ='Fixed inputs'!Q46 -> 1 | R30: ='Fixed inputs'!R46 -> 0 | S30: ='Fixed inputs'!S46 -> 0 | T30: ='Fixed inputs'!T46 -> 0 | U30: ='Fixed inputs'!U46 -> 0 | V30: ='Fixed inputs'!V46 -> 0 | W30: ='Fixed inputs'!W46 -> 0 | X30: ='Fixed inputs'!X46 -> 0 | Y30: ='Fixed inputs'!Y46 -> 0
F31: LDNO HV: LV user | G31: 1 or 0 | J31: ='Fixed inputs'!J47 -> 1 | K31: ='Fixed inputs'!K47 -> 1 | L31: ='Fixed inputs'!L47 -> 1 | M31: ='Fixed inputs'!M47 -> 1 | N31: ='Fixed inputs'!N47 -> 1 | O31: ='Fixed inputs'!O47 -> 0 | P31: ='Fixed inputs'!P47 -> 0 | Q31: ='Fixed inputs'!Q47 -> 1 | R31: ='Fixed inputs'!R47 -> 0 | S31: ='Fixed inputs'!S47 -> 0 | T31: ='Fixed inputs'!T47 -> 0 | U31: ='Fixed inputs'!U47 -> 0 | V31: ='Fixed inputs'!V47 -> 0 | W31: ='Fixed inputs'!W47 -> 0 | X31: ='Fixed inputs'!X47 -> 0 | Y31: ='Fixed inputs'!Y47 -> 0
F32: LDNO HV: LV Sub user | G32: 1 or 0 | J32: ='Fixed inputs'!J48 -> 0 | K32: ='Fixed inputs'!K48 -> 0 | L32: ='Fixed inputs'!L48 -> 0 | M32: ='Fixed inputs'!M48 -> 0 | N32: ='Fixed inputs'!N48 -> 0 | O32: ='Fixed inputs'!O48 -> 1 | P32: ='Fixed inputs'!P48 -> 0 | Q32: ='Fixed inputs'!Q48 -> 0 | R32: ='Fixed inputs'!R48 -> 0 | S32: ='Fixed inputs'!S48 -> 0 | T32: ='Fixed inputs'!T48 -> 0 | U32: ='Fixed inputs'!U48 -> 0 | V32: ='Fixed inputs'!V48 -> 0 | W32: ='Fixed inputs'!W48 -> 0 | X32: ='Fixed inputs'!X48 -> 0 | Y32: ='Fixed inputs'!Y48 -> 0
F33: LDNO HV: HV user | G33: 1 or 0 | J33: ='Fixed inputs'!J49 -> 0 | K33: ='Fixed inputs'!K49 -> 0 | L33: ='Fixed inputs'!L49 -> 0 | M33: ='Fixed inputs'!M49 -> 0 | N33: ='Fixed inputs'!N49 -> 0 | O33: ='Fixed inputs'!O49 -> 0 | P33: ='Fixed inputs'!P49 -> 1 | Q33: ='Fixed inputs'!Q49 -> 0 | R33: ='Fixed inputs'!R49 -> 0 | S33: ='Fixed inputs'!S49 -> 0 | T33: ='Fixed inputs'!T49 -> 0 | U33: ='Fixed inputs'!U49 -> 0 | V33: ='Fixed inputs'!V49 -> 0 | W33: ='Fixed inputs'!W49 -> 0 | X33: ='Fixed inputs'!X49 -> 0 | Y33: ='Fixed inputs'!Y49 -> 0
F34: LV discount | G34: % | J34: =J30 * $H$22 -> 0.3906724281 | K34: 0.3906724281 | L34: 0.3906724281 | M34: 0.3906724281 | N34: 0.3906724281 | O34: 0 | P34: 0 | Q34: 0.3906724281 | R34: 0 | S34: 0 | T34: 0 | U34: 0 | V34: 0 | W34: 0 | X34: 0 | Y34: 0
F35: HV discount | G35: % | J35: =SUMPRODUCT(J31:J33,$H$23:$H$25) -> 0.6036178811 | K35: 0.6036178811 | L35: 0.6036178811 | M35: 0.6036178811 | N35: 0.6036178811 | O35: 0.3481924857 | P35: 0.2517400932 | Q35: 0.6036178811 | R35: 0 | S35: 0 | T35: 0 | U35: 0 | V35: 0 | W35: 0 | X35: 0 | Y35: 0
E37: Discount override | I37: > | AA37: Paragraphs 98 & 99
E38: This table overrides discount factors for certain categories of user
F39: Flag for overriding MWh discount rate | G39: TRUE / FALSE | J39: ='Fixed inputs'!J105 -> FALSE | K39: ='Fixed inputs'!K105 -> FALSE | L39: ='Fixed inputs'!L105 -> FALSE | M39: ='Fixed inputs'!M105 -> FALSE | N39: ='Fixed inputs'!N105 -> FALSE | O39: ='Fixed inputs'!O105 -> FALSE | P39: ='Fixed inputs'!P105 -> FALSE | Q39: ='Fixed inputs'!Q105 -> FALSE | R39: ='Fixed inputs'!R105 -> TRUE | S39: ='Fixed inputs'!S105 -> TRUE | T39: ='Fixed inputs'!T105 -> TRUE | U39: ='Fixed inputs'!U105 -> TRUE | V39: ='Fixed inputs'!V105 -> TRUE | W39: ='Fixed inputs'!W105 -> TRUE | X39: ='Fixed inputs'!X105 -> TRUE | Y39: ='Fixed inputs'!Y105 -> TRUE
F40: Flag for overriding MPAN discount rate | G40: TRUE / FALSE | J40: ='Fixed inputs'!J109 -> FALSE | K40: ='Fixed inputs'!K109 -> FALSE | L40: ='Fixed inputs'!L109 -> FALSE | M40: ='Fixed inputs'!M109 -> FALSE | N40: ='Fixed inputs'!N109 -> FALSE | O40: ='Fixed inputs'!O109 -> FALSE | P40: ='Fixed inputs'!P109 -> FALSE | Q40: ='Fixed inputs'!Q109 -> FALSE | R40: ='Fixed inputs'!R109 -> TRUE | S40: ='Fixed inputs'!S109 -> TRUE | T40: ='Fixed inputs'!T109 -> TRUE | U40: ='Fixed inputs'!U109 -> TRUE | V40: ='Fixed inputs'!V109 -> TRUE | W40: ='Fixed inputs'!W109 -> TRUE | X40: ='Fixed inputs'!X109 -> TRUE | Y40: ='Fixed inputs'!Y109 -> TRUE
F41: Flag for overriding import capacity discount rate | G41: TRUE / FALSE | J41: ='Fixed inputs'!J113 -> FALSE | K41: ='Fixed inputs'!K113 -> FALSE | L41: ='Fixed inputs'!L113 -> FALSE | M41: ='Fixed inputs'!M113 -> FALSE | N41: ='Fixed inputs'!N113 -> FALSE | O41: ='Fixed inputs'!O113 -> FALSE | P41: ='Fixed inputs'!P113 -> FALSE | Q41: ='Fixed inputs'!Q113 -> FALSE | R41: ='Fixed inputs'!R113 -> TRUE | S41: ='Fixed inputs'!S113 -> TRUE | T41: ='Fixed inputs'!T113 -> TRUE | U41: ='Fixed inputs'!U113 -> TRUE | V41: ='Fixed inputs'!V113 -> TRUE | W41: ='Fixed inputs'!W113 -> TRUE | X41: ='Fixed inputs'!X113 -> TRUE | Y41: ='Fixed inputs'!Y113 -> TRUE
F42: Flag for overriding exceeded capacity discount rate | G42: TRUE / FALSE | J42: ='Fixed inputs'!J117 -> FALSE | K42: ='Fixed inputs'!K117 -> FALSE | L42: ='Fixed inputs'!L117 -> FALSE | M42: ='Fixed inputs'!M117 -> FALSE | N42: ='Fixed inputs'!N117 -> FALSE | O42: ='Fixed inputs'!O117 -> FALSE | P42: ='Fixed inputs'!P117 -> FALSE | Q42: ='Fixed inputs'!Q117 -> FALSE | R42: ='Fixed inputs'!R117 -> TRUE | S42: ='Fixed inputs'!S117 -> TRUE | T42: ='Fixed inputs'!T117 -> TRUE | U42: ='Fixed inputs'!U117 -> TRUE | V42: ='Fixed inputs'!V117 -> TRUE | W42: ='Fixed inputs'!W117 -> TRUE | X42: ='Fixed inputs'!X117 -> TRUE | Y42: ='Fixed inputs'!Y117 -> TRUE
F43: Flag for overriding reactive power units discount rate | G43: TRUE / FALSE | J43: ='Fixed inputs'!J121 -> FALSE | K43: ='Fixed inputs'!K121 -> FALSE | L43: ='Fixed inputs'!L121 -> FALSE | M43: ='Fixed inputs'!M121 -> FALSE | N43: ='Fixed inputs'!N121 -> FALSE | O43: ='Fixed inputs'!O121 -> FALSE | P43: ='Fixed inputs'!P121 -> FALSE | Q43: ='Fixed inputs'!Q121 -> FALSE | R43: ='Fixed inputs'!R121 -> TRUE | S43: ='Fixed inputs'!S121 -> TRUE | T43: ='Fixed inputs'!T121 -> TRUE | U43: ='Fixed inputs'!U121 -> TRUE | V43: ='Fixed inputs'!V121 -> TRUE | W43: ='Fixed inputs'!W121 -> TRUE | X43: ='Fixed inputs'!X121 -> TRUE | Y43: ='Fixed inputs'!Y121 -> TRUE
F45: Override MWh discount rate | G45: % | J45: ='Fixed inputs'!J106 -> 0 | K45: ='Fixed inputs'!K106 -> 0 | L45: ='Fixed inputs'!L106 -> 0 | M45: ='Fixed inputs'!M106 -> 0 | N45: ='Fixed inputs'!N106 -> 0 | O45: ='Fixed inputs'!O106 -> 0 | P45: ='Fixed inputs'!P106 -> 0 | Q45: ='Fixed inputs'!Q106 -> 0 | R45: ='Fixed inputs'!R106 -> 0 | S45: ='Fixed inputs'!S106 -> 0 | T45: ='Fixed inputs'!T106 -> 0 | U45: ='Fixed inputs'!U106 -> 0 | V45: ='Fixed inputs'!V106 -> 0 | W45: ='Fixed inputs'!W106 -> 0 | X45: ='Fixed inputs'!X106 -> 0 | Y45: ='Fixed inputs'!Y106 -> 0
F46: Override MPAN discount rate | G46: % | J46: ='Fixed inputs'!J110 -> 0 | K46: ='Fixed inputs'!K110 -> 0 | L46: ='Fixed inputs'!L110 -> 0 | M46: ='Fixed inputs'!M110 -> 0 | N46: ='Fixed inputs'!N110 -> 0 | O46: ='Fixed inputs'!O110 -> 0 | P46: ='Fixed inputs'!P110 -> 0 | Q46: ='Fixed inputs'!Q110 -> 0 | R46: ='Fixed inputs'!R110 -> 1 | S46: ='Fixed inputs'!S110 -> 1 | T46: ='Fixed inputs'!T110 -> 1 | U46: ='Fixed inputs'!U110 -> 1 | V46: ='Fixed inputs'!V110 -> 1 | W46: ='Fixed inputs'!W110 -> 1 | X46: ='Fixed inputs'!X110 -> 1 | Y46: ='Fixed inputs'!Y110 -> 1
F47: Override import capacity discount rate | G47: % | J47: ='Fixed inputs'!J114 -> 0 | K47: ='Fixed inputs'!K114 -> 0 | L47: ='Fixed inputs'!L114 -> 0 | M47: ='Fixed inputs'!M114 -> 0 | N47: ='Fixed inputs'!N114 -> 0 | O47: ='Fixed inputs'!O114 -> 0 | P47: ='Fixed inputs'!P114 -> 0 | Q47: ='Fixed inputs'!Q114 -> 0 | R47: ='Fixed inputs'!R114 -> 0 | S47: ='Fixed inputs'!S114 -> 0 | T47: ='Fixed inputs'!T114 -> 0 | U47: ='Fixed inputs'!U114 -> 0 | V47: ='Fixed inputs'!V114 -> 0 | W47: ='Fixed inputs'!W114 -> 0 | X47: ='Fixed inputs'!X114 -> 0 | Y47: ='Fixed inputs'!Y114 -> 0
F48: Override exceeded capacity discount rate | G48: % | J48: ='Fixed inputs'!J118 -> 0 | K48: ='Fixed inputs'!K118 -> 0 | L48: ='Fixed inputs'!L118 -> 0 | M48: ='Fixed inputs'!M118 -> 0 | N48: ='Fixed inputs'!N118 -> 0 | O48: ='Fixed inputs'!O118 -> 0 | P48: ='Fixed inputs'!P118 -> 0 | Q48: ='Fixed inputs'!Q118 -> 0 | R48: ='Fixed inputs'!R118 -> 0 | S48: ='Fixed inputs'!S118 -> 0 | T48: ='Fixed inputs'!T118 -> 0 | U48: ='Fixed inputs'!U118 -> 0 | V48: ='Fixed inputs'!V118 -> 0 | W48: ='Fixed inputs'!W118 -> 0 | X48: ='Fixed inputs'!X118 -> 0 | Y48: ='Fixed inputs'!Y118 -> 0
F49: Override reactive power units discount rate | G49: % | J49: ='Fixed inputs'!J122 -> 0 | K49: ='Fixed inputs'!K122 -> 0 | L49: ='Fixed inputs'!L122 -> 0 | M49: ='Fixed inputs'!M122 -> 0 | N49: ='Fixed inputs'!N122 -> 0 | O49: ='Fixed inputs'!O122 -> 0 | P49: ='Fixed inputs'!P122 -> 0 | Q49: ='Fixed inputs'!Q122 -> 0 | R49: ='Fixed inputs'!R122 -> 0 | S49: ='Fixed inputs'!S122 -> 0 | T49: ='Fixed inputs'!T122 -> 0 | U49: ='Fixed inputs'!U122 -> 0 | V49: ='Fixed inputs'!V122 -> 0 | W49: ='Fixed inputs'!W122 -> 0 | X49: ='Fixed inputs'!X122 -> 0 | Y49: ='Fixed inputs'!Y122 -> 0
B51: Volume discounting
C53: Applies LDNO discounts and aggregates with volumes from all the way customers
C55: =INDEX('Version control'!$H$34:$H$58,MATCH($A$1,'Version control'!$F$34:$F$58,0),1)&"-B: Volume discounting" -> Section 507-B: Volume discounting
E57: Unit rate 1 | I57: > | AA57: Paragraph 53
F59: All the way customers | G59: MWh | J59: ='Inputs by customer type'!J24 -> 728182.6648 | K59: ='Inputs by customer type'!K24 -> 1325.902556 | L59: ='Inputs by customer type'!L24 -> 187782.1274 | M59: ='Inputs by customer type'!M24 -> 4172.24106 | N59: ='Inputs by customer type'!N24 -> 275821.7689 | O59: ='Inputs by customer type'!O24 -> 21569.59891 | P59: ='Inputs by customer type'!P24 -> 322473.7741 | Q59: ='Inputs by customer type'!Q24 -> 13844.28609 | R59: ='Inputs by customer type'!R24 -> 139.2145634 | S59: ='Inputs by customer type'!S24 -> 2.877628454 | T59: ='Inputs by customer type'!T24 -> 6131.38141 | U59: ='Inputs by customer type'!U24 -> 0 | V59: ='Inputs by customer type'!V24 -> 144.6141526 | W59: ='Inputs by customer type'!W24 -> 0 | X59: ='Inputs by customer type'!X24 -> 116075.8182 | Y59: ='Inputs by customer type'!Y24 -> 0
F60: LDNO LV | G60: MWh | J60: ='Inputs by customer type'!J33 -> 13713.32247 | K60: ='Inputs by customer type'!K33 -> 1.398102951 | L60: ='Inputs by customer type'!L33 -> 601.0432152 | M60: ='Inputs by customer type'!M33 -> 0 | N60: ='Inputs by customer type'!N33 -> 1596.465 | O60: ='Inputs by customer type'!O33 -> 0 | P60: ='Inputs by customer type'!P33 -> 0 | Q60: ='Inputs by customer type'!Q33 -> 20.43003215 | R60: ='Inputs by customer type'!R33 -> 0.5702560532 | S60: ='Inputs by customer type'!S33 -> 0 | T60: ='Inputs by customer type'!T33 -> 0 | U60: ='Inputs by customer type'!U33 -> 0 | V60: ='Inputs by customer type'!V33 -> 0 | W60: ='Inputs by customer type'!W33 -> 0 | X60: ='Inputs by customer type'!X33 -> 0 | Y60: ='Inputs by customer type'!Y33 -> 0
F61: LDNO HV | G61: MWh | J61: ='Inputs by customer type'!J42 -> 20104.0997 | K61: ='Inputs by customer type'!K42 -> 2.048089748 | L61: ='Inputs by customer type'!L42 -> 2081.735409 | M61: ='Inputs by customer type'!M42 -> 0 | N61: ='Inputs by customer type'!N42 -> 13322.005 | O61: ='Inputs by customer type'!O42 -> 2210.538 | P61: ='Inputs by customer type'!P42 -> 5129.456 | Q61: ='Inputs by customer type'!Q42 -> 30.87936123 | R61: ='Inputs by customer type'!R42 -> 0.2559787902 | S61: ='Inputs by customer type'!S42 -> 0 | T61: ='Inputs by customer type'!T42 -> 0 | U61: ='Inputs by customer type'!U42 -> 0 | V61: ='Inputs by customer type'!V42 -> 0 | W61: ='Inputs by customer type'!W42 -> 0 | X61: ='Inputs by customer type'!X42 -> 0 | Y61: ='Inputs by customer type'!Y42 -> 0
F62: LDNO LV discount rate applied | G62: % | J62: =IF(J$39, J$45, J$34) -> 0.3906724281 | K62: 0.3906724281 | L62: 0.3906724281 | M62: 0.3906724281 | N62: 0.3906724281 | O62: 0 | P62: 0 | Q62: 0.3906724281 | R62: 0 | S62: 0 | T62: 0 | U62: 0 | V62: 0 | W62: 0 | X62: 0 | Y62: 0
F63: LDNO HV discount rate applied | G63: % | J63: =IF(J$39, J$45, J$35) -> 0.6036178811 | K63: 0.6036178811 | L63: 0.6036178811 | M63: 0.6036178811 | N63: 0.6036178811 | O63: 0.3481924857 | P63: 0.2517400932 | Q63: 0.6036178811 | R63: 0 | S63: 0 | T63: 0 | U63: 0 | V63: 0 | W63: 0 | X63: 0 | Y63: 0
F64: LDNO LV, discounted | G64: MWh | J64: =J60 * (1 - J62) -> 8355.905483 | K64: 0.8519026766 | L64: 366.2322029 | M64: 0 | N64: 972.7701421 | O64: 0 | P64: 0 | Q64: 12.44858188 | R64: 0.5702560532 | S64: 0 | T64: 0 | U64: 0 | V64: 0 | W64: 0 | X64: 0 | Y64: 0
F65: LDNO HV, discounted | G65: MWh | J65: 7968.905636 | K65: 0.811826154 | L65: 825.1626925 | M65: 0 | N65: 5280.604569 | O65: 1440.845279 | P65: 3838.166268 | Q65: 12.24002663 | R65: 0.2559787902 | S65: 0 | T65: 0 | U65: 0 | V65: 0 | W65: 0 | X65: 0 | Y65: 0
F66: Total after discounting | G66: MWh | J66: =J59 + J64 + J65 -> 744507.476 | K66: 1327.566285 | L66: 188973.5223 | M66: 4172.24106 | N66: 282075.1436 | O66: 23010.44419 | P66: 326311.9404 | Q66: 13868.9747 | R66: 140.0407983 | S66: 2.877628454 | T66: 6131.38141 | U66: 0 | V66: 144.6141526 | W66: 0 | X66: 116075.8182 | Y66: 0
E68: Unit rate 2 | I68: > | AA68: Paragraph 53
F70: All the way customers | G70: MWh | J70: ='Inputs by customer type'!J25 -> 2586978.352 | K70: ='Inputs by customer type'!K25 -> 24004.86702 | L70: ='Inputs by customer type'!L25 -> 1017175.554 | M70: ='Inputs by customer type'!M25 -> 25319.41548 | N70: ='Inputs by customer type'!N25 -> 1322296.433 | O70: ='Inputs by customer type'!O25 -> 101185.049 | P70: ='Inputs by customer type'!P25 -> 1497042.89 | Q70: ='Inputs by customer type'!Q25 -> 52546.80809 | R70: ='Inputs by customer type'!R25 -> 625.5891527 | S70: ='Inputs by customer type'!S25 -> 11.85801479 | T70: ='Inputs by customer type'!T25 -> 27525.45625 | U70: ='Inputs by customer type'!U25 -> 0 | V70: ='Inputs by customer type'!V25 -> 597.3478309 | W70: ='Inputs by customer type'!W25 -> 0 | X70: ='Inputs by customer type'!X25 -> 445212.4393 | Y70: ='Inputs by customer type'!Y25 -> 0
F71: LDNO LV | G71: MWh | J71: ='Inputs by customer type'!J34 -> 48809.78109 | K71: ='Inputs by customer type'!K34 -> 25.32965948 | L71: ='Inputs by customer type'!L34 -> 3253.025245 | M71: ='Inputs by customer type'!M34 -> 0 | N71: ='Inputs by customer type'!N34 -> 7155.507 | O71: ='Inputs by customer type'!O34 -> 0 | P71: ='Inputs by customer type'!P34 -> 0 | Q71: ='Inputs by customer type'!Q34 -> 273.9606815 | R71: ='Inputs by customer type'!R34 -> 2.083030798 | S71: ='Inputs by customer type'!S34 -> 0 | T71: ='Inputs by customer type'!T34 -> 0 | U71: ='Inputs by customer type'!U34 -> 0 | V71: ='Inputs by customer type'!V34 -> 0 | W71: ='Inputs by customer type'!W34 -> 0 | X71: ='Inputs by customer type'!X34 -> 0 | Y71: ='Inputs by customer type'!Y34 -> 0
F72: LDNO HV | G72: MWh | J72: ='Inputs by customer type'!J43 -> 71593.3955 | K72: ='Inputs by customer type'!K43 -> 37.26374667 | L72: ='Inputs by customer type'!L43 -> 11268.10454 | M72: ='Inputs by customer type'!M43 -> 0 | N72: ='Inputs by customer type'!N43 -> 59210.166 | O72: ='Inputs by customer type'!O43 -> 9690.43 | P72: ='Inputs by customer type'!P43 -> 23108.695 | Q72: ='Inputs by customer type'!Q43 -> 425.4987206 | R72: ='Inputs by customer type'!R43 -> 0.9426520012 | S72: ='Inputs by customer type'!S43 -> 0 | T72: ='Inputs by customer type'!T43 -> 0 | U72: ='Inputs by customer type'!U43 -> 0 | V72: ='Inputs by customer type'!V43 -> 0 | W72: ='Inputs by customer type'!W43 -> 0 | X72: ='Inputs by customer type'!X43 -> 0 | Y72: ='Inputs by customer type'!Y43 -> 0
F73: LDNO LV discount rate applied | G73: % | J73: =IF(J$39, J$45, J$34) -> 0.3906724281 | K73: 0.3906724281 | L73: 0.3906724281 | M73: 0.3906724281 | N73: 0.3906724281 | O73: 0 | P73: 0 | Q73: 0.3906724281 | R73: 0 | S73: 0 | T73: 0 | U73: 0 | V73: 0 | W73: 0 | X73: 0 | Y73: 0
F74: LDNO HV discount rate applied | G74: % | J74: =IF(J$39, J$45, J$35) -> 0.6036178811 | K74: 0.6036178811 | L74: 0.6036178811 | M74: 0.6036178811 | N74: 0.6036178811 | O74: 0.3481924857 | P74: 0.2517400932 | Q74: 0.6036178811 | R74: 0 | S74: 0 | T74: 0 | U74: 0 | V74: 0 | W74: 0 | X74: 0 | Y74: 0
F75: LDNO LV, discounted | G75: MWh | J75: =J71 * (1 - J73) -> 29741.1454 | K75: 15.43405991 | L75: 1982.157974 | M75: 0 | N75: 4360.047706 | O75: 0 | P75: 0 | Q75: 166.9317969 | R75: 2.083030798 | S75: 0 | T75: 0 | U75: 0 | V75: 0 | W75: 0 | X75: 0 | Y75: 0
F76: LDNO HV, discounted | G76: MWh | J76: 28378.34181 | K76: 14.77068286 | L76: 4466.475154 | M76: 0 | N76: 23469.85106 | O76: 6316.295091 | P76: 17291.30997 | Q76: 168.6600844 | R76: 0.9426520012 | S76: 0 | T76: 0 | U76: 0 | V76: 0 | W76: 0 | X76: 0 | Y76: 0
F77: Total after discounting | G77: MWh | J77: =J70 + J75 + J76 -> 2645097.839 | K77: 24035.07176 | L77: 1023624.188 | M77: 25319.41548 | N77: 1350126.331 | O77: 107501.3441 | P77: 1514334.2 | Q77: 52882.39997 | R77: 628.6148355 | S77: 11.85801479 | T77: 27525.45625 | U77: 0 | V77: 597.3478309 | W77: 0 | X77: 445212.4393 | Y77: 0
E79: Unit rate 3 | I79: > | AA79: Paragraph 53
F81: All the way customers | G81: MWh | J81: ='Inputs by customer type'!J26 -> 2382458.577 | K81: ='Inputs by customer type'!K26 -> 245208.3312 | L81: ='Inputs by customer type'!L26 -> 982488.0516 | M81: ='Inputs by customer type'!M26 -> 52561.15803 | N81: ='Inputs by customer type'!N26 -> 1154944.241 | O81: ='Inputs by customer type'!O26 -> 100898.0161 | P81: ='Inputs by customer type'!P26 -> 1602377.032 | Q81: ='Inputs by customer type'!Q26 -> 189052.6852 | R81: ='Inputs by customer type'!R26 -> 698.1711401 | S81: ='Inputs by customer type'!S26 -> 16.00635676 | T81: ='Inputs by customer type'!T26 -> 30981.27634 | U81: ='Inputs by customer type'!U26 -> 0 | V81: ='Inputs by customer type'!V26 -> 807.2790165 | W81: ='Inputs by customer type'!W26 -> 0 | X81: ='Inputs by customer type'!X26 -> 507559.1675 | Y81: ='Inputs by customer type'!Y26 -> 0
F82: LDNO LV | G82: MWh | J82: ='Inputs by customer type'!J35 -> 44956.58064 | K82: ='Inputs by customer type'!K35 -> 257.4712376 | L82: ='Inputs by customer type'!L35 -> 3140.330539 | M82: ='Inputs by customer type'!M35 -> 0 | N82: ='Inputs by customer type'!N35 -> 6545.246 | O82: ='Inputs by customer type'!O35 -> 0 | P82: ='Inputs by customer type'!P35 -> 0 | Q82: ='Inputs by customer type'!Q35 -> 303.2542863 | R82: ='Inputs by customer type'!R35 -> 1.945449991 | S82: ='Inputs by customer type'!S35 -> 0 | T82: ='Inputs by customer type'!T35 -> 0 | U82: ='Inputs by customer type'!U35 -> 0 | V82: ='Inputs by customer type'!V35 -> 0 | W82: ='Inputs by customer type'!W35 -> 0 | X82: ='Inputs by customer type'!X35 -> 0 | Y82: ='Inputs by customer type'!Y35 -> 0
F83: LDNO HV | G83: MWh | J83: ='Inputs by customer type'!J44 -> 65951.8658 | K83: ='Inputs by customer type'!K44 -> 378.2381636 | L83: ='Inputs by customer type'!L44 -> 10881.05205 | M83: ='Inputs by customer type'!M44 -> 0 | N83: ='Inputs by customer type'!N44 -> 50706.112 | O83: ='Inputs by customer type'!O44 -> 8312.202 | P83: ='Inputs by customer type'!P44 -> 25303.565 | Q83: ='Inputs by customer type'!Q44 -> 470.5323582 | R83: ='Inputs by customer type'!R44 -> 0.8671549229 | S83: ='Inputs by customer type'!S44 -> 0 | T83: ='Inputs by customer type'!T44 -> 0 | U83: ='Inputs by customer type'!U44 -> 0 | V83: ='Inputs by customer type'!V44 -> 0 | W83: ='Inputs by customer type'!W44 -> 0 | X83: ='Inputs by customer type'!X44 -> 0 | Y83: ='Inputs by customer type'!Y44 -> 0
F84: LDNO LV discount rate applied | G84: % | J84: =IF(J$39, J$45, J$34) -> 0.3906724281 | K84: 0.3906724281 | L84: 0.3906724281 | M84: 0.3906724281 | N84: 0.3906724281 | O84: 0 | P84: 0 | Q84: 0.3906724281 | R84: 0 | S84: 0 | T84: 0 | U84: 0 | V84: 0 | W84: 0 | X84: 0 | Y84: 0
F85: LDNO HV discount rate applied | G85: % | J85: =IF(J$39, J$45, J$35) -> 0.6036178811 | K85: 0.6036178811 | L85: 0.6036178811 | M85: 0.6036178811 | N85: 0.6036178811 | O85: 0.3481924857 | P85: 0.2517400932 | Q85: 0.6036178811 | R85: 0 | S85: 0 | T85: 0 | U85: 0 | V85: 0 | W85: 0 | X85: 0 | Y85: 0
F86: LDNO LV, discounted | G86: MWh | J86: =J82 * (1 - J84) -> 27393.28412 | K86: 156.884324 | L86: 1913.489983 | M86: 0 | N86: 3988.198853 | O86: 0 | P86: 0 | Q86: 184.781198 | R86: 1.945449991 | S86: 0 | T86: 0 | U86: 0 | V86: 0 | W86: 0 | X86: 0 | Y86: 0
F87: LDNO HV, discounted | G87: MWh | J87: 26142.14031 | K87: 149.9268447 | L87: 4313.054467 | M87: 0 | N87: 20098.99611 | O87: 5417.955724 | P87: 18933.64319 | Q87: 186.5106131 | R87: 0.8671549229 | S87: 0 | T87: 0 | U87: 0 | V87: 0 | W87: 0 | X87: 0 | Y87: 0
F88: Total after discounting | G88: MWh | J88: =J81 + J86 + J87 -> 2435994.001 | K88: 245515.1423 | L88: 988714.5961 | M88: 52561.15803 | N88: 1179031.436 | O88: 106315.9718 | P88: 1621310.675 | Q88: 189423.977 | R88: 700.983745 | S88: 16.00635676 | T88: 30981.27634 | U88: 0 | V88: 807.2790165 | W88: 0 | X88: 507559.1675 | Y88: 0
E90: Total units | I90: >
F92: Total after discounting | G92: MWh | J92: =J88 + J77 + J66 -> 5825599.316 | K92: 270877.7804 | L92: 2201312.306 | M92: 82052.81458 | N92: 2811232.911 | O92: 236827.7601 | P92: 3461956.816 | Q92: 256175.3517 | R92: 1469.639379 | S92: 30.742 | T92: 64638.114 | U92: 0 | V92: 1549.241 | W92: 0 | X92: 1068847.425 | Y92: 0
E94: MPANs | I94: > | AA94: Paragraph 53
F96: All the way customers | G96: MPANs | J96: ='Inputs by customer type'!J27 -> 1852569 | K96: ='Inputs by customer type'!K27 -> 100059 | L96: ='Inputs by customer type'!L27 -> 125030 | M96: ='Inputs by customer type'!M27 -> 7441 | N96: ='Inputs by customer type'!N27 -> 10491 | O96: ='Inputs by customer type'!O27 -> 219 | P96: ='Inputs by customer type'!P27 -> 1257 | Q96: ='Inputs by customer type'!Q27 -> 4868 | R96: ='Inputs by customer type'!R27 -> 167 | S96: ='Inputs by customer type'!S27 -> 4 | T96: ='Inputs by customer type'!T27 -> 472 | U96: ='Inputs by customer type'!U27 -> 0 | V96: ='Inputs by customer type'!V27 -> 8 | W96: ='Inputs by customer type'!W27 -> 0 | X96: ='Inputs by customer type'!X27 -> 255 | Y96: ='Inputs by customer type'!Y27 -> 0
F97: LDNO LV | G97: MPANs | J97: ='Inputs by customer type'!J36 -> 41179.93548 | K97: ='Inputs by customer type'!K36 -> 67 | L97: ='Inputs by customer type'!L36 -> 1036.677419 | M97: ='Inputs by customer type'!M36 -> 0 | N97: ='Inputs by customer type'!N36 -> 76 | O97: ='Inputs by customer type'!O36 -> 0 | P97: ='Inputs by customer type'!P36 -> 0 | Q97: ='Inputs by customer type'!Q36 -> 34 | R97: ='Inputs by customer type'!R36 -> 3 | S97: ='Inputs by customer type'!S36 -> 0 | T97: ='Inputs by customer type'!T36 -> 0 | U97: ='Inputs by customer type'!U36 -> 0 | V97: ='Inputs by customer type'!V36 -> 0 | W97: ='Inputs by customer type'!W36 -> 0 | X97: ='Inputs by customer type'!X36 -> 0 | Y97: ='Inputs by customer type'!Y36 -> 0
F98: LDNO HV | G98: MPANs | J98: ='Inputs by customer type'!J45 -> 58740.54839 | K98: ='Inputs by customer type'!K45 -> 78.4516129 | L98: ='Inputs by customer type'!L45 -> 1509.870968 | M98: ='Inputs by customer type'!M45 -> 0 | N98: ='Inputs by customer type'!N45 -> 381 | O98: ='Inputs by customer type'!O45 -> 26 | P98: ='Inputs by customer type'!P45 -> 30 | Q98: ='Inputs by customer type'!Q45 -> 46 | R98: ='Inputs by customer type'!R45 -> 5 | S98: ='Inputs by customer type'!S45 -> 0 | T98: ='Inputs by customer type'!T45 -> 0 | U98: ='Inputs by customer type'!U45 -> 0 | V98: ='Inputs by customer type'!V45 -> 0 | W98: ='Inputs by customer type'!W45 -> 0 | X98: ='Inputs by customer type'!X45 -> 0 | Y98: ='Inputs by customer type'!Y45 -> 0
F99: LDNO LV discount rate applied | G99: % | J99: =IF(J$40, J$46, J$34) -> 0.3906724281 | K99: 0.3906724281 | L99: 0.3906724281 | M99: 0.3906724281 | N99: 0.3906724281 | O99: 0 | P99: 0 | Q99: 0.3906724281 | R99: 1 | S99: 1 | T99: 1 | U99: 1 | V99: 1 | W99: 1 | X99: 1 | Y99: 1
F100: LDNO HV discount rate applied | G100: % | J100: =IF(J$40, J$46, J$35) -> 0.6036178811 | K100: 0.6036178811 | L100: 0.6036178811 | M100: 0.6036178811 | N100: 0.6036178811 | O100: 0.3481924857 | P100: 0.2517400932 | Q100: 0.6036178811 | R100: 1 | S100: 1 | T100: 1 | U100: 1 | V100: 1 | W100: 1 | X100: 1 | Y100: 1
F101: LDNO LV, discounted | G101: MPANs | J101: =J97 * (1 - J99) -> 25092.0701 | K101: 40.82494732 | L101: 631.6761348 | M101: 0 | N101: 46.30889547 | O101: 0 | P101: 0 | Q101: 20.71713745 | R101: 0 | S101: 0 | T101: 0 | U101: 0 | V101: 0 | W101: 0 | X101: 0 | Y101: 0
F102: LDNO HV, discounted | G102: MPANs | J102: 23283.70303 | K102: 31.09681655 | L102: 598.4858534 | M102: 0 | N102: 151.0215873 | O102: 16.94699537 | P102: 22.4477972 | Q102: 18.23357747 | R102: 0 | S102: 0 | T102: 0 | U102: 0 | V102: 0 | W102: 0 | X102: 0 | Y102: 0
F103: Total after discounting | G103: MPANs | J103: =J96 + J101 + J102 -> 1900944.773 | K103: 100130.9218 | L103: 126260.162 | M103: 7441 | N103: 10688.33048 | O103: 235.9469954 | P103: 1279.447797 | Q103: 4906.950715 | R103: 167 | S103: 4 | T103: 472 | U103: 0 | V103: 8 | W103: 0 | X103: 255 | Y103: 0
E105: Import capacity | I105: > | AA105: Paragraph 53
F107: All the way customers | G107: kVA | J107: ='Inputs by customer type'!J28 -> 0 | K107: ='Inputs by customer type'!K28 -> 0 | L107: ='Inputs by customer type'!L28 -> 0 | M107: ='Inputs by customer type'!M28 -> 0 | N107: ='Inputs by customer type'!N28 -> 1465414 | O107: ='Inputs by customer type'!O28 -> 92670 | P107: ='Inputs by customer type'!P28 -> 1282859 | Q107: ='Inputs by customer type'!Q28 -> 0 | R107: ='Inputs by customer type'!R28 -> 0 | S107: ='Inputs by customer type'!S28 -> 0 | T107: ='Inputs by customer type'!T28 -> 0 | U107: ='Inputs by customer type'!U28 -> 0 | V107: ='Inputs by customer type'!V28 -> 0 | W107: ='Inputs by customer type'!W28 -> 0 | X107: ='Inputs by customer type'!X28 -> 0 | Y107: ='Inputs by customer type'!Y28 -> 0
F108: LDNO LV | G108: kVA | J108: ='Inputs by customer type'!J37 -> 0 | K108: ='Inputs by customer type'!K37 -> 0 | L108: ='Inputs by customer type'!L37 -> 0 | M108: ='Inputs by customer type'!M37 -> 0 | N108: ='Inputs by customer type'!N37 -> 10403 | O108: ='Inputs by customer type'!O37 -> 0 | P108: ='Inputs by customer type'!P37 -> 0 | Q108: ='Inputs by customer type'!Q37 -> 0 | R108: ='Inputs by customer type'!R37 -> 0 | S108: ='Inputs by customer type'!S37 -> 0 | T108: ='Inputs by customer type'!T37 -> 0 | U108: ='Inputs by customer type'!U37 -> 0 | V108: ='Inputs by customer type'!V37 -> 0 | W108: ='Inputs by customer type'!W37 -> 0 | X108: ='Inputs by customer type'!X37 -> 0 | Y108: ='Inputs by customer type'!Y37 -> 0
F109: LDNO HV | G109: kVA | J109: ='Inputs by customer type'!J46 -> 0 | K109: ='Inputs by customer type'!K46 -> 0 | L109: ='Inputs by customer type'!L46 -> 0 | M109: ='Inputs by customer type'!M46 -> 0 | N109: ='Inputs by customer type'!N46 -> 87614 | O109: ='Inputs by customer type'!O46 -> 13995 | P109: ='Inputs by customer type'!P46 -> 28618 | Q109: ='Inputs by customer type'!Q46 -> 0 | R109: ='Inputs by customer type'!R46 -> 0 | S109: ='Inputs by customer type'!S46 -> 0 | T109: ='Inputs by customer type'!T46 -> 0 | U109: ='Inputs by customer type'!U46 -> 0 | V109: ='Inputs by customer type'!V46 -> 0 | W109: ='Inputs by customer type'!W46 -> 0 | X109: ='Inputs by customer type'!X46 -> 0 | Y109: ='Inputs by customer type'!Y46 -> 0
F110: LDNO LV discount rate applied | G110: % | J110: =IF(J$41, J$47, J$34) -> 0.3906724281 | K110: 0.3906724281 | L110: 0.3906724281 | M110: 0.3906724281 | N110: 0.3906724281 | O110: 0 | P110: 0 | Q110: 0.3906724281 | R110: 0 | S110: 0 | T110: 0 | U110: 0 | V110: 0 | W110: 0 | X110: 0 | Y110: 0
F111: LDNO HV discount rate applied | G111: % | J111: =IF(J$41, J$47, J$35) -> 0.6036178811 | K111: 0.6036178811 | L111: 0.6036178811 | M111: 0.6036178811 | N111: 0.6036178811 | O111: 0.3481924857 | P111: 0.2517400932 | Q111: 0.6036178811 | R111: 0 | S111: 0 | T111: 0 | U111: 0 | V111: 0 | W111: 0 | X111: 0 | Y111: 0
F112: LDNO LV, discounted | G112: kVA | J112: =J108 * (1 - J110) -> 0 | K112: 0 | L112: 0 | M112: 0 | N112: 6338.834731 | O112: 0 | P112: 0 | Q112: 0 | R112: 0 | S112: 0 | T112: 0 | U112: 0 | V112: 0 | W112: 0 | X112: 0 | Y112: 0
F113: LDNO HV, discounted | G113: kVA | J113: 0 | K113: 0 | L113: 0 | M113: 0 | N113: 34728.62296 | O113: 9122.046162 | P113: 21413.70201 | Q113: 0 | R113: 0 | S113: 0 | T113: 0 | U113: 0 | V113: 0 | W113: 0 | X113: 0 | Y113: 0
F114: Total after discounting | G114: kVA | J114: =J107 + J112 + J113 -> 0 | K114: 0 | L114: 0 | M114: 0 | N114: 1506481.458 | O114: 101792.0462 | P114: 1304272.702 | Q114: 0 | R114: 0 | S114: 0 | T114: 0 | U114: 0 | V114: 0 | W114: 0 | X114: 0 | Y114: 0
E116: Exceeded capacity | I116: > | AA116: Paragraph 53
F118: All the way customers | G118: kVA | J118: ='Inputs by customer type'!J29 -> 0 | K118: ='Inputs by customer type'!K29 -> 0 | L118: ='Inputs by customer type'!L29 -> 0 | M118: ='Inputs by customer type'!M29 -> 0 | N118: ='Inputs by customer type'!N29 -> 29539.14 | O118: ='Inputs by customer type'!O29 -> 1042.17 | P118: ='Inputs by customer type'!P29 -> 16267.89 | Q118: ='Inputs by customer type'!Q29 -> 0 | R118: ='Inputs by customer type'!R29 -> 0 | S118: ='Inputs by customer type'!S29 -> 0 | T118: ='Inputs by customer type'!T29 -> 0 | U118: ='Inputs by customer type'!U29 -> 0 | V118: ='Inputs by customer type'!V29 -> 0 | W118: ='Inputs by customer type'!W29 -> 0 | X118: ='Inputs by customer type'!X29 -> 0 | Y118: ='Inputs by customer type'!Y29 -> 0
F119: LDNO LV | G119: kVA | J119: ='Inputs by customer type'!J38 -> 0 | K119: ='Inputs by customer type'!K38 -> 0 | L119: ='Inputs by customer type'!L38 -> 0 | M119: ='Inputs by customer type'!M38 -> 0 | N119: ='Inputs by customer type'!N38 -> 41.612 | O119: ='Inputs by customer type'!O38 -> 0 | P119: ='Inputs by customer type'!P38 -> 0 | Q119: ='Inputs by customer type'!Q38 -> 0 | R119: ='Inputs by customer type'!R38 -> 0 | S119: ='Inputs by customer type'!S38 -> 0 | T119: ='Inputs by customer type'!T38 -> 0 | U119: ='Inputs by customer type'!U38 -> 0 | V119: ='Inputs by customer type'!V38 -> 0 | W119: ='Inputs by customer type'!W38 -> 0 | X119: ='Inputs by customer type'!X38 -> 0 | Y119: ='Inputs by customer type'!Y38 -> 0
F120: LDNO HV | G120: kVA | J120: ='Inputs by customer type'!J47 -> 0 | K120: ='Inputs by customer type'!K47 -> 0 | L120: ='Inputs by customer type'!L47 -> 0 | M120: ='Inputs by customer type'!M47 -> 0 | N120: ='Inputs by customer type'!N47 -> 175.228 | O120: ='Inputs by customer type'!O47 -> 0 | P120: ='Inputs by customer type'!P47 -> 14.309 | Q120: ='Inputs by customer type'!Q47 -> 0 | R120: ='Inputs by customer type'!R47 -> 0 | S120: ='Inputs by customer type'!S47 -> 0 | T120: ='Inputs by customer type'!T47 -> 0 | U120: ='Inputs by customer type'!U47 -> 0 | V120: ='Inputs by customer type'!V47 -> 0 | W120: ='Inputs by customer type'!W47 -> 0 | X120: ='Inputs by customer type'!X47 -> 0 | Y120: ='Inputs by customer type'!Y47 -> 0
F121: LDNO LV discount rate applied | G121: % | J121: =IF(J$42, J$48, J$34) -> 0.3906724281 | K121: 0.3906724281 | L121: 0.3906724281 | M121: 0.3906724281 | N121: 0.3906724281 | O121: 0 | P121: 0 | Q121: 0.3906724281 | R121: 0 | S121: 0 | T121: 0 | U121: 0 | V121: 0 | W121: 0 | X121: 0 | Y121: 0
F122: LDNO HV discount rate applied | G122: % | J122: =IF(J$42, J$48, J$35) -> 0.6036178811 | K122: 0.6036178811 | L122: 0.6036178811 | M122: 0.6036178811 | N122: 0.6036178811 | O122: 0.3481924857 | P122: 0.2517400932 | Q122: 0.6036178811 | R122: 0 | S122: 0 | T122: 0 | U122: 0 | V122: 0 | W122: 0 | X122: 0 | Y122: 0
F123: LDNO LV, discounted | G123: kVA | J123: =J119 * (1 - J121) -> 0 | K123: 0 | L123: 0 | M123: 0 | N123: 25.35533892 | O123: 0 | P123: 0 | Q123: 0 | R123: 0 | S123: 0 | T123: 0 | U123: 0 | V123: 0 | W123: 0 | X123: 0 | Y123: 0
F124: LDNO HV, discounted | G124: kVA | J124: 0 | K124: 0 | L124: 0 | M124: 0 | N124: 69.45724592 | O124: 0 | P124: 10.70685101 | Q124: 0 | R124: 0 | S124: 0 | T124: 0 | U124: 0 | V124: 0 | W124: 0 | X124: 0 | Y124: 0
F125: Total after discounting | G125: kVA | J125: =J118 + J123 + J124 -> 0 | K125: 0 | L125: 0 | M125: 0 | N125: 29633.95258 | O125: 1042.17 | P125: 16278.59685 | Q125: 0 | R125: 0 | S125: 0 | T125: 0 | U125: 0 | V125: 0 | W125: 0 | X125: 0 | Y125: 0
E127: Reactive power units | I127: > | AA127: Paragraph 53
F129: All the way customers | G129: MVArh | J129: ='Inputs by customer type'!J30 -> 0 | K129: ='Inputs by customer type'!K30 -> 0 | L129: ='Inputs by customer type'!L30 -> 0 | M129: ='Inputs by customer type'!M30 -> 0 | N129: ='Inputs by customer type'!N30 -> 241920 | O129: ='Inputs by customer type'!O30 -> 19020 | P129: ='Inputs by customer type'!P30 -> 250200 | Q129: ='Inputs by customer type'!Q30 -> 0 | R129: ='Inputs by customer type'!R30 -> 0 | S129: ='Inputs by customer type'!S30 -> 0 | T129: ='Inputs by customer type'!T30 -> 4452 | U129: ='Inputs by customer type'!U30 -> 0 | V129: ='Inputs by customer type'!V30 -> 408 | W129: ='Inputs by customer type'!W30 -> 0 | X129: ='Inputs by customer type'!X30 -> 16464 | Y129: ='Inputs by customer type'!Y30 -> 0
F130: LDNO LV | G130: MVArh | J130: ='Inputs by customer type'!J39 -> 0 | K130: ='Inputs by customer type'!K39 -> 0 | L130: ='Inputs by customer type'!L39 -> 0 | M130: ='Inputs by customer type'!M39 -> 0 | N130: ='Inputs by customer type'!N39 -> 936 | O130: ='Inputs by customer type'!O39 -> 0 | P130: ='Inputs by customer type'!P39 -> 0 | Q130: ='Inputs by customer type'!Q39 -> 0 | R130: ='Inputs by customer type'!R39 -> 0 | S130: ='Inputs by customer type'!S39 -> 0 | T130: ='Inputs by customer type'!T39 -> 0 | U130: ='Inputs by customer type'!U39 -> 0 | V130: ='Inputs by customer type'!V39 -> 0 | W130: ='Inputs by customer type'!W39 -> 0 | X130: ='Inputs by customer type'!X39 -> 0 | Y130: ='Inputs by customer type'!Y39 -> 0
F131: LDNO HV | G131: MVArh | J131: ='Inputs by customer type'!J48 -> 0 | K131: ='Inputs by customer type'!K48 -> 0 | L131: ='Inputs by customer type'!L48 -> 0 | M131: ='Inputs by customer type'!M48 -> 0 | N131: ='Inputs by customer type'!N48 -> 9000 | O131: ='Inputs by customer type'!O48 -> 1320 | P131: ='Inputs by customer type'!P48 -> 1908 | Q131: ='Inputs by customer type'!Q48 -> 0 | R131: ='Inputs by customer type'!R48 -> 0 | S131: ='Inputs by customer type'!S48 -> 0 | T131: ='Inputs by customer type'!T48 -> 0 | U131: ='Inputs by customer type'!U48 -> 0 | V131: ='Inputs by customer type'!V48 -> 0 | W131: ='Inputs by customer type'!W48 -> 0 | X131: ='Inputs by customer type'!X48 -> 0 | Y131: ='Inputs by customer type'!Y48 -> 0
F132: LDNO LV discount rate applied | G132: % | J132: =IF(J$43, J$49, J$34) -> 0.3906724281 | K132: 0.3906724281 | L132: 0.3906724281 | M132: 0.3906724281 | N132: 0.3906724281 | O132: 0 | P132: 0 | Q132: 0.3906724281 | R132: 0 | S132: 0 | T132: 0 | U132: 0 | V132: 0 | W132: 0 | X132: 0 | Y132: 0
F133: LDNO HV discount rate applied | G133: % | J133: =IF(J$43, J$49, J$35) -> 0.6036178811 | K133: 0.6036178811 | L133: 0.6036178811 | M133: 0.6036178811 | N133: 0.6036178811 | O133: 0.3481924857 | P133: 0.2517400932 | Q133: 0.6036178811 | R133: 0 | S133: 0 | T133: 0 | U133: 0 | V133: 0 | W133: 0 | X133: 0 | Y133: 0
F134: LDNO LV, discounted | G134: MVArh | J134: =J130 * (1 - J132) -> 0 | K134: 0 | L134: 0 | M134: 0 | N134: 570.3306073 | O134: 0 | P134: 0 | Q134: 0 | R134: 0 | S134: 0 | T134: 0 | U134: 0 | V134: 0 | W134: 0 | X134: 0 | Y134: 0
F135: LDNO HV, discounted | G135: MVArh | J135: 0 | K135: 0 | L135: 0 | M135: 0 | N135: 3567.43907 | O135: 860.3859189 | P135: 1427.679902 | Q135: 0 | R135: 0 | S135: 0 | T135: 0 | U135: 0 | V135: 0 | W135: 0 | X135: 0 | Y135: 0
F136: Total after discounting | G136: MVArh | J136: =J129 + J134 + J135 -> 0 | K136: 0 | L136: 0 | M136: 0 | N136: 246057.7697 | O136: 19880.38592 | P136: 251627.6799 | Q136: 0 | R136: 0 | S136: 0 | T136: 4452 | U136: 0 | V136: 408 | W136: 0 | X136: 16464 | Y136: 0
B138: Checks
E140: Check for error values | G140: number of issues | H140: =SUM(IF(ISERROR(H22:Y137), 1)) -> 0
B142: End of sheet

Sheet Pseudo-load coefficients
A1: =MID(CELL("filename",A1),FIND("]",CELL("filename",A1))+1,255) -> Pseudo-load coefficients
A2: =Cover!D21&" - "&Cover!D23 -> SP Distribution - One
A3: =Cover!D2&" - "&Cover!D8&" v"&Cover!D10&" - "&Cover!D19 -> ARP model - Release for charge setting v5 - 2021/22
A4: =H306 & IF(H306 = 1, " issue", " issues") &" identified in checks on this sheet" -> 0 issues identified in checks on this sheet
B5: Click here to return to model map | G5: Units | H5: Constants | J5: Domestic Aggregated | K5: Domestic Aggregated (Related MPAN) | L5: Non-Domestic Aggregated | M5: Non-Domestic Aggregated (Related MPAN) | N5: LV Site Specific | O5: LV Sub Site Specific | P5: HV Site Specific | Q5: Unmetered Supplies | R5: LV Generation Aggregated | S5: LV Sub Generation Aggregated | T5: LV Generation Site Specific | U5: LV Generation Site Specific no RP Charge | V5: LV Sub Generation Site Specific | W5: LV Sub Generation Site Specific no RP Charge | X5: HV Generation Site Specific | Y5: HV Generation Site Specific no RP Charge | AA5: Legal text reference
B7: Description
C9: This sheet calculates the pseudo load coefficients used in the calculation of unit rates and system simultaneous peak demand.
C10: The pseudo load coefficient is specified by customer category, network level and unit rate.
C11: The calculations in this sheet follow the steps set out in Paragraph 70.
B13: Step 1: Ratio of coincidence to load factor assuming units evenly spread within time bands, and peak falls in Red period
C15: This section first calculates the split of MWh by unit rate, aggregating "related MPAN" and "Aggregated" tariffs. | I15: > | AA15: Paragraphs 52A & 70 (c) i
C16: The last part of this section then calculates the ratio of coincidence to load factor based on a simplified load profile.
C18: =INDEX('Version control'!$H$34:$H$58,MATCH($A$1,'Version control'!$F$34:$F$58,0),1)&"-A: Flags and hours in timebands" -> Section 508-A: Flags and hours in timebands
E20: Flag for unmetered customers | G20: TRUE/FALSE | J20: ='Fixed inputs'!J127 -> FALSE | K20: ='Fixed inputs'!K127 -> FALSE | L20: ='Fixed inputs'!L127 -> FALSE | M20: ='Fixed inputs'!M127 -> FALSE | N20: ='Fixed inputs'!N127 -> FALSE | O20: ='Fixed inputs'!O127 -> FALSE | P20: ='Fixed inputs'!P127 -> FALSE | Q20: ='Fixed inputs'!Q127 -> TRUE | R20: ='Fixed inputs'!R127 -> FALSE | S20: ='Fixed inputs'!S127 -> FALSE | T20: ='Fixed inputs'!T127 -> FALSE | U20: ='Fixed inputs'!U127 -> FALSE | V20: ='Fixed inputs'!V127 -> FALSE | W20: ='Fixed inputs'!W127 -> FALSE | X20: ='Fixed inputs'!X127 -> FALSE | Y20: ='Fixed inputs'!Y127 -> FALSE
E22: Hours per timeband | I22: > | AA22: Paragraph 40
E23: UMS customers use Black & Yellow timebands, other customers use Red & Amber
F24: Red or Black | G24: hours | J24: =IF(J$20, 'General inputs'!$H19, 'General inputs'!$H24) -> 783 | K24: =IF(K$20, 'General inputs'!$H19, 'General inputs'!$H24) -> 783 | L24: =IF(L$20, 'General inputs'!$H19, 'General inputs'!$H24) -> 783 | M24: =IF(M$20, 'General inputs'!$H19, 'General inputs'!$H24) -> 783 | N24: =IF(N$20, 'General inputs'!$H19, 'General inputs'!$H24) -> 783 | O24: =IF(O$20, 'General inputs'!$H19, 'General inputs'!$H24) -> 783 | P24: =IF(P$20, 'General inputs'!$H19, 'General inputs'!$H24) -> 783 | Q24: =IF(Q$20, 'General inputs'!$H19, 'General inputs'!$H24) -> 258 | R24: =IF(R$20, 'General inputs'!$H19, 'General inputs'!$H24) -> 783 | S24: =IF(S$20, 'General inputs'!$H19, 'General inputs'!$H24) -> 783 | T24: =IF(T$20, 'General inputs'!$H19, 'General inputs'!$H24) -> 783 | U24: =IF(U$20, 'General inputs'!$H19, 'General inputs'!$H24) -> 783 | V24: =IF(V$20, 'General inputs'!$H19, 'General inputs'!$H24) -> 783 | W24: =IF(W$20, 'General inputs'!$H19, 'General inputs'!$H24) -> 783 | X24: =IF(X$20, 'General inputs'!$H19, 'General inputs'!$H24) -> 783 | Y24: =IF(Y$20, 'General inputs'!$H19, 'General inputs'!$H24) -> 783
F25: Amber or Yellow | G25: hours | J25: =IF(J$20, 'General inputs'!$H20, 'General inputs'!$H25) -> 3417.5 | K25: =IF(K$20, 'General inputs'!$H20, 'General inputs'!$H25) -> 3417.5 | L25: =IF(L$20, 'General inputs'!$H20, 'General inputs'!$H25) -> 3417.5 | M25: =IF(M$20, 'General inputs'!$H20, 'General inputs'!$H25) -> 3417.5 | N25: =IF(N$20, 'General inputs'!$H20, 'General inputs'!$H25) -> 3417.5 | O25: =IF(O$20, 'General inputs'!$H20, 'General inputs'!$H25) -> 3417.5 | P25: =IF(P$20, 'General inputs'!$H20, 'General inputs'!$H25) -> 3417.5 | Q25: =IF(Q$20, 'General inputs'!$H20, 'General inputs'!$H25) -> 3942.5 | R25: =IF(R$20, 'General inputs'!$H20, 'General inputs'!$H25) -> 3417.5 | S25: =IF(S$20, 'General inputs'!$H20, 'General inputs'!$H25) -> 3417.5 | T25: =IF(T$20, 'General inputs'!$H20, 'General inputs'!$H25) -> 3417.5 | U25: =IF(U$20, 'General inputs'!$H20, 'General inputs'!$H25) -> 3417.5 | V25: =IF(V$20, 'General inputs'!$H20, 'General inputs'!$H25) -> 3417.5 | W25: =IF(W$20, 'General inputs'!$H20, 'General inputs'!$H25) -> 3417.5 | X25: =IF(X$20, 'General inputs'!$H20, 'General inputs'!$H25) -> 3417.5 | Y25: =IF(Y$20, 'General inputs'!$H20, 'General inputs'!$H25) -> 3417.5
F26: Green | G26: hours | J26: =IF(J$20, 'General inputs'!$H21, 'General inputs'!$H26) -> 4559.5 | K26: =IF(K$20, 'General inputs'!$H21, 'General inputs'!$H26) -> 4559.5 | L26: =IF(L$20, 'General inputs'!$H21, 'General inputs'!$H26) -> 4559.5 | M26: =IF(M$20, 'General inputs'!$H21, 'General inputs'!$H26) -> 4559.5 | N26: =IF(N$20, 'General inputs'!$H21, 'General inputs'!$H26) -> 4559.5 | O26: =IF(O$20, 'General inputs'!$H21, 'General inputs'!$H26) -> 4559.5 | P26: =IF(P$20, 'General inputs'!$H21, 'General inputs'!$H26) -> 4559.5 | Q26: =IF(Q$20, 'General inputs'!$H21, 'General inputs'!$H26) -> 4559.5 | R26: =IF(R$20, 'General inputs'!$H21, 'General inputs'!$H26) -> 4559.5 | S26: =IF(S$20, 'General inputs'!$H21, 'General inputs'!$H26) -> 4559.5 | T26: =IF(T$20, 'General inputs'!$H21, 'General inputs'!$H26) -> 4559.5 | U26: =IF(U$20, 'General inputs'!$H21, 'General inputs'!$H26) -> 4559.5 | V26: =IF(V$20, 'General inputs'!$H21, 'General inputs'!$H26) -> 4559.5 | W26: =IF(W$20, 'General inputs'!$H21, 'General inputs'!$H26) -> 4559.5 | X26: =IF(X$20, 'General inputs'!$H21, 'General inputs'!$H26) -> 4559.5 | Y26: =IF(Y$20, 'General inputs'!$H21, 'General inputs'!$H26) -> 4559.5
C28: =INDEX('Version control'!$H$34:$H$58,MATCH($A$1,'Version control'!$F$34:$F$58,0),1)&"-B: Average load by timeband" -> Section 508-B: Average load by timeband
E30: Split of units by time pattern regime
F31: Unit rate 1 | G31: MWh | J31: ='Volume adjustments'!J66 -> 744507.476 | K31: ='Volume adjustments'!K66 -> 1327.566285 | L31: ='Volume adjustments'!L66 -> 188973.5223 | M31: ='Volume adjustments'!M66 -> 4172.24106 | N31: ='Volume adjustments'!N66 -> 282075.1436 | O31: ='Volume adjustments'!O66 -> 23010.44419 | P31: ='Volume adjustments'!P66 -> 326311.9404 | Q31: ='Volume adjustments'!Q66 -> 13868.9747 | R31: ='Volume adjustments'!R66 -> 140.0407983 | S31: ='Volume adjustments'!S66 -> 2.877628454 | T31: ='Volume adjustments'!T66 -> 6131.38141 | U31: ='Volume adjustments'!U66 -> 0 | V31: ='Volume adjustments'!V66 -> 144.6141526 | W31: ='Volume adjustments'!W66 -> 0 | X31: ='Volume adjustments'!X66 -> 116075.8182 | Y31: ='Volume adjustments'!Y66 -> 0
F32: Unit rate 2 | G32: MWh | J32: ='Volume adjustments'!J77 -> 2645097.839 | K32: ='Volume adjustments'!K77 -> 24035.07176 | L32: ='Volume adjustments'!L77 -> 1023624.188 | M32: ='Volume adjustments'!M77 -> 25319.41548 | N32: ='Volume adjustments'!N77 -> 1350126.331 | O32: ='Volume adjustments'!O77 -> 107501.3441 | P32: ='Volume adjustments'!P77 -> 1514334.2 | Q32: ='Volume adjustments'!Q77 -> 52882.39997 | R32: ='Volume adjustments'!R77 -> 628.6148355 | S32: ='Volume adjustments'!S77 -> 11.85801479 | T32: ='Volume adjustments'!T77 -> 27525.45625 | U32: ='Volume adjustments'!U77 -> 0 | V32: ='Volume adjustments'!V77 -> 597.3478309 | W32: ='Volume adjustments'!W77 -> 0 | X32: ='Volume adjustments'!X77 -> 445212.4393 | Y32: ='Volume adjustments'!Y77 -> 0
F33: Unit rate 3 | G33: MWh | J33: ='Volume adjustments'!J88 -> 2435994.001 | K33: ='Volume adjustments'!K88 -> 245515.1423 | L33: ='Volume adjustments'!L88 -> 988714.5961 | M33: ='Volume adjustments'!M88 -> 52561.15803 | N33: ='Volume adjustments'!N88 -> 1179031.436 | O33: ='Volume adjustments'!O88 -> 106315.9718 | P33: ='Volume adjustments'!P88 -> 1621310.675 | Q33: ='Volume adjustments'!Q88 -> 189423.977 | R33: ='Volume adjustments'!R88 -> 700.983745 | S33: ='Volume adjustments'!S88 -> 16.00635676 | T33: ='Volume adjustments'!T88 -> 30981.27634 | U33: ='Volume adjustments'!U88 -> 0 | V33: ='Volume adjustments'!V88 -> 807.2790165 | W33: ='Volume adjustments'!W88 -> 0 | X33: ='Volume adjustments'!X88 -> 507559.1675 | Y33: ='Volume adjustments'!Y88 -> 0
F34: Total units | G34: MWh | J34: =SUM(J31:J33) -> 5825599.316 | K34: 270877.7804 | L34: 2201312.306 | M34: 82052.81458 | N34: 2811232.911 | O34: 236827.7601 | P34: 3461956.816 | Q34: 256175.3517 | R34: 1469.639379 | S34: 30.742 | T34: 64638.114 | U34: 0 | V34: 1549.241 | W34: 0 | X34: 1068847.425 | Y34: 0
C36: =INDEX('Version control'!$H$34:$H$58,MATCH($A$1,'Version control'!$F$34:$F$58,0),1)&"-C: Aggregated groups for pseudo-load coefficients" -> Section 508-C: Aggregated groups for pseudo-load coefficients
E38: Pseudo-load coefficient aggregation group | G38: integer | I38: > | J38: ='Fixed inputs'!J149 -> 1 | K38: ='Fixed inputs'!K149 -> 1 | L38: ='Fixed inputs'!L149 -> 2 | M38: ='Fixed inputs'!M149 -> 2 | AA38: Paragraphs 52A & 70 (c) iv
E40: Split of total units by timeband for aggregate groups
E41: UMS customers use Black & Yellow timebands, other customers use Red & Amber
F42: Red or Black | G42: % | J42: =SUMIF($J$38:$Y$38, J$38, $J31:$Y31) / SUMIF($J$38:$Y$38, J$38, $J$34:$Y$34) -> 0.1223386934 | K42: 0.1223386934 | L42: 0.08458820783 | M42: 0.08458820783
F43: Amber or Yellow | G43: % | J43: 0.4378156218 | K43: 0.4378156218 | L43: 0.4593849637 | M43: 0.4593849637
F44: Green | G44: % | J44: 0.4398456848 | K44: 0.4398456848 | L44: 0.4560268284 | M44: 0.4560268284
E46: Final split of total units by timeband
E47: UMS customers use Black & Yellow timebands, other customers use Red & Amber
F48: Red or Black | G48: % | J48: =IF(ISNUMBER(J$38), J42, IF(J$34 = 0, 0, J31 / J$34)) -> 0.1223386934 | K48: =IF(ISNUMBER(K$38), K42, IF(K$34 = 0, 0, K31 / K$34)) -> 0.1223386934 | L48: 0.08458820783 | M48: 0.08458820783 | N48: 0.100338589 | O48: 0.09716109371 | P48: 0.09425650225 | Q48: 0.05413859923 | R48: 0.09528922557 | S48: 0.09360576587 | T48: 0.09485705927 | U48: 0 | V48: 0.09334516228 | W48: 0 | X48: 0.108599053 | Y48: 0
F49: Amber or Yellow | G49: % | J49: =IF(ISNUMBER(J$38), J43, IF(J$34 = 0, 0, J32 / J$34)) -> 0.4378156218 | K49: 0.4378156218 | L49: 0.4593849637 | M49: 0.4593849637 | N49: 0.4802612855 | O49: 0.4539220573 | P49: 0.4374214587 | Q49: 0.2064304767 | R49: 0.4277340718 | S49: 0.3857268489 | T49: 0.4258394088 | U49: 0 | V49: 0.3855745045 | W49: 0 | X49: 0.4165350722 | Y49: 0
F50: Green | G50: % | J50: 0.4398456848 | K50: 0.4398456848 | L50: 0.4560268284 | M50: 0.4560268284 | N50: 0.4194001255 | O50: 0.448916849 | P50: 0.4683220391 | Q50: 0.7394309241 | R50: 0.4769767027 | S50: 0.5206673852 | T50: 0.4793035319 | U50: 0 | V50: 0.5210803332 | W50: 0 | X50: 0.4748658748 | Y50: 0
C52: =INDEX('Version control'!$H$34:$H$58,MATCH($A$1,'Version control'!$F$34:$F$58,0),1)&"-D: Ratio of coincidence to load factor assuming units evenly spread within time bands, and peak falls in Red period" -> Section 508-D: Ratio of coincidence to load factor assuming units evenly spread within time bands, and peak falls in Red period
E54: Ratio of coincidence to load factor | G54: scalar | J54: =J48 * hours_in_year / J24 -> 1.368693428 | K54: 1.368693428 | L54: 0.9463508309 | M54: 0.9463508309 | N54: 1.122561992 | O54: 1.087013002 | P54: 1.05451719 | Q54: 1.838194299 | R54: 1.066071029 | S54: 1.047236921 | T54: 1.061236065 | U54: 0 | V54: 1.044321356 | W54: 0 | X54: 1.214977911 | Y54: 0
B56: Step 2: Calculate correction factor
C58: This section calculates the correction factor described in Paragraph 70 (c) ii
C60: =INDEX('Version control'!$H$34:$H$58,MATCH($A$1,'Version control'!$F$34:$F$58,0),1)&"-E: Load characteristics for all customers" -> Section 508-E: Load characteristics for all customers
E62: Load factor | G62: % | J62: ='Inputs by customer type'!J18 -> 0.4486666667 | K62: ='Inputs by customer type'!K18 -> 0.09966666667 | L62: ='Inputs by customer type'!L18 -> 0.4166666667 | M62: ='Inputs by customer type'!M18 -> 0.32 | N62: ='Inputs by customer type'!N18 -> 0.556 | O62: ='Inputs by customer type'!O18 -> 0.6726666667 | P62: ='Inputs by customer type'!P18 -> 0.7353333333 | Q62: ='Inputs by customer type'!Q18 -> 0.4583333333 | R62: ='Inputs by customer type'!R18 -> 0 | S62: ='Inputs by customer type'!S18 -> 0 | T62: ='Inputs by customer type'!T18 -> 0 | U62: ='Inputs by customer type'!U18 -> 0 | V62: ='Inputs by customer type'!V18 -> 0 | W62: ='Inputs by customer type'!W18 -> 0 | X62: ='Inputs by customer type'!X18 -> 0 | Y62: ='Inputs by customer type'!Y18 -> 0
E63: Coincidence factor | G63: % | J63: ='Inputs by customer type'!J19 -> 0.8986666667 | K63: ='Inputs by customer type'!K19 -> 0 | L63: ='Inputs by customer type'!L19 -> 0.6643333333 | M63: ='Inputs by customer type'!M19 -> 0 | N63: ='Inputs by customer type'!N19 -> 0.7836666667 | O63: ='Inputs by customer type'!O19 -> 0.7853333333 | P63: ='Inputs by customer type'!P19 -> 0.8453333333 | Q63: ='Inputs by customer type'!Q19 -> 0.926 | R63: ='Inputs by customer type'!R19 -> 0 | S63: ='Inputs by customer type'!S19 -> 0 | T63: ='Inputs by customer type'!T19 -> 0 | U63: ='Inputs by customer type'!U19 -> 0 | V63: ='Inputs by customer type'!V19 -> 0 | W63: ='Inputs by customer type'!W19 -> 0 | X63: ='Inputs by customer type'!X19 -> 0 | Y63: ='Inputs by customer type'!Y19 -> 0
C65: =INDEX('Version control'!$H$34:$H$58,MATCH($A$1,'Version control'!$F$34:$F$58,0),1)&"-F: Aggregated load characteristics for grouped customers" -> Section 508-F: Aggregated load characteristics for grouped customers
D67: Calculation of maximum load
E69: Average load | G69: MW | J69: =J34 / hours_in_year -> 665.022753 | K69: =K34 / hours_in_year -> 30.92212105 | L69: =L34 / hours_in_year -> 251.2913591 | M69: =M34 / hours_in_year -> 9.366759655
E71: Maximum load | G71: MW | J71: =IF(J62 = 0, 0, J34 / (J62 * hours_in_year)) -> 1482.220103 | K71: =IF(K62 = 0, 0, K34 / (K62 * hours_in_year)) -> 310.2553951 | L71: =IF(L62 = 0, 0, L34 / (L62 * hours_in_year)) -> 603.0992619 | M71: =IF(M62 = 0, 0, M34 / (M62 * hours_in_year)) -> 29.27112392
E73: System peak load | G73: MW | J73: =J71 * J63 -> 1332.0218 | K73: =K71 * K63 -> 0 | L73: 400.658943 | M73: 0
D75: Load and coincidence factor for aggregate groups
E77: Load factor | G77: % | J77: =SUMIF($J$38:$Y$38, J$38, $J$69:$Y$69) / SUMIF($J$38:$Y$38, J$38, $J$71:$Y$71) -> 0.3882590723 | K77: =SUMIF($J$38:$Y$38, K$38, $J$69:$Y$69) / SUMIF($J$38:$Y$38, K$38, $J$71:$Y$71) -> 0.3882590723 | L77: 0.4121921656 | M77: 0.4121921656
E79: Coincidence factor | G79: % | J79: =SUMIF($J$38:$Y$38, J$38, $J$73:$Y$73) / SUMIF($J$38:$Y$38, J$38, $J$71:$Y$71) -> 0.7431185535 | K79: =SUMIF($J$38:$Y$38, K$38, $J$73:$Y$73) / SUMIF($J$38:$Y$38, K$38, $J$71:$Y$71) -> 0.7431185535 | L79: 0.6335827103 | M79: 0.6335827103
D81: Final load and coincidence factor
E83: Load factor | G83: % | J83: =IF(J$38 = 0, J62, J77) -> 0.3882590723 | K83: =IF(K$38 = 0, K62, K77) -> 0.3882590723 | L83: 0.4121921656 | M83: 0.4121921656 | N83: 0.556 | O83: 0.6726666667 | P83: 0.7353333333 | Q83: 0.4583333333 | R83: 0 | S83: 0 | T83: 0 | U83: 0 | V83: 0 | W83: 0 | X83: 0 | Y83: 0
E85: Coincidence factor | G85: % | J85: =IF(J38 = 0, J63, J79) -> 0.7431185535 | K85: =IF(K38 = 0, K63, K79) -> 0.7431185535 | L85: 0.6335827103 | M85: 0.6335827103 | N85: 0.7836666667 | O85: 0.7853333333 | P85: 0.8453333333 | Q85: 0.926 | R85: 0 | S85: 0 | T85: 0 | U85: 0 | V85: 0 | W85: 0 | X85: 0 | Y85: 0
C87: =INDEX('Version control'!$H$34:$H$58,MATCH($A$1,'Version control'!$F$34:$F$58,0),1)&"-G: Calculation of correction factor" -> Section 508-G: Calculation of correction factor
E89: Load coefficient | G89: scalar | J89: =IF(AND(J62 = 0, J63 = 0), 1, J63 / J62) -> 2.002971768 | K89: 0 | L89: 1.5944 | M89: 0 | N89: 1.409472422 | O89: 1.167492567 | P89: 1.149592022 | Q89: 2.020363636 | R89: 1 | S89: 1 | T89: 1 | U89: 1 | V89: 1 | W89: 1 | X89: 1 | Y89: 1
E91: Load coefficient, adjusted for aggregate groups | G91: scalar | I91: > | J91: =IF(AND(J83 = 0, J85 = 0), 1, J85 / J83) -> 1.913976019 | K91: =IF(AND(K83 = 0, K85 = 0), 1, K85 / K83) -> 1.913976019 | L91: 1.537105174 | M91: 1.537105174 | N91: 1.409472422 | O91: 1.167492567 | P91: 1.149592022 | Q91: 2.020363636 | R91: 1 | S91: 1 | T91: 1 | U91: 1 | V91: 1 | W91: 1 | X91: 1 | Y91: 1 | AA91: Paragraphs 52A & 70 (c) iv
E93: Correction factor | G93: scalar | I93: > | J93: =IF(OR(J54 = 0, J85 = 0), 1, J91 / J54) -> 1.398396441 | K93: =IF(OR(K54 = 0, K85 = 0), 1, K91 / K54) -> 1.398396441 | L93: 1.624244544 | M93: 1.624244544 | N93: 1.255585377 | O93: 1.074037352 | P93: 1.090159585 | Q93: 1.099102329 | R93: 1 | S93: 1 | T93: 1 | U93: 1 | V93: 1 | W93: 1 | X93: 1 | Y93: 1 | AA93: Paragraph 70 (c.ii)
B95: Step 3: Ratio of coincidence factor (to network asset peak) to load factor, given peaking probabilities, multiplied by correction factor
C97: This section calculates the pseudo load coefficient in line with Paragraph 70 (c) iii | I97: > | AA97: Paragraph 70 (c.iii)
C98: Mathematical simplifications have been used to avoid errors when estimated volumes are zero
C100: =INDEX('Version control'!$H$34:$H$58,MATCH($A$1,'Version control'!$F$34:$F$58,0),1)&"-H: Peaking probabilities, by network level" -> Section 508-H: Peaking probabilities, by network level
E102: GSPs peaking probabilities
F103: Red | G103: % | H103: ='Inputs by network level'!K43 -> 0.7368529084
F104: Amber | G104: % | H104: ='Inputs by network level'!K44 -> 0.2576364923
F105: Green | G105: % | H105: ='Inputs by network level'!K45 -> 0.00551059925
F106: Black | G106: % | H106: ='Inputs by network level'!K46 -> 0.6705511399
F107: Yellow | G107: % | H107: =SUM(H103:H104) - H106 -> 0.3239382608
F108: Green | G108: % | H108: =H105 -> 0.00551059925
E110: 132kV peaking probabilities
F111: Red or Black | G111: % | H111: ='Inputs by network level'!L43 -> 0
F112: Amber or Yellow | G112: % | H112: ='Inputs by network level'!L44 -> 0
F113: Green | G113: % | H113: ='Inputs by network level'!L45 -> 0
F114: Black | G114: % | H114: ='Inputs by network level'!L46 -> 0
F115: Yellow | G115: % | H115: =SUM(H111:H112) - H114 -> 0
F116: Green | G116: % | H116: =H113 -> 0
E118: 132kV/EHV peaking probabilities
F119: Red or Black | G119: % | H119: ='Inputs by network level'!M43 -> 0
F120: Amber or Yellow | G120: % | H120: ='Inputs by network level'!M44 -> 0
F121: Green | G121: % | H121: ='Inputs by network level'!M45 -> 0
F122: Black | G122: % | H122: ='Inputs by network level'!M46 -> 0
F123: Yellow | G123: % | H123: =SUM(H119:H120) - H122 -> 0
F124: Green | G124: % | H124: =H121 -> 0
E126: EHV peaking probabilities
F127: Red or Black | G127: % | H127: ='Inputs by network level'!N43 -> 0.7368529084
F128: Amber or Yellow | G128: % | H128: ='Inputs by network level'!N44 -> 0.2576364923
F129: Green | G129: % | H129: ='Inputs by network level'!N45 -> 0.00551059925
F130: Black | G130: % | H130: ='Inputs by network level'!N46 -> 0.6705511399
F131: Yellow | G131: % | H131: =SUM(H127:H128) - H130 -> 0.3239382608
F132: Green | G132: % | H132: =H129 -> 0.00551059925
E134: EHV/HV peaking probabilities
F135: Red or Black | G135: % | H135: ='Inputs by network level'!O43 -> 0.645495708
F136: Amber or Yellow | G136: % | H136: ='Inputs by network level'!O44 -> 0.3391238123
F137: Green | G137: % | H137: ='Inputs by network level'!O45 -> 0.01538047962
F138: Black | G138: % | H138: ='Inputs by network level'!O46 -> 0.6051144918
F139: Yellow | G139: % | H139: =SUM(H135:H136) - H138 -> 0.3795050286
F140: Green | G140: % | H140: =H137 -> 0.01538047962
E142: 132kV/HV peaking probabilities
F143: Red or Black | G143: % | H143: ='Inputs by network level'!P43 -> 0
F144: Amber or Yellow | G144: % | H144: ='Inputs by network level'!P44 -> 0
F145: Green | G145: % | H145: ='Inputs by network level'!P45 -> 0
F146: Black | G146: % | H146: ='Inputs by network level'!P46 -> 0
F147: Yellow | G147: % | H147: =SUM(H143:H144) - H146 -> 0
F148: Green | G148: % | H148: =H145 -> 0
E150: HV peaking probabilities
F151: Red or Black | G151: % | H151: ='Inputs by network level'!Q43 -> 0.645495708
F152: Amber or Yellow | G152: % | H152: ='Inputs by network level'!Q44 -> 0.3391238123
F153: Green | G153: % | H153: ='Inputs by network level'!Q45 -> 0.01538047962
F154: Black | G154: % | H154: ='Inputs by network level'!Q46 -> 0.6051144918
F155: Yellow | G155: % | H155: =SUM(H151:H152) - H154 -> 0.3795050286
F156: Green | G156: % | H156: =H153 -> 0.01538047962
E158: HV/LV peaking probabilities
F159: Red or Black | G159: % | H159: ='Inputs by network level'!R43 -> 0.645495708
F160: Amber or Yellow | G160: % | H160: ='Inputs by network level'!R44 -> 0.3391238123
F161: Green | G161: % | H161: ='Inputs by network level'!R45 -> 0.01538047962
F162: Black | G162: % | H162: ='Inputs by network level'!R46 -> 0.6051144918
F163: Yellow | G163: % | H163: =SUM(H159:H160) - H162 -> 0.3795050286
F164: Green | G164: % | H164: =H161 -> 0.01538047962
E166: LV circuits peaking probabilities
F167: Red or Black | G167: % | H167: ='Inputs by network level'!S43 -> 0.645495708
F168: Amber or Yellow | G168: % | H168: ='Inputs by network level'!S44 -> 0.3391238123
F169: Green | G169: % | H169: ='Inputs by network level'!S45 -> 0.01538047962
F170: Black | G170: % | H170: ='Inputs by network level'!S46 -> 0.6051144918
F171: Yellow | G171: % | H171: =SUM(H167:H168) - H170 -> 0.3795050286
F172: Green | G172: % | H172: =H169 -> 0.01538047962
C174: =INDEX('Version control'!$H$34:$H$58,MATCH($A$1,'Version control'!$F$34:$F$58,0),1)&"-I: Peaking probabilities, by network level and customer type" -> Section 508-I: Peaking probabilities, by network level and customer type
E176: GSPs peaking probabilities
F177: Red or Black | G177: % | J177: =IF(J$20, $H106, $H103) -> 0.7368529084 | K177: 0.7368529084 | L177: 0.7368529084 | M177: 0.7368529084 | N177: 0.7368529084 | O177: 0.7368529084 | P177: 0.7368529084 | Q177: 0.6705511399 | R177: 0.7368529084 | S177: 0.7368529084 | T177: 0.7368529084 | U177: 0.7368529084 | V177: 0.7368529084 | W177: 0.7368529084 | X177: 0.7368529084 | Y177: 0.7368529084
F178: Amber or Yellow | G178: % | J178: 0.2576364923 | K178: 0.2576364923 | L178: 0.2576364923 | M178: 0.2576364923 | N178: 0.2576364923 | O178: 0.2576364923 | P178: 0.2576364923 | Q178: 0.3239382608 | R178: 0.2576364923 | S178: 0.2576364923 | T178: 0.2576364923 | U178: 0.2576364923 | V178: 0.2576364923 | W178: 0.2576364923 | X178: 0.2576364923 | Y178: 0.2576364923
F179: Green | G179: % | J179: 0.00551059925 | K179: 0.00551059925 | L179: 0.00551059925 | M179: 0.00551059925 | N179: 0.00551059925 | O179: 0.00551059925 | P179: 0.00551059925 | Q179: 0.00551059925 | R179: 0.00551059925 | S179: 0.00551059925 | T179: 0.00551059925 | U179: 0.00551059925 | V179: 0.00551059925 | W179: 0.00551059925 | X179: 0.00551059925 | Y179: 0.00551059925
E181: 132kV peaking probabilities
F182: Red or Black | G182: % | J182: =IF(J$20, $H114, $H111) -> 0 | K182: 0 | L182: 0 | M182: 0 | N182: 0 | O182: 0 | P182: 0 | Q182: 0 | R182: 0 | S182: 0 | T182: 0 | U182: 0 | V182: 0 | W182: 0 | X182: 0 | Y182: 0
F183: Amber or Yellow | G183: % | J183: 0 | K183: 0 | L183: 0 | M183: 0 | N183: 0 | O183: 0 | P183: 0 | Q183: 0 | R183: 0 | S183: 0 | T183: 0 | U183: 0 | V183: 0 | W183: 0 | X183: 0 | Y183: 0
F184: Green | G184: % | J184: 0 | K184: 0 | L184: 0 | M184: 0 | N184: 0 | O184: 0 | P184: 0 | Q184: 0 | R184: 0 | S184: 0 | T184: 0 | U184: 0 | V184: 0 | W184: 0 | X184: 0 | Y184: 0
E186: 132kV/EHV peaking probabilities
F187: Red or Black | G187: % | J187: =IF(J$20, $H122, $H119) -> 0 | K187: 0 | L187: 0 | M187: 0 | N187: 0 | O187: 0 | P187: 0 | Q187: 0 | R187: 0 | S187: 0 | T187: 0 | U187: 0 | V187: 0 | W187: 0 | X187: 0 | Y187: 0
F188: Amber or Yellow | G188: % | J188: 0 | K188: 0 | L188: 0 | M188: 0 | N188: 0 | O188: 0 | P188: 0 | Q188: 0 | R188: 0 | S188: 0 | T188: 0 | U188: 0 | V188: 0 | W188: 0 | X188: 0 | Y188: 0
F189: Green | G189: % | J189: 0 | K189: 0 | L189: 0 | M189: 0 | N189: 0 | O189: 0 | P189: 0 | Q189: 0 | R189: 0 | S189: 0 | T189: 0 | U189: 0 | V189: 0 | W189: 0 | X189: 0 | Y189: 0
E191: EHV peaking probabilities
F192: Red or Black | G192: % | J192: =IF(J$20, $H130, $H127) -> 0.7368529084 | K192: 0.7368529084 | L192: 0.7368529084 | M192: 0.7368529084 | N192: 0.7368529084 | O192: 0.7368529084 | P192: 0.7368529084 | Q192: 0.6705511399 | R192: 0.7368529084 | S192: 0.7368529084 | T192: 0.7368529084 | U192: 0.7368529084 | V192: 0.7368529084 | W192: 0.7368529084 | X192: 0.7368529084 | Y192: 0.7368529084
F193: Amber or Yellow | G193: % | J193: 0.2576364923 | K193: 0.2576364923 | L193: 0.2576364923 | M193: 0.2576364923 | N193: 0.2576364923 | O193: 0.2576364923 | P193: 0.2576364923 | Q193: 0.3239382608 | R193: 0.2576364923 | S193: 0.2576364923 | T193: 0.2576364923 | U193: 0.2576364923 | V193: 0.2576364923 | W193: 0.2576364923 | X193: 0.2576364923 | Y193: 0.2576364923
F194: Green | G194: % | J194: 0.00551059925 | K194: 0.00551059925 | L194: 0.00551059925 | M194: 0.00551059925 | N194: 0.00551059925 | O194: 0.00551059925 | P194: 0.00551059925 | Q194: 0.00551059925 | R194: 0.00551059925 | S194: 0.00551059925 | T194: 0.00551059925 | U194: 0.00551059925 | V194: 0.00551059925 | W194: 0.00551059925 | X194: 0.00551059925 | Y194: 0.00551059925
E196: EHV/HV peaking probabilities
F197: Red or Black | G197: % | J197: =IF(J$20, $H138, $H135) -> 0.645495708 | K197: 0.645495708 | L197: 0.645495708 | M197: 0.645495708 | N197: 0.645495708 | O197: 0.645495708 | P197: 0.645495708 | Q197: 0.6051144918 | R197: 0.645495708 | S197: 0.645495708 | T197: 0.645495708 | U197: 0.645495708 | V197: 0.645495708 | W197: 0.645495708 | X197: 0.645495708 | Y197: 0.645495708
F198: Amber or Yellow | G198: % | J198: 0.3391238123 | K198: 0.3391238123 | L198: 0.3391238123 | M198: 0.3391238123 | N198: 0.3391238123 | O198: 0.3391238123 | P198: 0.3391238123 | Q198: 0.3795050286 | R198: 0.3391238123 | S198: 0.3391238123 | T198: 0.3391238123 | U198: 0.3391238123 | V198: 0.3391238123 | W198: 0.3391238123 | X198: 0.3391238123 | Y198: 0.3391238123
F199: Green | G199: % | J199: 0.01538047962 | K199: 0.01538047962 | L199: 0.01538047962 | M199: 0.01538047962 | N199: 0.01538047962 | O199: 0.01538047962 | P199: 0.01538047962 | Q199: 0.01538047962 | R199: 0.01538047962 | S199: 0.01538047962 | T199: 0.01538047962 | U199: 0.01538047962 | V199: 0.01538047962 | W199: 0.01538047962 | X199: 0.01538047962 | Y199: 0.01538047962
E201: 132kV/HV peaking probabilities
F202: Red or Black | G202: % | J202: =IF(J$20, $H146, $H143) -> 0 | K202: 0 | L202: 0 | M202: 0 | N202: 0 | O202: 0 | P202: 0 | Q202: 0 | R202: 0 | S202: 0 | T202: 0 | U202: 0 | V202: 0 | W202: 0 | X202: 0 | Y202: 0
F203: Amber or Yellow | G203: % | J203: 0 | K203: 0 | L203: 0 | M203: 0 | N203: 0 | O203: 0 | P203: 0 | Q203: 0 | R203: 0 | S203: 0 | T203: 0 | U203: 0 | V203: 0 | W203: 0 | X203: 0 | Y203: 0
F204: Green | G204: % | J204: 0 | K204: 0 | L204: 0 | M204: 0 | N204: 0 | O204: 0 | P204: 0 | Q204: 0 | R204: 0 | S204: 0 | T204: 0 | U204: 0 | V204: 0 | W204: 0 | X204: 0 | Y204: 0
E206: HV peaking probabilities
F207: Red or Black | G207: % | J207: =IF(J$20, $H154, $H151) -> 0.645495708 | K207: 0.645495708 | L207: 0.645495708 | M207: 0.645495708 | N207: 0.645495708 | O207: 0.645495708 | P207: 0.645495708 | Q207: 0.6051144918 | R207: 0.645495708 | S207: 0.645495708 | T207: 0.645495708 | U207: 0.645495708 | V207: 0.645495708 | W207: 0.645495708 | X207: 0.645495708 | Y207: 0.645495708
F208: Amber or Yellow | G208: % | J208: 0.3391238123 | K208: 0.3391238123 | L208: 0.3391238123 | M208: 0.3391238123 | N208: 0.3391238123 | O208: 0.3391238123 | P208: 0.3391238123 | Q208: 0.3795050286 | R208: 0.3391238123 | S208: 0.3391238123 | T208: 0.3391238123 | U208: 0.3391238123 | V208: 0.3391238123 | W208: 0.3391238123 | X208: 0.3391238123 | Y208: 0.3391238123
F209: Green | G209: % | J209: 0.01538047962 | K209: 0.01538047962 | L209: 0.01538047962 | M209: 0.01538047962 | N209: 0.01538047962 | O209: 0.01538047962 | P209: 0.01538047962 | Q209: 0.01538047962 | R209: 0.01538047962 | S209: 0.01538047962 | T209: 0.01538047962 | U209: 0.01538047962 | V209: 0.01538047962 | W209: 0.01538047962 | X209: 0.01538047962 | Y209: 0.01538047962
E211: HV/LV peaking probabilities
F212: Red or Black | G212: % | J212: =IF(J$20, $H162, $H159) -> 0.645495708 | K212: 0.645495708 | L212: 0.645495708 | M212: 0.645495708 | N212: 0.645495708 | O212: 0.645495708 | P212: 0.645495708 | Q212: 0.6051144918 | R212: 0.645495708 | S212: 0.645495708 | T212: 0.645495708 | U212: 0.645495708 | V212: 0.645495708 | W212: 0.645495708 | X212: 0.645495708 | Y212: 0.645495708
F213: Amber or Yellow | G213: % | J213: 0.3391238123 | K213: 0.3391238123 | L213: 0.3391238123 | M213: 0.3391238123 | N213: 0.3391238123 | O213: 0.3391238123 | P213: 0.3391238123 | Q213: 0.3795050286 | R213: 0.3391238123 | S213: 0.3391238123 | T213: 0.3391238123 | U213: 0.3391238123 | V213: 0.3391238123 | W213: 0.3391238123 | X213: 0.3391238123 | Y213: 0.3391238123
F214: Green | G214: % | J214: 0.01538047962 | K214: 0.01538047962 | L214: 0.01538047962 | M214: 0.01538047962 | N214: 0.01538047962 | O214: 0.01538047962 | P214: 0.01538047962 | Q214: 0.01538047962 | R214: 0.01538047962 | S214: 0.01538047962 | T214: 0.01538047962 | U214: 0.01538047962 | V214: 0.01538047962 | W214: 0.01538047962 | X214: 0.01538047962 | Y214: 0.01538047962
E216: LV circuits peaking probabilities
F217: Red or Black | G217: % | J217: =IF(J$20, $H170, $H167) -> 0.645495708 | K217: 0.645495708 | L217: 0.645495708 | M217: 0.645495708 | N217: 0.645495708 | O217: 0.645495708 | P217: 0.645495708 | Q217: 0.6051144918 | R217: 0.645495708 | S217: 0.645495708 | T217: 0.645495708 | U217: 0.645495708 | V217: 0.645495708 | W217: 0.645495708 | X217: 0.645495708 | Y217: 0.645495708
F218: Amber or Yellow | G218: % | J218: 0.3391238123 | K218: 0.3391238123 | L218: 0.3391238123 | M218: 0.3391238123 | N218: 0.3391238123 | O218: 0.3391238123 | P218: 0.3391238123 | Q218: 0.3795050286 | R218: 0.3391238123 | S218: 0.3391238123 | T218: 0.3391238123 | U218: 0.3391238123 | V218: 0.3391238123 | W218: 0.3391238123 | X218: 0.3391238123 | Y218: 0.3391238123
F219: Green | G219: % | J219: 0.01538047962 | K219: 0.01538047962 | L219: 0.01538047962 | M219: 0.01538047962 | N219: 0.01538047962 | O219: 0.01538047962 | P219: 0.01538047962 | Q219: 0.01538047962 | R219: 0.01538047962 | S219: 0.01538047962 | T219: 0.01538047962 | U219: 0.01538047962 | V219: 0.01538047962 | W219: 0.01538047962 | X219: 0.01538047962 | Y219: 0.01538047962
C221: =INDEX('Version control'!$H$34:$H$58,MATCH($A$1,'Version control'!$F$34:$F$58,0),1)&"-J: Ratio of coincidence factor to load factor, based on uniform distribution in timebands and peaking probabilities" -> Section 508-J: Ratio of coincidence factor to load factor, based on uniform distribution in timebands and peaking probabilities
E223: Inverse of hours in timeband
F224: Red or Black | G224: 1 / hours | J224: =1 / J24 -> 0.001277139208 | K224: 0.001277139208 | L224: 0.001277139208 | M224: 0.001277139208 | N224: 0.001277139208 | O224: 0.001277139208 | P224: 0.001277139208 | Q224: 0.003875968992 | R224: 0.001277139208 | S224: 0.001277139208 | T224: 0.001277139208 | U224: 0.001277139208 | V224: 0.001277139208 | W224: 0.001277139208 | X224: 0.001277139208 | Y224: 0.001277139208
F225: Amber or Yellow | G225: 1 / hours | J225: 0.0002926115582 | K225: 0.0002926115582 | L225: 0.0002926115582 | M225: 0.0002926115582 | N225: 0.0002926115582 | O225: 0.0002926115582 | P225: 0.0002926115582 | Q225: 0.0002536461636 | R225: 0.0002926115582 | S225: 0.0002926115582 | T225: 0.0002926115582 | U225: 0.0002926115582 | V225: 0.0002926115582 | W225: 0.0002926115582 | X225: 0.0002926115582 | Y225: 0.0002926115582
F226: Green | G226: 1 / hours | J226: 0.0002193222941 | K226: 0.0002193222941 | L226: 0.0002193222941 | M226: 0.0002193222941 | N226: 0.0002193222941 | O226: 0.0002193222941 | P226: 0.0002193222941 | Q226: 0.0002193222941 | R226: 0.0002193222941 | S226: 0.0002193222941 | T226: 0.0002193222941 | U226: 0.0002193222941 | V226: 0.0002193222941 | W226: 0.0002193222941 | X226: 0.0002193222941 | Y226: 0.0002193222941
E228: Unit rate 1
F229: GSPs | G229: scalar | J229: =J177 * J$224 * hours_in_year -> 8.243718363 | K229: 8.243718363 | L229: 8.243718363 | M229: 8.243718363 | N229: 8.243718363 | O229: 8.243718363 | P229: 8.243718363 | Q229: 22.76755033 | R229: 8.243718363 | S229: 8.243718363 | T229: 8.243718363 | U229: 8.243718363 | V229: 8.243718363 | W229: 8.243718363 | X229: 8.243718363 | Y229: 8.243718363
F230: 132kV | G230: scalar | J230: =J182 * J224 * hours_in_year -> 0 | K230: 0 | L230: 0 | M230: 0 | N230: 0 | O230: 0 | P230: 0 | Q230: 0 | R230: 0 | S230: 0 | T230: 0 | U230: 0 | V230: 0 | W230: 0 | X230: 0 | Y230: 0
F231: 132kV/EHV | G231: scalar | J231: =J187 * J224 * hours_in_year -> 0 | K231: 0 | L231: 0 | M231: 0 | N231: 0 | O231: 0 | P231: 0 | Q231: 0 | R231: 0 | S231: 0 | T231: 0 | U231: 0 | V231: 0 | W231: 0 | X231: 0 | Y231: 0
F232: EHV | G232: scalar | J232: =J192 * J224 * hours_in_year -> 8.243718363 | K232: 8.243718363 | L232: 8.243718363 | M232: 8.243718363 | N232: 8.243718363 | O232: 8.243718363 | P232: 8.243718363 | Q232: 22.76755033 | R232: 8.243718363 | S232: 8.243718363 | T232: 8.243718363 | U232: 8.243718363 | V232: 8.243718363 | W232: 8.243718363 | X232: 8.243718363 | Y232: 8.243718363
F233: EHV/HV | G233: scalar | J233: =J197 * J224 * hours_in_year -> 7.221637806 | K233: 7.221637806 | L233: 7.221637806 | M233: 7.221637806 | N233: 7.221637806 | O233: 7.221637806 | P233: 7.221637806 | Q233: 20.54574786 | R233: 7.221637806 | S233: 7.221637806 | T233: 7.221637806 | U233: 7.221637806 | V233: 7.221637806 | W233: 7.221637806 | X233: 7.221637806 | Y233: 7.221637806
F234: 132kV/HV | G234: scalar | J234: =J202 * J224 * hours_in_year -> 0 | K234: 0 | L234: 0 | M234: 0 | N234: 0 | O234: 0 | P234: 0 | Q234: 0 | R234: 0 | S234: 0 | T234: 0 | U234: 0 | V234: 0 | W234: 0 | X234: 0 | Y234: 0
F235: HV | G235: scalar | J235: =J207 * J224 * hours_in_year -> 7.221637806 | K235: 7.221637806 | L235: 7.221637806 | M235: 7.221637806 | N235: 7.221637806 | O235: 7.221637806 | P235: 7.221637806 | Q235: 20.54574786 | R235: 7.221637806 | S235: 7.221637806 | T235: 7.221637806 | U235: 7.221637806 | V235: 7.221637806 | W235: 7.221637806 | X235: 7.221637806 | Y235: 7.221637806
F236: HV/LV | G236: scalar | J236: =J212 * J224 * hours_in_year -> 7.221637806 | K236: 7.221637806 | L236: 7.221637806 | M236: 7.221637806 | N236: 7.221637806 | O236: 7.221637806 | P236: 7.221637806 | Q236: 20.54574786 | R236: 7.221637806 | S236: 7.221637806 | T236: 7.221637806 | U236: 7.221637806 | V236: 7.221637806 | W236: 7.221637806 | X236: 7.221637806 | Y236: 7.221637806
F237: LV circuits | G237: scalar | J237: =J217 * J224 * hours_in_year -> 7.221637806 | K237: 7.221637806 | L237: 7.221637806 | M237: 7.221637806 | N237: 7.221637806 | O237: 7.221637806 | P237: 7.221637806 | Q237: 20.54574786 | R237: 7.221637806 | S237: 7.221637806 | T237: 7.221637806 | U237: 7.221637806 | V237: 7.221637806 | W237: 7.221637806 | X237: 7.221637806 | Y237: 7.221637806
E239: Unit rate 2
F240: GSPs | G240: scalar | J240: =J178 * J225 * hours_in_year -> 0.6603937594 | K240: 0.6603937594 | L240: 0.6603937594 | M240: 0.6603937594 | N240: 0.6603937594 | O240: 0.6603937594 | P240: 0.6603937594 | Q240: 0.7197715066 | R240: 0.6603937594 | S240: 0.6603937594 | T240: 0.6603937594 | U240: 0.6603937594 | V240: 0.6603937594 | W240: 0.6603937594 | X240: 0.6603937594 | Y240: 0.6603937594
F241: 132kV | G241: scalar | J241: =J183 * J225 * hours_in_year -> 0 | K241: 0 | L241: 0 | M241: 0 | N241: 0 | O241: 0 | P241: 0 | Q241: 0 | R241: 0 | S241: 0 | T241: 0 | U241: 0 | V241: 0 | W241: 0 | X241: 0 | Y241: 0
F242: 132kV/EHV | G242: scalar | J242: =J188 * J225 * hours_in_year -> 0 | K242: 0 | L242: 0 | M242: 0 | N242: 0 | O242: 0 | P242: 0 | Q242: 0 | R242: 0 | S242: 0 | T242: 0 | U242: 0 | V242: 0 | W242: 0 | X242: 0 | Y242: 0
F243: EHV | G243: scalar | J243: =J193 * J225 * hours_in_year -> 0.6603937594 | K243: 0.6603937594 | L243: 0.6603937594 | M243: 0.6603937594 | N243: 0.6603937594 | O243: 0.6603937594 | P243: 0.6603937594 | Q243: 0.7197715066 | R243: 0.6603937594 | S243: 0.6603937594 | T243: 0.6603937594 | U243: 0.6603937594 | V243: 0.6603937594 | W243: 0.6603937594 | X243: 0.6603937594 | Y243: 0.6603937594
F244: EHV/HV | G244: scalar | J244: =J198 * J225 * hours_in_year -> 0.8692683529 | K244: 0.8692683529 | L244: 0.8692683529 | M244: 0.8692683529 | N244: 0.8692683529 | O244: 0.8692683529 | P244: 0.8692683529 | Q244: 0.8432375525 | R244: 0.8692683529 | S244: 0.8692683529 | T244: 0.8692683529 | U244: 0.8692683529 | V244: 0.8692683529 | W244: 0.8692683529 | X244: 0.8692683529 | Y244: 0.8692683529
F245: 132kV/HV | G245: scalar | J245: =J203 * J225 * hours_in_year -> 0 | K245: 0 | L245: 0 | M245: 0 | N245: 0 | O245: 0 | P245: 0 | Q245: 0 | R245: 0 | S245: 0 | T245: 0 | U245: 0 | V245: 0 | W245: 0 | X245: 0 | Y245: 0
F246: HV | G246: scalar | J246: =J208 * J225 * hours_in_year -> 0.8692683529 | K246: 0.8692683529 | L246: 0.8692683529 | M246: 0.8692683529 | N246: 0.8692683529 | O246: 0.8692683529 | P246: 0.8692683529 | Q246: 0.8432375525 | R246: 0.8692683529 | S246: 0.8692683529 | T246: 0.8692683529 | U246: 0.8692683529 | V246: 0.8692683529 | W246: 0.8692683529 | X246: 0.8692683529 | Y246: 0.8692683529
F247: HV/LV | G247: scalar | J247: =J213 * J225 * hours_in_year -> 0.8692683529 | K247: 0.8692683529 | L247: 0.8692683529 | M247: 0.8692683529 | N247: 0.8692683529 | O247: 0.8692683529 | P247: 0.8692683529 | Q247: 0.8432375525 | R247: 0.8692683529 | S247: 0.8692683529 | T247: 0.8692683529 | U247: 0.8692683529 | V247: 0.8692683529 | W247: 0.8692683529 | X247: 0.8692683529 | Y247: 0.8692683529
F248: LV circuits | G248: scalar | J248: =J218 * J225 * hours_in_year -> 0.8692683529 | K248: 0.8692683529 | L248: 0.8692683529 | M248: 0.8692683529 | N248: 0.8692683529 | O248: 0.8692683529 | P248: 0.8692683529 | Q248: 0.8432375525 | R248: 0.8692683529 | S248: 0.8692683529 | T248: 0.8692683529 | U248: 0.8692683529 | V248: 0.8692683529 | W248: 0.8692683529 | X248: 0.8692683529 | Y248: 0.8692683529
E250: Unit rate 3
F251: GSPs | G251: scalar | J251: =J179 * J226 * hours_in_year -> 0.01058731208 | K251: 0.01058731208 | L251: 0.01058731208 | M251: 0.01058731208 | N251: 0.01058731208 | O251: 0.01058731208 | P251: 0.01058731208 | Q251: 0.01058731208 | R251: 0.01058731208 | S251: 0.01058731208 | T251: 0.01058731208 | U251: 0.01058731208 | V251: 0.01058731208 | W251: 0.01058731208 | X251: 0.01058731208 | Y251: 0.01058731208
F252: 132kV | G252: scalar | J252: =J184 * J226 * hours_in_year -> 0 | K252: 0 | L252: 0 | M252: 0 | N252: 0 | O252: 0 | P252: 0 | Q252: 0 | R252: 0 | S252: 0 | T252: 0 | U252: 0 | V252: 0 | W252: 0 | X252: 0 | Y252: 0
F253: 132kV/EHV | G253: scalar | J253: =J189 * J226 * hours_in_year -> 0 | K253: 0 | L253: 0 | M253: 0 | N253: 0 | O253: 0 | P253: 0 | Q253: 0 | R253: 0 | S253: 0 | T253: 0 | U253: 0 | V253: 0 | W253: 0 | X253: 0 | Y253: 0
F254: EHV | G254: scalar | J254: =J194 * J226 * hours_in_year -> 0.01058731208 | K254: 0.01058731208 | L254: 0.01058731208 | M254: 0.01058731208 | N254: 0.01058731208 | O254: 0.01058731208 | P254: 0.01058731208 | Q254: 0.01058731208 | R254: 0.01058731208 | S254: 0.01058731208 | T254: 0.01058731208 | U254: 0.01058731208 | V254: 0.01058731208 | W254: 0.01058731208 | X254: 0.01058731208 | Y254: 0.01058731208
F255: EHV/HV | G255: scalar | J255: =J199 * J226 * hours_in_year -> 0.02954995097 | K255: 0.02954995097 | L255: 0.02954995097 | M255: 0.02954995097 | N255: 0.02954995097 | O255: 0.02954995097 | P255: 0.02954995097 | Q255: 0.02954995097 | R255: 0.02954995097 | S255: 0.02954995097 | T255: 0.02954995097 | U255: 0.02954995097 | V255: 0.02954995097 | W255: 0.02954995097 | X255: 0.02954995097 | Y255: 0.02954995097
F256: 132kV/HV | G256: scalar | J256: =J204 * J226 * hours_in_year -> 0 | K256: 0 | L256: 0 | M256: 0 | N256: 0 | O256: 0 | P256: 0 | Q256: 0 | R256: 0 | S256: 0 | T256: 0 | U256: 0 | V256: 0 | W256: 0 | X256: 0 | Y256: 0
F257: HV | G257: scalar | J257: =J209 * J226 * hours_in_year -> 0.02954995097 | K257: 0.02954995097 | L257: 0.02954995097 | M257: 0.02954995097 | N257: 0.02954995097 | O257: 0.02954995097 | P257: 0.02954995097 | Q257: 0.02954995097 | R257: 0.02954995097 | S257: 0.02954995097 | T257: 0.02954995097 | U257: 0.02954995097 | V257: 0.02954995097 | W257: 0.02954995097 | X257: 0.02954995097 | Y257: 0.02954995097
F258: HV/LV | G258: scalar | J258: =J214 * J226 * hours_in_year -> 0.02954995097 | K258: 0.02954995097 | L258: 0.02954995097 | M258: 0.02954995097 | N258: 0.02954995097 | O258: 0.02954995097 | P258: 0.02954995097 | Q258: 0.02954995097 | R258: 0.02954995097 | S258: 0.02954995097 | T258: 0.02954995097 | U258: 0.02954995097 | V258: 0.02954995097 | W258: 0.02954995097 | X258: 0.02954995097 | Y258: 0.02954995097
F259: LV circuits | G259: scalar | J259: =J219 * J226 * hours_in_year -> 0.02954995097 | K259: 0.02954995097 | L259: 0.02954995097 | M259: 0.02954995097 | N259: 0.02954995097 | O259: 0.02954995097 | P259: 0.02954995097 | Q259: 0.02954995097 | R259: 0.02954995097 | S259: 0.02954995097 | T259: 0.02954995097 | U259: 0.02954995097 | V259: 0.02954995097 | W259: 0.02954995097 | X259: 0.02954995097 | Y259: 0.02954995097
B261: Step 4: Results of Step 3
C263: This section combines the load coefficient, and pseudo load coefficients
... 36 more rows

Sheet System peak demand
A1: =MID(CELL("filename",A1),FIND("]",CELL("filename",A1))+1,255) -> System peak demand
A2: =Cover!D21&" - "&Cover!D23 -> SP Distribution - One
A3: =Cover!D2&" - "&Cover!D8&" v"&Cover!D10&" - "&Cover!D19 -> ARP model - Release for charge setting v5 - 2021/22
A4: =H281 & IF(H281 = 1, " issue", " issues") &" identified in checks on this sheet" -> 0 issues identified in checks on this sheet
B5: Click here to return to model map | G5: Units | H5: Constants | J5: Domestic Aggregated | K5: Domestic Aggregated (Related MPAN) | L5: Non-Domestic Aggregated | M5: Non-Domestic Aggregated (Related MPAN) | N5: LV Site Specific | O5: LV Sub Site Specific | P5: HV Site Specific | Q5: Unmetered Supplies | R5: LV Generation Aggregated | S5: LV Sub Generation Aggregated | T5: LV Generation Site Specific | U5: LV Generation Site Specific no RP Charge | V5: LV Sub Generation Site Specific | W5: LV Sub Generation Site Specific no RP Charge | X5: HV Generation Site Specific | Y5: HV Generation Site Specific no RP Charge | AA5: Legal text reference
B7: Description
C9: This sheet calculates load at system peak based on chargeable load.
C10: This is used to calculate notional asset values used in the allocation of other operating costs in the 'Unit costs' tab.
C11: Chargeable volumes are made up of three components:
D12: 1. Load charged to unit rates
D13: 2. Import and exceeded capacity charged to capacity charges.
D14: 3. Estimated maximum load (i.e. capacity) used to calculate fixed charges.
B16: Common inputs for chargeable load calculations
C18: =INDEX('Version control'!$H$34:$H$58,MATCH($A$1,'Version control'!$F$34:$F$58,0),1)&"-A: Common inputs for chargeable load calculations" -> Section 509-A: Common inputs for chargeable load calculations
D20: This section brings in common inputs used for the three elements of chargeable load
E22: Standing charges factors adapted to use 132kV/HV, by network level
F23: GSPs | G23: % | J23: ='Standing charge factors'!J44 -> 0 | K23: ='Standing charge factors'!K44 -> 0 | L23: ='Standing charge factors'!L44 -> 0 | M23: ='Standing charge factors'!M44 -> 0 | N23: ='Standing charge factors'!N44 -> 0 | O23: ='Standing charge factors'!O44 -> 0 | P23: ='Standing charge factors'!P44 -> 0 | Q23: ='Standing charge factors'!Q44 -> 0 | R23: ='Standing charge factors'!R44 -> 0 | S23: ='Standing charge factors'!S44 -> 0 | T23: ='Standing charge factors'!T44 -> 0 | U23: ='Standing charge factors'!U44 -> 0 | V23: ='Standing charge factors'!V44 -> 0 | W23: ='Standing charge factors'!W44 -> 0 | X23: ='Standing charge factors'!X44 -> 0 | Y23: ='Standing charge factors'!Y44 -> 0
F24: 132kV | G24: % | J24: ='Standing charge factors'!J45 -> 0 | K24: ='Standing charge factors'!K45 -> 0 | L24: ='Standing charge factors'!L45 -> 0 | M24: ='Standing charge factors'!M45 -> 0 | N24: ='Standing charge factors'!N45 -> 0 | O24: ='Standing charge factors'!O45 -> 0 | P24: ='Standing charge factors'!P45 -> 0 | Q24: ='Standing charge factors'!Q45 -> 0 | R24: ='Standing charge factors'!R45 -> 0 | S24: ='Standing charge factors'!S45 -> 0 | T24: ='Standing charge factors'!T45 -> 0 | U24: ='Standing charge factors'!U45 -> 0 | V24: ='Standing charge factors'!V45 -> 0 | W24: ='Standing charge factors'!W45 -> 0 | X24: ='Standing charge factors'!X45 -> 0 | Y24: ='Standing charge factors'!Y45 -> 0
F25: 132kV/EHV | G25: % | J25: ='Standing charge factors'!J46 -> 0 | K25: ='Standing charge factors'!K46 -> 0 | L25: ='Standing charge factors'!L46 -> 0 | M25: ='Standing charge factors'!M46 -> 0 | N25: ='Standing charge factors'!N46 -> 0 | O25: ='Standing charge factors'!O46 -> 0 | P25: ='Standing charge factors'!P46 -> 0 | Q25: ='Standing charge factors'!Q46 -> 0 | R25: ='Standing charge factors'!R46 -> 0 | S25: ='Standing charge factors'!S46 -> 0 | T25: ='Standing charge factors'!T46 -> 0 | U25: ='Standing charge factors'!U46 -> 0 | V25: ='Standing charge factors'!V46 -> 0 | W25: ='Standing charge factors'!W46 -> 0 | X25: ='Standing charge factors'!X46 -> 0 | Y25: ='Standing charge factors'!Y46 -> 0
F26: EHV | G26: % | J26: ='Standing charge factors'!J47 -> 0 | K26: ='Standing charge factors'!K47 -> 0 | L26: ='Standing charge factors'!L47 -> 0 | M26: ='Standing charge factors'!M47 -> 0 | N26: ='Standing charge factors'!N47 -> 0 | O26: ='Standing charge factors'!O47 -> 0 | P26: ='Standing charge factors'!P47 -> 0.2 | Q26: ='Standing charge factors'!Q47 -> 0 | R26: ='Standing charge factors'!R47 -> 0 | S26: ='Standing charge factors'!S47 -> 0 | T26: ='Standing charge factors'!T47 -> 0 | U26: ='Standing charge factors'!U47 -> 0 | V26: ='Standing charge factors'!V47 -> 0 | W26: ='Standing charge factors'!W47 -> 0 | X26: ='Standing charge factors'!X47 -> 0 | Y26: ='Standing charge factors'!Y47 -> 0
F27: EHV/HV | G27: % | J27: ='Standing charge factors'!J48 -> 0 | K27: ='Standing charge factors'!K48 -> 0 | L27: ='Standing charge factors'!L48 -> 0 | M27: ='Standing charge factors'!M48 -> 0 | N27: ='Standing charge factors'!N48 -> 0 | O27: ='Standing charge factors'!O48 -> 0 | P27: ='Standing charge factors'!P48 -> 1 | Q27: ='Standing charge factors'!Q48 -> 0 | R27: ='Standing charge factors'!R48 -> 0 | S27: ='Standing charge factors'!S48 -> 0 | T27: ='Standing charge factors'!T48 -> 0 | U27: ='Standing charge factors'!U48 -> 0 | V27: ='Standing charge factors'!V48 -> 0 | W27: ='Standing charge factors'!W48 -> 0 | X27: ='Standing charge factors'!X48 -> 0 | Y27: ='Standing charge factors'!Y48 -> 0
F28: 132kV/HV | G28: % | J28: ='Standing charge factors'!J49 -> 0 | K28: ='Standing charge factors'!K49 -> 0 | L28: ='Standing charge factors'!L49 -> 0 | M28: ='Standing charge factors'!M49 -> 0 | N28: ='Standing charge factors'!N49 -> 0 | O28: ='Standing charge factors'!O49 -> 0 | P28: ='Standing charge factors'!P49 -> 1 | Q28: ='Standing charge factors'!Q49 -> 0 | R28: ='Standing charge factors'!R49 -> 0 | S28: ='Standing charge factors'!S49 -> 0 | T28: ='Standing charge factors'!T49 -> 0 | U28: ='Standing charge factors'!U49 -> 0 | V28: ='Standing charge factors'!V49 -> 0 | W28: ='Standing charge factors'!W49 -> 0 | X28: ='Standing charge factors'!X49 -> 0 | Y28: ='Standing charge factors'!Y49 -> 0
F29: HV | G29: % | J29: ='Standing charge factors'!J50 -> 0 | K29: ='Standing charge factors'!K50 -> 0 | L29: ='Standing charge factors'!L50 -> 0 | M29: ='Standing charge factors'!M50 -> 0 | N29: ='Standing charge factors'!N50 -> 0.2 | O29: ='Standing charge factors'!O50 -> 1 | P29: ='Standing charge factors'!P50 -> 1 | Q29: ='Standing charge factors'!Q50 -> 0 | R29: ='Standing charge factors'!R50 -> 0 | S29: ='Standing charge factors'!S50 -> 0 | T29: ='Standing charge factors'!T50 -> 0 | U29: ='Standing charge factors'!U50 -> 0 | V29: ='Standing charge factors'!V50 -> 0 | W29: ='Standing charge factors'!W50 -> 0 | X29: ='Standing charge factors'!X50 -> 0 | Y29: ='Standing charge factors'!Y50 -> 0
F30: HV/LV | G30: % | J30: ='Standing charge factors'!J51 -> 0 | K30: ='Standing charge factors'!K51 -> 0 | L30: ='Standing charge factors'!L51 -> 0 | M30: ='Standing charge factors'!M51 -> 0 | N30: ='Standing charge factors'!N51 -> 1 | O30: ='Standing charge factors'!O51 -> 1 | P30: ='Standing charge factors'!P51 -> 0 | Q30: ='Standing charge factors'!Q51 -> 0 | R30: ='Standing charge factors'!R51 -> 0 | S30: ='Standing charge factors'!S51 -> 0 | T30: ='Standing charge factors'!T51 -> 0 | U30: ='Standing charge factors'!U51 -> 0 | V30: ='Standing charge factors'!V51 -> 0 | W30: ='Standing charge factors'!W51 -> 0 | X30: ='Standing charge factors'!X51 -> 0 | Y30: ='Standing charge factors'!Y51 -> 0
F31: LV circuits | G31: % | J31: ='Standing charge factors'!J52 -> 1 | K31: ='Standing charge factors'!K52 -> 1 | L31: ='Standing charge factors'!L52 -> 1 | M31: ='Standing charge factors'!M52 -> 1 | N31: ='Standing charge factors'!N52 -> 1 | O31: ='Standing charge factors'!O52 -> 0 | P31: ='Standing charge factors'!P52 -> 0 | Q31: ='Standing charge factors'!Q52 -> 0 | R31: ='Standing charge factors'!R52 -> 0 | S31: ='Standing charge factors'!S52 -> 0 | T31: ='Standing charge factors'!T52 -> 0 | U31: ='Standing charge factors'!U52 -> 0 | V31: ='Standing charge factors'!V52 -> 0 | W31: ='Standing charge factors'!W52 -> 0 | X31: ='Standing charge factors'!X52 -> 0 | Y31: ='Standing charge factors'!Y52 -> 0
E33: User loss factor | I33: > | AA33: Paragraph 61 (b)
F34: GSPs | G34: scalar | J34: =TRANSPOSE('Load & loss characteristics'!K145:S160) -> 1.098 | K34: 1.098 | L34: 1.098 | M34: 1.098 | N34: 1.098 | O34: 1.044 | P34: 1.026 | Q34: 1.098 | R34: -1.098 | S34: -1.044 | T34: -1.098 | U34: -1.098 | V34: -1.044 | W34: -1.044 | X34: -1.026 | Y34: -1.026
F35: 132kV | G35: scalar | J35: 1.098 | K35: 1.098 | L35: 1.098 | M35: 1.098 | N35: 1.098 | O35: 1.044 | P35: 1.026 | Q35: 1.098 | R35: -1.098 | S35: -1.044 | T35: -1.098 | U35: -1.098 | V35: -1.044 | W35: -1.044 | X35: -1.026 | Y35: -1.026
F36: 132kV/EHV | G36: scalar | J36: 1.098 | K36: 1.098 | L36: 1.098 | M36: 1.098 | N36: 1.098 | O36: 1.044 | P36: 1.026 | Q36: 1.098 | R36: -1.098 | S36: -1.044 | T36: -1.098 | U36: -1.098 | V36: -1.044 | W36: -1.044 | X36: -1.026 | Y36: -1.026
F37: EHV | G37: scalar | J37: 1.098 | K37: 1.098 | L37: 1.098 | M37: 1.098 | N37: 1.098 | O37: 1.044 | P37: 1.026 | Q37: 1.098 | R37: -1.098 | S37: -1.044 | T37: -1.098 | U37: -1.098 | V37: -1.044 | W37: -1.044 | X37: -1.026 | Y37: -1.026
F38: EHV/HV | G38: scalar | J38: 1.098 | K38: 1.098 | L38: 1.098 | M38: 1.098 | N38: 1.098 | O38: 1.044 | P38: 1.026 | Q38: 1.098 | R38: -1.098 | S38: -1.044 | T38: -1.098 | U38: -1.098 | V38: -1.044 | W38: -1.044 | X38: -1.026 | Y38: -1.026
F39: 132kV/HV | G39: scalar | J39: 0 | K39: 0 | L39: 0 | M39: 0 | N39: 0 | O39: 0 | P39: 0 | Q39: 0 | R39: 0 | S39: 0 | T39: 0 | U39: 0 | V39: 0 | W39: 0 | X39: 0 | Y39: 0
F40: HV | G40: scalar | J40: 1.098 | K40: 1.098 | L40: 1.098 | M40: 1.098 | N40: 1.098 | O40: 1.044 | P40: 1.026 | Q40: 1.098 | R40: -1.098 | S40: -1.044 | T40: -1.098 | U40: -1.098 | V40: -1.044 | W40: -1.044 | X40: 0 | Y40: 0
F41: HV/LV | G41: scalar | J41: 1.098 | K41: 1.098 | L41: 1.098 | M41: 1.098 | N41: 1.098 | O41: 1.044 | P41: 0 | Q41: 1.098 | R41: -1.098 | S41: 0 | T41: -1.098 | U41: -1.098 | V41: 0 | W41: 0 | X41: 0 | Y41: 0
F42: LV circuits | G42: scalar | J42: 1.098 | K42: 1.098 | L42: 1.098 | M42: 1.098 | N42: 1.098 | O42: 0 | P42: 0 | Q42: 1.098 | R42: 0 | S42: 0 | T42: 0 | U42: 0 | V42: 0 | W42: 0 | X42: 0 | Y42: 0
E44: Network loss factor
F45: GSPs | G45: scalar | H45: ='Load & loss characteristics'!K29 -> 1
F46: 132kV | G46: scalar | H46: ='Load & loss characteristics'!L29 -> 1
F47: 132kV/EHV | G47: scalar | H47: ='Load & loss characteristics'!M29 -> 1
F48: EHV | G48: scalar | H48: ='Load & loss characteristics'!N29 -> 1.004
F49: EHV/HV | G49: scalar | H49: ='Load & loss characteristics'!O29 -> 1.013
F50: 132kV/HV | G50: scalar | H50: ='Load & loss characteristics'!P29 -> 1.013
F51: HV | G51: scalar | H51: ='Load & loss characteristics'!Q29 -> 1.026
F52: HV/LV | G52: scalar | H52: ='Load & loss characteristics'!R29 -> 1.044
F53: LV circuits | G53: scalar | H53: ='Load & loss characteristics'!S29 -> 1.098
E55: Discounted volumes (MWh) | I55: > | AA55: Paragraph 61 (a)
F56: Unit rate 1 | G56: MWh | J56: ='Volume adjustments'!J66 -> 744507.476 | K56: ='Volume adjustments'!K66 -> 1327.566285 | L56: ='Volume adjustments'!L66 -> 188973.5223 | M56: ='Volume adjustments'!M66 -> 4172.24106 | N56: ='Volume adjustments'!N66 -> 282075.1436 | O56: ='Volume adjustments'!O66 -> 23010.44419 | P56: ='Volume adjustments'!P66 -> 326311.9404 | Q56: ='Volume adjustments'!Q66 -> 13868.9747 | R56: ='Volume adjustments'!R66 -> 140.0407983 | S56: ='Volume adjustments'!S66 -> 2.877628454 | T56: ='Volume adjustments'!T66 -> 6131.38141 | U56: ='Volume adjustments'!U66 -> 0 | V56: ='Volume adjustments'!V66 -> 144.6141526 | W56: ='Volume adjustments'!W66 -> 0 | X56: ='Volume adjustments'!X66 -> 116075.8182 | Y56: ='Volume adjustments'!Y66 -> 0
F57: Unit rate 2 | G57: MWh | J57: ='Volume adjustments'!J77 -> 2645097.839 | K57: ='Volume adjustments'!K77 -> 24035.07176 | L57: ='Volume adjustments'!L77 -> 1023624.188 | M57: ='Volume adjustments'!M77 -> 25319.41548 | N57: ='Volume adjustments'!N77 -> 1350126.331 | O57: ='Volume adjustments'!O77 -> 107501.3441 | P57: ='Volume adjustments'!P77 -> 1514334.2 | Q57: ='Volume adjustments'!Q77 -> 52882.39997 | R57: ='Volume adjustments'!R77 -> 628.6148355 | S57: ='Volume adjustments'!S77 -> 11.85801479 | T57: ='Volume adjustments'!T77 -> 27525.45625 | U57: ='Volume adjustments'!U77 -> 0 | V57: ='Volume adjustments'!V77 -> 597.3478309 | W57: ='Volume adjustments'!W77 -> 0 | X57: ='Volume adjustments'!X77 -> 445212.4393 | Y57: ='Volume adjustments'!Y77 -> 0
F58: Unit rate 3 | G58: MWh | J58: ='Volume adjustments'!J88 -> 2435994.001 | K58: ='Volume adjustments'!K88 -> 245515.1423 | L58: ='Volume adjustments'!L88 -> 988714.5961 | M58: ='Volume adjustments'!M88 -> 52561.15803 | N58: ='Volume adjustments'!N88 -> 1179031.436 | O58: ='Volume adjustments'!O88 -> 106315.9718 | P58: ='Volume adjustments'!P88 -> 1621310.675 | Q58: ='Volume adjustments'!Q88 -> 189423.977 | R58: ='Volume adjustments'!R88 -> 700.983745 | S58: ='Volume adjustments'!S88 -> 16.00635676 | T58: ='Volume adjustments'!T88 -> 30981.27634 | U58: ='Volume adjustments'!U88 -> 0 | V58: ='Volume adjustments'!V88 -> 807.2790165 | W58: ='Volume adjustments'!W88 -> 0 | X58: ='Volume adjustments'!X88 -> 507559.1675 | Y58: ='Volume adjustments'!Y88 -> 0
F59: Total discounted MWh | G59: MWh | J59: =SUM(J56:J58) -> 5825599.316 | K59: 270877.7804 | L59: 2201312.306 | M59: 82052.81458 | N59: 2811232.911 | O59: 236827.7601 | P59: 3461956.816 | Q59: 256175.3517 | R59: 1469.639379 | S59: 30.742 | T59: 64638.114 | U59: 0 | V59: 1549.241 | W59: 0 | X59: 1068847.425 | Y59: 0
E61: Load factor | G61: % | I61: > | J61: ='Inputs by customer type'!J18 -> 0.4486666667 | K61: ='Inputs by customer type'!K18 -> 0.09966666667 | L61: ='Inputs by customer type'!L18 -> 0.4166666667 | M61: ='Inputs by customer type'!M18 -> 0.32 | N61: ='Inputs by customer type'!N18 -> 0.556 | O61: ='Inputs by customer type'!O18 -> 0.6726666667 | P61: ='Inputs by customer type'!P18 -> 0.7353333333 | Q61: ='Inputs by customer type'!Q18 -> 0.4583333333 | AA61: Paragraph 61 (c)
B63: Load at system peak charged to unit rates
C65: This section calculates the system peak load based on load charged to unit rates
C67: =INDEX('Version control'!$H$34:$H$58,MATCH($A$1,'Version control'!$F$34:$F$58,0),1)&"-B: System peak load, by unit rate" -> Section 509-B: System peak load, by unit rate
E69: Pseudo load coefficient, unit rate 1
F70: GSPs | G70: scalar | J70: ='Pseudo-load coefficients'!J272 -> 11.52798642 | K70: ='Pseudo-load coefficients'!K272 -> 11.52798642 | L70: ='Pseudo-load coefficients'!L272 -> 13.38981457 | M70: ='Pseudo-load coefficients'!M272 -> 13.38981457 | N70: ='Pseudo-load coefficients'!N272 -> 10.35069223 | O70: ='Pseudo-load coefficients'!O272 -> 8.854061443 | P70: ='Pseudo-load coefficients'!P272 -> 8.986968586 | Q70: ='Pseudo-load coefficients'!Q272 -> 25.02386761 | R70: ='Pseudo-load coefficients'!R272 -> 8.243718363 | S70: ='Pseudo-load coefficients'!S272 -> 8.243718363 | T70: ='Pseudo-load coefficients'!T272 -> 8.243718363 | U70: ='Pseudo-load coefficients'!U272 -> 8.243718363 | V70: ='Pseudo-load coefficients'!V272 -> 8.243718363 | W70: ='Pseudo-load coefficients'!W272 -> 8.243718363 | X70: ='Pseudo-load coefficients'!X272 -> 8.243718363 | Y70: ='Pseudo-load coefficients'!Y272 -> 8.243718363
F71: 132kV | G71: scalar | J71: ='Pseudo-load coefficients'!J273 -> 0 | K71: ='Pseudo-load coefficients'!K273 -> 0 | L71: ='Pseudo-load coefficients'!L273 -> 0 | M71: ='Pseudo-load coefficients'!M273 -> 0 | N71: ='Pseudo-load coefficients'!N273 -> 0 | O71: ='Pseudo-load coefficients'!O273 -> 0 | P71: ='Pseudo-load coefficients'!P273 -> 0 | Q71: ='Pseudo-load coefficients'!Q273 -> 0 | R71: ='Pseudo-load coefficients'!R273 -> 0 | S71: ='Pseudo-load coefficients'!S273 -> 0 | T71: ='Pseudo-load coefficients'!T273 -> 0 | U71: ='Pseudo-load coefficients'!U273 -> 0 | V71: ='Pseudo-load coefficients'!V273 -> 0 | W71: ='Pseudo-load coefficients'!W273 -> 0 | X71: ='Pseudo-load coefficients'!X273 -> 0 | Y71: ='Pseudo-load coefficients'!Y273 -> 0
F72: 132kV/EHV | G72: scalar | J72: ='Pseudo-load coefficients'!J274 -> 0 | K72: ='Pseudo-load coefficients'!K274 -> 0 | L72: ='Pseudo-load coefficients'!L274 -> 0 | M72: ='Pseudo-load coefficients'!M274 -> 0 | N72: ='Pseudo-load coefficients'!N274 -> 0 | O72: ='Pseudo-load coefficients'!O274 -> 0 | P72: ='Pseudo-load coefficients'!P274 -> 0 | Q72: ='Pseudo-load coefficients'!Q274 -> 0 | R72: ='Pseudo-load coefficients'!R274 -> 0 | S72: ='Pseudo-load coefficients'!S274 -> 0 | T72: ='Pseudo-load coefficients'!T274 -> 0 | U72: ='Pseudo-load coefficients'!U274 -> 0 | V72: ='Pseudo-load coefficients'!V274 -> 0 | W72: ='Pseudo-load coefficients'!W274 -> 0 | X72: ='Pseudo-load coefficients'!X274 -> 0 | Y72: ='Pseudo-load coefficients'!Y274 -> 0
F73: EHV | G73: scalar | J73: ='Pseudo-load coefficients'!J275 -> 11.52798642 | K73: ='Pseudo-load coefficients'!K275 -> 11.52798642 | L73: ='Pseudo-load coefficients'!L275 -> 13.38981457 | M73: ='Pseudo-load coefficients'!M275 -> 13.38981457 | N73: ='Pseudo-load coefficients'!N275 -> 10.35069223 | O73: ='Pseudo-load coefficients'!O275 -> 8.854061443 | P73: ='Pseudo-load coefficients'!P275 -> 8.986968586 | Q73: ='Pseudo-load coefficients'!Q275 -> 25.02386761 | R73: ='Pseudo-load coefficients'!R275 -> 8.243718363 | S73: ='Pseudo-load coefficients'!S275 -> 8.243718363 | T73: ='Pseudo-load coefficients'!T275 -> 8.243718363 | U73: ='Pseudo-load coefficients'!U275 -> 8.243718363 | V73: ='Pseudo-load coefficients'!V275 -> 8.243718363 | W73: ='Pseudo-load coefficients'!W275 -> 8.243718363 | X73: ='Pseudo-load coefficients'!X275 -> 8.243718363 | Y73: ='Pseudo-load coefficients'!Y275 -> 8.243718363
